Publisher Label,Publisher URI,"Directorate code","Directorate","Service code","Service","Revenue or capital code","Revenue capital","Cost centre","Cost centre description","Bvsub Category","Bvsub description","Bvsum code","Bvsum description","Account code","Account description","Transaction No","Period","Transaction Date","Amount","Classification code","Classification description","Supplier ID","Supplier description","Company registration number","Company registration number Uri","VAT registration number"
"London Borough of Redbridge","http://opendatacommunities.org/doc/london-borough-council/redbridge","5BGFHOUSING","General Fund Housing","5CHOMELESS","Homelessness","REV","Revenue","R5630","HAC Temporary Accomodation","05-THIRD","Third Party Payments","05H","Private contractors","6900","Nightly Let Plus Charges","3748016","202404",02/07/2023 00:00:00,0,"31230","Employment and Recruitment Agencies","REDACTED DATA","ACCESS UK LTD T/AS ADAM","2343760","http://opencorporates.com/companies/gb/2343760","GB 108 2213 56"
"London Borough of Redbridge","http://opendatacommunities.org/doc/london-borough-council/redbridge","5BGFHOUSING","General Fund Housing","5CHOMELESS","Homelessness","REV","Revenue","R5630","HAC Temporary Accomodation","05-THIRD","Third Party Payments","05H","Private contractors","6900","Nightly Let Plus Charges","3748016","202404",02/07/2023 00:00:00,1818,"31230","Employment and Recruitment Agencies","REDACTED DATA","ACCESS UK LTD T/AS ADAM","2343760","http://opencorporates.com/companies/gb/2343760","GB 108 2213 56"
"London Borough of Redbridge","http://opendatacommunities.org/doc/london-borough-council/redbridge","5BGFHOUSING","General Fund Housing","5CHOMELESS","Homelessness","REV","Revenue","R5630","HAC Temporary Accomodation","05-THIRD","Third Party Payments","05H","Private contractors","6900","Nightly Let Plus Charges","3748016","202404",02/07/2023 00:00:00,855,"31230","Employment and Recruitment Agencies","REDACTED DATA","ACCESS UK LTD T/AS ADAM","2343760","http://opencorporates.com/companies/gb/2343760","GB 108 2213 56"
"London Borough of Redbridge","http://opendatacommunities.org/doc/london-borough-council/redbridge","5BGFHOUSING","General Fund Housing","5CHOMELESS","Homelessness","REV","Revenue","R5630","HAC Temporary Accomodation","05-THIRD","Third Party Payments","05H","Private contractors","6900","Nightly Let Plus Charges","3748016","202404",02/07/2023 00:00:00,0,"31230","Employment and Recruitment Agencies","REDACTED DATA","ACCESS UK LTD T/AS ADAM","2343760","http://opencorporates.com/companies/gb/2343760","GB 108 2213 56"
"London Borough of Redbridge","http://opendatacommunities.org/doc/london-borough-council/redbridge","5BGFHOUSING","General Fund Housing","5CHOMELESS","Homelessness","REV","Revenue","R5630","HAC Temporary Accomodation","05-THIRD","Third Party Payments","05H","Private contractors","6900","Nightly Let Plus Charges","3748016","202404",02/07/2023 00:00:00,855,"31230","Employment and Recruitment Agencies","REDACTED DATA","ACCESS UK LTD T/AS ADAM","2343760","http://opencorporates.com/companies/gb/2343760","GB 108 2213 56"
"London Borough of Redbridge","http://opendatacommunities.org/doc/london-borough-council/redbridge","5BGFHOUSING","General Fund Housing","5CHOMELESS","Homelessness","REV","Revenue","R5630","HAC Temporary Accomodation","05-THIRD","Third Party Payments","05H","Private contractors","6900","Nightly Let Plus Charges","3748016","202404",02/07/2023 00:00:00,1230,"31230","Employment and Recruitment Agencies","REDACTED DATA","ACCESS UK LTD T/AS ADAM","2343760","http://opencorporates.com/companies/gb/2343760","GB 108 2213 56"
"London Borough of Redbridge","http://opendatacommunities.org/doc/london-borough-council/redbridge","5BGFHOUSING","General Fund Housing","5CHOMELESS","Homelessness","REV","Revenue","R5630","HAC Temporary Accomodation","05-THIRD","Third Party Payments","05H","Private contractors","6900","Nightly Let Plus Charges","3748016","202404",02/07/2023 00:00:00,855,"31230","Employment and Recruitment Agencies","REDACTED DATA","ACCESS UK LTD T/AS ADAM","2343760","http://opencorporates.com/companies/gb/2343760","GB 108 2213 56"
"London Borough of Redbridge","http://opendatacommunities.org/doc/london-borough-council/redbridge","5BGFHOUSING","General Fund Housing","5CHOMELESS","Homelessness","REV","Revenue","R5630","HAC Temporary Accomodation","05-THIRD","Third Party Payments","05H","Private contractors","6900","Nightly Let Plus Charges","3748016","202404",02/07/2023 00:00:00,0,"31230","Employment and Recruitment Agencies","REDACTED DATA","ACCESS UK LTD T/AS ADAM","2343760","http://opencorporates.com/companies/gb/2343760","GB 108 2213 56"
"London Borough of Redbridge","http://opendatacommunities.org/doc/london-borough-council/redbridge","5BGFHOUSING","General Fund Housing","5CHOMELESS","Homelessness","REV","Revenue","R5630","HAC Temporary Accomodation","05-THIRD","Third Party Payments","05H","Private contractors","6900","Nightly Let Plus Charges","3748016","202404",02/07/2023 00:00:00,1863,"31230","Employment and Recruitment Agencies","REDACTED DATA","ACCESS UK LTD T/AS ADAM","2343760","http://opencorporates.com/companies/gb/2343760","GB 108 2213 56"
"London Borough of Redbridge","http://opendatacommunities.org/doc/london-borough-council/redbridge","5BGFHOUSING","General Fund Housing","5CHOMELESS","Homelessness","REV","Revenue","R5630","HAC Temporary Accomodation","05-THIRD","Third Party Payments","05H","Private contractors","6900","Nightly Let Plus Charges","3748016","202404",02/07/2023 00:00:00,0,"31230","Employment and Recruitment Agencies","REDACTED DATA","ACCESS UK LTD T/AS ADAM","2343760","http://opencorporates.com/companies/gb/2343760","GB 108 2213 56"
"London Borough of Redbridge","http://opendatacommunities.org/doc/london-borough-council/redbridge","5BGFHOUSING","General Fund Housing","5CHOMELESS","Homelessness","REV","Revenue","R5630","HAC Temporary Accomodation","05-THIRD","Third Party Payments","05H","Private contractors","6900","Nightly Let Plus Charges","3748016","202404",02/07/2023 00:00:00,1380,"31230","Employment and Recruitment Agencies","REDACTED DATA","ACCESS UK LTD T/AS ADAM","2343760","http://opencorporates.com/companies/gb/2343760","GB 108 2213 56"
"London Borough of Redbridge","http://opendatacommunities.org/doc/london-borough-council/redbridge","5BGFHOUSING","General Fund Housing","5CHOMELESS","Homelessness","REV","Revenue","R5630","HAC Temporary Accomodation","05-THIRD","Third Party Payments","05H","Private contractors","6900","Nightly Let Plus Charges","3748016","202404",02/07/2023 00:00:00,0,"31230","Employment and Recruitment Agencies","REDACTED DATA","ACCESS UK LTD T/AS ADAM","2343760","http://opencorporates.com/companies/gb/2343760","GB 108 2213 56"
"London Borough of Redbridge","http://opendatacommunities.org/doc/london-borough-council/redbridge","5BGFHOUSING","General Fund Housing","5CHOMELESS","Homelessness","REV","Revenue","R5630","HAC Temporary Accomodation","05-THIRD","Third Party Payments","05H","Private contractors","6900","Nightly Let Plus Charges","3748016","202404",02/07/2023 00:00:00,972.6,"31230","Employment and Recruitment Agencies","REDACTED DATA","ACCESS UK LTD T/AS ADAM","2343760","http://opencorporates.com/companies/gb/2343760","GB 108 2213 56"
"London Borough of Redbridge","http://opendatacommunities.org/doc/london-borough-council/redbridge","5BGFHOUSING","General Fund Housing","5CHOMELESS","Homelessness","REV","Revenue","R5630","HAC Temporary Accomodation","05-THIRD","Third Party Payments","05H","Private contractors","6900","Nightly Let Plus Charges","3748016","202404",02/07/2023 00:00:00,0,"31230","Employment and Recruitment Agencies","REDACTED DATA","ACCESS UK LTD T/AS ADAM","2343760","http://opencorporates.com/companies/gb/2343760","GB 108 2213 56"
"London Borough of Redbridge","http://opendatacommunities.org/doc/london-borough-council/redbridge","5BGFHOUSING","General Fund Housing","5CHOMELESS","Homelessness","REV","Revenue","R5630","HAC Temporary Accomodation","05-THIRD","Third Party Payments","05H","Private contractors","6900","Nightly Let Plus Charges","3748016","202404",02/07/2023 00:00:00,1106.1,"31230","Employment and Recruitment Agencies","REDACTED DATA","ACCESS UK LTD T/AS ADAM","2343760","http://opencorporates.com/companies/gb/2343760","GB 108 2213 56"
"London Borough of Redbridge","http://opendatacommunities.org/doc/london-borough-council/redbridge","5BGFHOUSING","General Fund Housing","5CHOMELESS","Homelessness","REV","Revenue","R5630","HAC Temporary Accomodation","05-THIRD","Third Party Payments","05H","Private contractors","6900","Nightly Let Plus Charges","3748016","202404",02/07/2023 00:00:00,1521.3,"31230","Employment and Recruitment Agencies","REDACTED DATA","ACCESS UK LTD T/AS ADAM","2343760","http://opencorporates.com/companies/gb/2343760","GB 108 2213 56"
"London Borough of Redbridge","http://opendatacommunities.org/doc/london-borough-council/redbridge","5BGFHOUSING","General Fund Housing","5CHOMELESS","Homelessness","REV","Revenue","R5630","HAC Temporary Accomodation","05-THIRD","Third Party Payments","05H","Private contractors","6900","Nightly Let Plus Charges","3748016","202404",02/07/2023 00:00:00,0,"31230","Employment and Recruitment Agencies","REDACTED DATA","ACCESS UK LTD T/AS ADAM","2343760","http://opencorporates.com/companies/gb/2343760","GB 108 2213 56"
"London Borough of Redbridge","http://opendatacommunities.org/doc/london-borough-council/redbridge","5BGFHOUSING","General Fund Housing","5CHOMELESS","Homelessness","REV","Revenue","R5630","HAC Temporary Accomodation","05-THIRD","Third Party Payments","05H","Private contractors","6900","Nightly Let Plus Charges","3748016","202404",02/07/2023 00:00:00,855,"31230","Employment and Recruitment Agencies","REDACTED DATA","ACCESS UK LTD T/AS ADAM","2343760","http://opencorporates.com/companies/gb/2343760","GB 108 2213 56"
"London Borough of Redbridge","http://opendatacommunities.org/doc/london-borough-council/redbridge","5BGFHOUSING","General Fund Housing","5CHOMELESS","Homelessness","REV","Revenue","R5630","HAC Temporary Accomodation","05-THIRD","Third Party Payments","05H","Private contractors","6900","Nightly Let Plus Charges","3748016","202404",02/07/2023 00:00:00,0,"31230","Employment and Recruitment Agencies","REDACTED DATA","ACCESS UK LTD T/AS ADAM","2343760","http://opencorporates.com/companies/gb/2343760","GB 108 2213 56"
"London Borough of Redbridge","http://opendatacommunities.org/doc/london-borough-council/redbridge","5BGFHOUSING","General Fund Housing","5CHOMELESS","Homelessness","REV","Revenue","R5630","HAC Temporary Accomodation","05-THIRD","Third Party Payments","05H","Private contractors","6900","Nightly Let Plus Charges","3748016","202404",02/07/2023 00:00:00,0,"31230","Employment and Recruitment Agencies","REDACTED DATA","ACCESS UK LTD T/AS ADAM","2343760","http://opencorporates.com/companies/gb/2343760","GB 108 2213 56"
"London Borough of Redbridge","http://opendatacommunities.org/doc/london-borough-council/redbridge","5BGFHOUSING","General Fund Housing","5CHOMELESS","Homelessness","REV","Revenue","R5630","HAC Temporary Accomodation","05-THIRD","Third Party Payments","05H","Private contractors","6900","Nightly Let Plus Charges","3748016","202404",02/07/2023 00:00:00,1020,"31230","Employment and Recruitment Agencies","REDACTED DATA","ACCESS UK LTD T/AS ADAM","2343760","http://opencorporates.com/companies/gb/2343760","GB 108 2213 56"
"London Borough of Redbridge","http://opendatacommunities.org/doc/london-borough-council/redbridge","5BGFHOUSING","General Fund Housing","5CHOMELESS","Homelessness","REV","Revenue","R5630","HAC Temporary Accomodation","05-THIRD","Third Party Payments","05H","Private contractors","6900","Nightly Let Plus Charges","3748016","202404",02/07/2023 00:00:00,0,"31230","Employment and Recruitment Agencies","REDACTED DATA","ACCESS UK LTD T/AS ADAM","2343760","http://opencorporates.com/companies/gb/2343760","GB 108 2213 56"
"London Borough of Redbridge","http://opendatacommunities.org/doc/london-borough-council/redbridge","5BGFHOUSING","General Fund Housing","5CHOMELESS","Homelessness","REV","Revenue","R5630","HAC Temporary Accomodation","05-THIRD","Third Party Payments","05H","Private contractors","6900","Nightly Let Plus Charges","3748016","202404",02/07/2023 00:00:00,0,"31230","Employment and Recruitment Agencies","REDACTED DATA","ACCESS UK LTD T/AS ADAM","2343760","http://opencorporates.com/companies/gb/2343760","GB 108 2213 56"
"London Borough of Redbridge","http://opendatacommunities.org/doc/london-borough-council/redbridge","5BGFHOUSING","General Fund Housing","5CHOMELESS","Homelessness","REV","Revenue","R5630","HAC Temporary Accomodation","05-THIRD","Third Party Payments","05H","Private contractors","6900","Nightly Let Plus Charges","3748016","202404",02/07/2023 00:00:00,1106.1,"31230","Employment and Recruitment Agencies","REDACTED DATA","ACCESS UK LTD T/AS ADAM","2343760","http://opencorporates.com/companies/gb/2343760","GB 108 2213 56"
"London Borough of Redbridge","http://opendatacommunities.org/doc/london-borough-council/redbridge","5BGFHOUSING","General Fund Housing","5CHOMELESS","Homelessness","REV","Revenue","R5630","HAC Temporary Accomodation","05-THIRD","Third Party Payments","05H","Private contractors","6900","Nightly Let Plus Charges","3748016","202404",02/07/2023 00:00:00,0,"31230","Employment and Recruitment Agencies","REDACTED DATA","ACCESS UK LTD T/AS ADAM","2343760","http://opencorporates.com/companies/gb/2343760","GB 108 2213 56"
"London Borough of Redbridge","http://opendatacommunities.org/doc/london-borough-council/redbridge","5BGFHOUSING","General Fund Housing","5CHOMELESS","Homelessness","REV","Revenue","R5630","HAC Temporary Accomodation","05-THIRD","Third Party Payments","05H","Private contractors","6900","Nightly Let Plus Charges","3748016","202404",02/07/2023 00:00:00,0,"31230","Employment and Recruitment Agencies","REDACTED DATA","ACCESS UK LTD T/AS ADAM","2343760","http://opencorporates.com/companies/gb/2343760","GB 108 2213 56"
"London Borough of Redbridge","http://opendatacommunities.org/doc/london-borough-council/redbridge","5BGFHOUSING","General Fund Housing","5CHOMELESS","Homelessness","REV","Revenue","R5630","HAC Temporary Accomodation","05-THIRD","Third Party Payments","05H","Private contractors","6900","Nightly Let Plus Charges","3748016","202404",02/07/2023 00:00:00,855,"31230","Employment and Recruitment Agencies","REDACTED DATA","ACCESS UK LTD T/AS ADAM","2343760","http://opencorporates.com/companies/gb/2343760","GB 108 2213 56"
"London Borough of Redbridge","http://opendatacommunities.org/doc/london-borough-council/redbridge","5BGFHOUSING","General Fund Housing","5CHOMELESS","Homelessness","REV","Revenue","R5630","HAC Temporary Accomodation","05-THIRD","Third Party Payments","05H","Private contractors","6900","Nightly Let Plus Charges","3748016","202404",02/07/2023 00:00:00,0,"31230","Employment and Recruitment Agencies","REDACTED DATA","ACCESS UK LTD T/AS ADAM","2343760","http://opencorporates.com/companies/gb/2343760","GB 108 2213 56"
"London Borough of Redbridge","http://opendatacommunities.org/doc/london-borough-council/redbridge","5BGFHOUSING","General Fund Housing","5CHOMELESS","Homelessness","REV","Revenue","R5630","HAC Temporary Accomodation","05-THIRD","Third Party Payments","05H","Private contractors","6900","Nightly Let Plus Charges","3748016","202404",02/07/2023 00:00:00,1560,"31230","Employment and Recruitment Agencies","REDACTED DATA","ACCESS UK LTD T/AS ADAM","2343760","http://opencorporates.com/companies/gb/2343760","GB 108 2213 56"
"London Borough of Redbridge","http://opendatacommunities.org/doc/london-borough-council/redbridge","5BGFHOUSING","General Fund Housing","5CHOMELESS","Homelessness","REV","Revenue","R5630","HAC Temporary Accomodation","05-THIRD","Third Party Payments","05H","Private contractors","6900","Nightly Let Plus Charges","3748016","202404",02/07/2023 00:00:00,1371.6,"31230","Employment and Recruitment Agencies","REDACTED DATA","ACCESS UK LTD T/AS ADAM","2343760","http://opencorporates.com/companies/gb/2343760","GB 108 2213 56"
"London Borough of Redbridge","http://opendatacommunities.org/doc/london-borough-council/redbridge","5BGFHOUSING","General Fund Housing","5CHOMELESS","Homelessness","REV","Revenue","R5630","HAC Temporary Accomodation","05-THIRD","Third Party Payments","05H","Private contractors","6900","Nightly Let Plus Charges","3748016","202404",02/07/2023 00:00:00,0,"31230","Employment and Recruitment Agencies","REDACTED DATA","ACCESS UK LTD T/AS ADAM","2343760","http://opencorporates.com/companies/gb/2343760","GB 108 2213 56"
"London Borough of Redbridge","http://opendatacommunities.org/doc/london-borough-council/redbridge","5BGFHOUSING","General Fund Housing","5CHOMELESS","Homelessness","REV","Revenue","R5630","HAC Temporary Accomodation","05-THIRD","Third Party Payments","05H","Private contractors","6900","Nightly Let Plus Charges","3748016","202404",02/07/2023 00:00:00,855,"31230","Employment and Recruitment Agencies","REDACTED DATA","ACCESS UK LTD T/AS ADAM","2343760","http://opencorporates.com/companies/gb/2343760","GB 108 2213 56"
"London Borough of Redbridge","http://opendatacommunities.org/doc/london-borough-council/redbridge","5BGFHOUSING","General Fund Housing","5CHOMELESS","Homelessness","REV","Revenue","R5630","HAC Temporary Accomodation","05-THIRD","Third Party Payments","05H","Private contractors","6900","Nightly Let Plus Charges","3748016","202404",02/07/2023 00:00:00,0,"31230","Employment and Recruitment Agencies","REDACTED DATA","ACCESS UK LTD T/AS ADAM","2343760","http://opencorporates.com/companies/gb/2343760","GB 108 2213 56"
"London Borough of Redbridge","http://opendatacommunities.org/doc/london-borough-council/redbridge","5BGFHOUSING","General Fund Housing","5CHOMELESS","Homelessness","REV","Revenue","R5630","HAC Temporary Accomodation","05-THIRD","Third Party Payments","05H","Private contractors","6900","Nightly Let Plus Charges","3748016","202404",02/07/2023 00:00:00,855,"31230","Employment and Recruitment Agencies","REDACTED DATA","ACCESS UK LTD T/AS ADAM","2343760","http://opencorporates.com/companies/gb/2343760","GB 108 2213 56"
"London Borough of Redbridge","http://opendatacommunities.org/doc/london-borough-council/redbridge","5BGFHOUSING","General Fund Housing","5CHOMELESS","Homelessness","REV","Revenue","R5630","HAC Temporary Accomodation","05-THIRD","Third Party Payments","05H","Private contractors","6900","Nightly Let Plus Charges","3748016","202404",02/07/2023 00:00:00,0,"31230","Employment and Recruitment Agencies","REDACTED DATA","ACCESS UK LTD T/AS ADAM","2343760","http://opencorporates.com/companies/gb/2343760","GB 108 2213 56"
"London Borough of Redbridge","http://opendatacommunities.org/doc/london-borough-council/redbridge","5BGFHOUSING","General Fund Housing","5CHOMELESS","Homelessness","REV","Revenue","R5630","HAC Temporary Accomodation","05-THIRD","Third Party Payments","05H","Private contractors","6900","Nightly Let Plus Charges","3748016","202404",02/07/2023 00:00:00,553.19,"31230","Employment and Recruitment Agencies","REDACTED DATA","ACCESS UK LTD T/AS ADAM","2343760","http://opencorporates.com/companies/gb/2343760","GB 108 2213 56"
"London Borough of Redbridge","http://opendatacommunities.org/doc/london-borough-council/redbridge","5BGFHOUSING","General Fund Housing","5CHOMELESS","Homelessness","REV","Revenue","R5630","HAC Temporary Accomodation","05-THIRD","Third Party Payments","05H","Private contractors","6900","Nightly Let Plus Charges","3748016","202404",02/07/2023 00:00:00,0,"31230","Employment and Recruitment Agencies","REDACTED DATA","ACCESS UK LTD T/AS ADAM","2343760","http://opencorporates.com/companies/gb/2343760","GB 108 2213 56"
"London Borough of Redbridge","http://opendatacommunities.org/doc/london-borough-council/redbridge","5BGFHOUSING","General Fund Housing","5CHOMELESS","Homelessness","REV","Revenue","R5630","HAC Temporary Accomodation","05-THIRD","Third Party Payments","05H","Private contractors","6900","Nightly Let Plus Charges","3748016","202404",02/07/2023 00:00:00,855,"31230","Employment and Recruitment Agencies","REDACTED DATA","ACCESS UK LTD T/AS ADAM","2343760","http://opencorporates.com/companies/gb/2343760","GB 108 2213 56"
"London Borough of Redbridge","http://opendatacommunities.org/doc/london-borough-council/redbridge","5BGFHOUSING","General Fund Housing","5CHOMELESS","Homelessness","REV","Revenue","R5630","HAC Temporary Accomodation","05-THIRD","Third Party Payments","05H","Private contractors","6900","Nightly Let Plus Charges","3748016","202404",02/07/2023 00:00:00,0,"31230","Employment and Recruitment Agencies","REDACTED DATA","ACCESS UK LTD T/AS ADAM","2343760","http://opencorporates.com/companies/gb/2343760","GB 108 2213 56"
"London Borough of Redbridge","http://opendatacommunities.org/doc/london-borough-council/redbridge","5BGFHOUSING","General Fund Housing","5CHOMELESS","Homelessness","REV","Revenue","R5630","HAC Temporary Accomodation","05-THIRD","Third Party Payments","05H","Private contractors","6900","Nightly Let Plus Charges","3748016","202404",02/07/2023 00:00:00,1062.9,"31230","Employment and Recruitment Agencies","REDACTED DATA","ACCESS UK LTD T/AS ADAM","2343760","http://opencorporates.com/companies/gb/2343760","GB 108 2213 56"
"London Borough of Redbridge","http://opendatacommunities.org/doc/london-borough-council/redbridge","5BGFHOUSING","General Fund Housing","5CHOMELESS","Homelessness","REV","Revenue","R5630","HAC Temporary Accomodation","05-THIRD","Third Party Payments","05H","Private contractors","6900","Nightly Let Plus Charges","3748016","202404",02/07/2023 00:00:00,855,"31230","Employment and Recruitment Agencies","REDACTED DATA","ACCESS UK LTD T/AS ADAM","2343760","http://opencorporates.com/companies/gb/2343760","GB 108 2213 56"
"London Borough of Redbridge","http://opendatacommunities.org/doc/london-borough-council/redbridge","5BGFHOUSING","General Fund Housing","5CHOMELESS","Homelessness","REV","Revenue","R5630","HAC Temporary Accomodation","05-THIRD","Third Party Payments","05H","Private contractors","6900","Nightly Let Plus Charges","3748016","202404",02/07/2023 00:00:00,0,"31230","Employment and Recruitment Agencies","REDACTED DATA","ACCESS UK LTD T/AS ADAM","2343760","http://opencorporates.com/companies/gb/2343760","GB 108 2213 56"
"London Borough of Redbridge","http://opendatacommunities.org/doc/london-borough-council/redbridge","5BGFHOUSING","General Fund Housing","5CHOMELESS","Homelessness","REV","Revenue","R5630","HAC Temporary Accomodation","05-THIRD","Third Party Payments","05H","Private contractors","6900","Nightly Let Plus Charges","3748016","202404",02/07/2023 00:00:00,0,"31230","Employment and Recruitment Agencies","REDACTED DATA","ACCESS UK LTD T/AS ADAM","2343760","http://opencorporates.com/companies/gb/2343760","GB 108 2213 56"
"London Borough of Redbridge","http://opendatacommunities.org/doc/london-borough-council/redbridge","5BGFHOUSING","General Fund Housing","5CHOMELESS","Homelessness","REV","Revenue","R5630","HAC Temporary Accomodation","05-THIRD","Third Party Payments","05H","Private contractors","6900","Nightly Let Plus Charges","3748016","202404",02/07/2023 00:00:00,-797.94,"31230","Employment and Recruitment Agencies","REDACTED DATA","ACCESS UK LTD T/AS ADAM","2343760","http://opencorporates.com/companies/gb/2343760","GB 108 2213 56"
"London Borough of Redbridge","http://opendatacommunities.org/doc/london-borough-council/redbridge","5BGFHOUSING","General Fund Housing","5CHOMELESS","Homelessness","REV","Revenue","R5630","HAC Temporary Accomodation","05-THIRD","Third Party Payments","05H","Private contractors","6900","Nightly Let Plus Charges","3748016","202404",02/07/2023 00:00:00,794.4,"31230","Employment and Recruitment Agencies","REDACTED DATA","ACCESS UK LTD T/AS ADAM","2343760","http://opencorporates.com/companies/gb/2343760","GB 108 2213 56"
"London Borough of Redbridge","http://opendatacommunities.org/doc/london-borough-council/redbridge","5BGFHOUSING","General Fund Housing","5CHOMELESS","Homelessness","REV","Revenue","R5630","HAC Temporary Accomodation","05-THIRD","Third Party Payments","05H","Private contractors","6900","Nightly Let Plus Charges","3748016","202404",02/07/2023 00:00:00,855,"31230","Employment and Recruitment Agencies","REDACTED DATA","ACCESS UK LTD T/AS ADAM","2343760","http://opencorporates.com/companies/gb/2343760","GB 108 2213 56"
"London Borough of Redbridge","http://opendatacommunities.org/doc/london-borough-council/redbridge","5BGFHOUSING","General Fund Housing","5CHOMELESS","Homelessness","REV","Revenue","R5630","HAC Temporary Accomodation","05-THIRD","Third Party Payments","05H","Private contractors","6900","Nightly Let Plus Charges","3748016","202404",02/07/2023 00:00:00,0,"31230","Employment and Recruitment Agencies","REDACTED DATA","ACCESS UK LTD T/AS ADAM","2343760","http://opencorporates.com/companies/gb/2343760","GB 108 2213 56"
"London Borough of Redbridge","http://opendatacommunities.org/doc/london-borough-council/redbridge","5BGFHOUSING","General Fund Housing","5CHOMELESS","Homelessness","REV","Revenue","R5630","HAC Temporary Accomodation","05-THIRD","Third Party Payments","05H","Private contractors","6900","Nightly Let Plus Charges","3748016","202404",02/07/2023 00:00:00,772.2,"31230","Employment and Recruitment Agencies","REDACTED DATA","ACCESS UK LTD T/AS ADAM","2343760","http://opencorporates.com/companies/gb/2343760","GB 108 2213 56"
"London Borough of Redbridge","http://opendatacommunities.org/doc/london-borough-council/redbridge","5BGFHOUSING","General Fund Housing","5CHOMELESS","Homelessness","REV","Revenue","R5630","HAC Temporary Accomodation","05-THIRD","Third Party Payments","05H","Private contractors","6900","Nightly Let Plus Charges","3748016","202404",02/07/2023 00:00:00,1080,"31230","Employment and Recruitment Agencies","REDACTED DATA","ACCESS UK LTD T/AS ADAM","2343760","http://opencorporates.com/companies/gb/2343760","GB 108 2213 56"
"London Borough of Redbridge","http://opendatacommunities.org/doc/london-borough-council/redbridge","5BGFHOUSING","General Fund Housing","5CHOMELESS","Homelessness","REV","Revenue","R5630","HAC Temporary Accomodation","05-THIRD","Third Party Payments","05H","Private contractors","6900","Nightly Let Plus Charges","3748016","202404",02/07/2023 00:00:00,1431,"31230","Employment and Recruitment Agencies","REDACTED DATA","ACCESS UK LTD T/AS ADAM","2343760","http://opencorporates.com/companies/gb/2343760","GB 108 2213 56"
"London Borough of Redbridge","http://opendatacommunities.org/doc/london-borough-council/redbridge","5BGFHOUSING","General Fund Housing","5CHOMELESS","Homelessness","REV","Revenue","R5630","HAC Temporary Accomodation","05-THIRD","Third Party Payments","05H","Private contractors","6900","Nightly Let Plus Charges","3748016","202404",02/07/2023 00:00:00,0,"31230","Employment and Recruitment Agencies","REDACTED DATA","ACCESS UK LTD T/AS ADAM","2343760","http://opencorporates.com/companies/gb/2343760","GB 108 2213 56"
"London Borough of Redbridge","http://opendatacommunities.org/doc/london-borough-council/redbridge","5BGFHOUSING","General Fund Housing","5CHOMELESS","Homelessness","REV","Revenue","R5630","HAC Temporary Accomodation","05-THIRD","Third Party Payments","05H","Private contractors","6900","Nightly Let Plus Charges","3748016","202404",02/07/2023 00:00:00,0,"31230","Employment and Recruitment Agencies","REDACTED DATA","ACCESS UK LTD T/AS ADAM","2343760","http://opencorporates.com/companies/gb/2343760","GB 108 2213 56"
"London Borough of Redbridge","http://opendatacommunities.org/doc/london-borough-council/redbridge","5BGFHOUSING","General Fund Housing","5CHOMELESS","Homelessness","REV","Revenue","R5630","HAC Temporary Accomodation","05-THIRD","Third Party Payments","05H","Private contractors","6900","Nightly Let Plus Charges","3748016","202404",02/07/2023 00:00:00,1080,"31230","Employment and Recruitment Agencies","REDACTED DATA","ACCESS UK LTD T/AS ADAM","2343760","http://opencorporates.com/companies/gb/2343760","GB 108 2213 56"
"London Borough of Redbridge","http://opendatacommunities.org/doc/london-borough-council/redbridge","5BGFHOUSING","General Fund Housing","5CHOMELESS","Homelessness","REV","Revenue","R5630","HAC Temporary Accomodation","05-THIRD","Third Party Payments","05H","Private contractors","6900","Nightly Let Plus Charges","3748016","202404",02/07/2023 00:00:00,0,"31230","Employment and Recruitment Agencies","REDACTED DATA","ACCESS UK LTD T/AS ADAM","2343760","http://opencorporates.com/companies/gb/2343760","GB 108 2213 56"
"London Borough of Redbridge","http://opendatacommunities.org/doc/london-borough-council/redbridge","5BGFHOUSING","General Fund Housing","5CHOMELESS","Homelessness","REV","Revenue","R5630","HAC Temporary Accomodation","05-THIRD","Third Party Payments","05H","Private contractors","6900","Nightly Let Plus Charges","3748016","202404",02/07/2023 00:00:00,1050,"31230","Employment and Recruitment Agencies","REDACTED DATA","ACCESS UK LTD T/AS ADAM","2343760","http://opencorporates.com/companies/gb/2343760","GB 108 2213 56"
"London Borough of Redbridge","http://opendatacommunities.org/doc/london-borough-council/redbridge","5BGFHOUSING","General Fund Housing","5CHOMELESS","Homelessness","REV","Revenue","R5630","HAC Temporary Accomodation","05-THIRD","Third Party Payments","05H","Private contractors","6900","Nightly Let Plus Charges","3748016","202404",02/07/2023 00:00:00,0,"31230","Employment and Recruitment Agencies","REDACTED DATA","ACCESS UK LTD T/AS ADAM","2343760","http://opencorporates.com/companies/gb/2343760","GB 108 2213 56"
"London Borough of Redbridge","http://opendatacommunities.org/doc/london-borough-council/redbridge","5BGFHOUSING","General Fund Housing","5CHOMELESS","Homelessness","REV","Revenue","R5630","HAC Temporary Accomodation","05-THIRD","Third Party Payments","05H","Private contractors","6900","Nightly Let Plus Charges","3748016","202404",02/07/2023 00:00:00,855,"31230","Employment and Recruitment Agencies","REDACTED DATA","ACCESS UK LTD T/AS ADAM","2343760","http://opencorporates.com/companies/gb/2343760","GB 108 2213 56"
"London Borough of Redbridge","http://opendatacommunities.org/doc/london-borough-council/redbridge","5BGFHOUSING","General Fund Housing","5CHOMELESS","Homelessness","REV","Revenue","R5630","HAC Temporary Accomodation","05-THIRD","Third Party Payments","05H","Private contractors","6900","Nightly Let Plus Charges","3748016","202404",02/07/2023 00:00:00,0,"31230","Employment and Recruitment Agencies","REDACTED DATA","ACCESS UK LTD T/AS ADAM","2343760","http://opencorporates.com/companies/gb/2343760","GB 108 2213 56"
"London Borough of Redbridge","http://opendatacommunities.org/doc/london-borough-council/redbridge","5BGFHOUSING","General Fund Housing","5CHOMELESS","Homelessness","REV","Revenue","R5630","HAC Temporary Accomodation","05-THIRD","Third Party Payments","05H","Private contractors","6900","Nightly Let Plus Charges","3748016","202404",02/07/2023 00:00:00,1140,"31230","Employment and Recruitment Agencies","REDACTED DATA","ACCESS UK LTD T/AS ADAM","2343760","http://opencorporates.com/companies/gb/2343760","GB 108 2213 56"
"London Borough of Redbridge","http://opendatacommunities.org/doc/london-borough-council/redbridge","5BGFHOUSING","General Fund Housing","5CHOMELESS","Homelessness","REV","Revenue","R5630","HAC Temporary Accomodation","05-THIRD","Third Party Payments","05H","Private contractors","6900","Nightly Let Plus Charges","3748016","202404",02/07/2023 00:00:00,0,"31230","Employment and Recruitment Agencies","REDACTED DATA","ACCESS UK LTD T/AS ADAM","2343760","http://opencorporates.com/companies/gb/2343760","GB 108 2213 56"
"London Borough of Redbridge","http://opendatacommunities.org/doc/london-borough-council/redbridge","5BGFHOUSING","General Fund Housing","5CHOMELESS","Homelessness","REV","Revenue","R5630","HAC Temporary Accomodation","05-THIRD","Third Party Payments","05H","Private contractors","6900","Nightly Let Plus Charges","3748016","202404",02/07/2023 00:00:00,990,"31230","Employment and Recruitment Agencies","REDACTED DATA","ACCESS UK LTD T/AS ADAM","2343760","http://opencorporates.com/companies/gb/2343760","GB 108 2213 56"
"London Borough of Redbridge","http://opendatacommunities.org/doc/london-borough-council/redbridge","5BGFHOUSING","General Fund Housing","5CHOMELESS","Homelessness","REV","Revenue","R5630","HAC Temporary Accomodation","05-THIRD","Third Party Payments","05H","Private contractors","6900","Nightly Let Plus Charges","3748016","202404",02/07/2023 00:00:00,0,"31230","Employment and Recruitment Agencies","REDACTED DATA","ACCESS UK LTD T/AS ADAM","2343760","http://opencorporates.com/companies/gb/2343760","GB 108 2213 56"
"London Borough of Redbridge","http://opendatacommunities.org/doc/london-borough-council/redbridge","5BGFHOUSING","General Fund Housing","5CHOMELESS","Homelessness","REV","Revenue","R5630","HAC Temporary Accomodation","05-THIRD","Third Party Payments","05H","Private contractors","6900","Nightly Let Plus Charges","3748016","202404",02/07/2023 00:00:00,1260,"31230","Employment and Recruitment Agencies","REDACTED DATA","ACCESS UK LTD T/AS ADAM","2343760","http://opencorporates.com/companies/gb/2343760","GB 108 2213 56"
"London Borough of Redbridge","http://opendatacommunities.org/doc/london-borough-council/redbridge","5BGFHOUSING","General Fund Housing","5CHOMELESS","Homelessness","REV","Revenue","R5630","HAC Temporary Accomodation","05-THIRD","Third Party Payments","05H","Private contractors","6900","Nightly Let Plus Charges","3748016","202404",02/07/2023 00:00:00,0,"31230","Employment and Recruitment Agencies","REDACTED DATA","ACCESS UK LTD T/AS ADAM","2343760","http://opencorporates.com/companies/gb/2343760","GB 108 2213 56"
"London Borough of Redbridge","http://opendatacommunities.org/doc/london-borough-council/redbridge","5BGFHOUSING","General Fund Housing","5CHOMELESS","Homelessness","REV","Revenue","R5630","HAC Temporary Accomodation","05-THIRD","Third Party Payments","05H","Private contractors","6900","Nightly Let Plus Charges","3748016","202404",02/07/2023 00:00:00,1607.1,"31230","Employment and Recruitment Agencies","REDACTED DATA","ACCESS UK LTD T/AS ADAM","2343760","http://opencorporates.com/companies/gb/2343760","GB 108 2213 56"
"London Borough of Redbridge","http://opendatacommunities.org/doc/london-borough-council/redbridge","5BGFHOUSING","General Fund Housing","5CHOMELESS","Homelessness","REV","Revenue","R5630","HAC Temporary Accomodation","05-THIRD","Third Party Payments","05H","Private contractors","6900","Nightly Let Plus Charges","3748016","202404",02/07/2023 00:00:00,0,"31230","Employment and Recruitment Agencies","REDACTED DATA","ACCESS UK LTD T/AS ADAM","2343760","http://opencorporates.com/companies/gb/2343760","GB 108 2213 56"
"London Borough of Redbridge","http://opendatacommunities.org/doc/london-borough-council/redbridge","5BGFHOUSING","General Fund Housing","5CHOMELESS","Homelessness","REV","Revenue","R5630","HAC Temporary Accomodation","05-THIRD","Third Party Payments","05H","Private contractors","6900","Nightly Let Plus Charges","3748016","202404",02/07/2023 00:00:00,1140,"31230","Employment and Recruitment Agencies","REDACTED DATA","ACCESS UK LTD T/AS ADAM","2343760","http://opencorporates.com/companies/gb/2343760","GB 108 2213 56"
"London Borough of Redbridge","http://opendatacommunities.org/doc/london-borough-council/redbridge","5BGFHOUSING","General Fund Housing","5CHOMELESS","Homelessness","REV","Revenue","R5630","HAC Temporary Accomodation","05-THIRD","Third Party Payments","05H","Private contractors","6900","Nightly Let Plus Charges","3748016","202404",02/07/2023 00:00:00,0,"31230","Employment and Recruitment Agencies","REDACTED DATA","ACCESS UK LTD T/AS ADAM","2343760","http://opencorporates.com/companies/gb/2343760","GB 108 2213 56"
"London Borough of Redbridge","http://opendatacommunities.org/doc/london-borough-council/redbridge","5BGFHOUSING","General Fund Housing","5CHOMELESS","Homelessness","REV","Revenue","R5630","HAC Temporary Accomodation","05-THIRD","Third Party Payments","05H","Private contractors","6900","Nightly Let Plus Charges","3748016","202404",02/07/2023 00:00:00,1371.6,"31230","Employment and Recruitment Agencies","REDACTED DATA","ACCESS UK LTD T/AS ADAM","2343760","http://opencorporates.com/companies/gb/2343760","GB 108 2213 56"
"London Borough of Redbridge","http://opendatacommunities.org/doc/london-borough-council/redbridge","5BGFHOUSING","General Fund Housing","5CHOMELESS","Homelessness","REV","Revenue","R5630","HAC Temporary Accomodation","05-THIRD","Third Party Payments","05H","Private contractors","6900","Nightly Let Plus Charges","3748016","202404",02/07/2023 00:00:00,0,"31230","Employment and Recruitment Agencies","REDACTED DATA","ACCESS UK LTD T/AS ADAM","2343760","http://opencorporates.com/companies/gb/2343760","GB 108 2213 56"
"London Borough of Redbridge","http://opendatacommunities.org/doc/london-borough-council/redbridge","5BGFHOUSING","General Fund Housing","5CHOMELESS","Homelessness","REV","Revenue","R5630","HAC Temporary Accomodation","05-THIRD","Third Party Payments","05H","Private contractors","6900","Nightly Let Plus Charges","3748016","202404",02/07/2023 00:00:00,0,"31230","Employment and Recruitment Agencies","REDACTED DATA","ACCESS UK LTD T/AS ADAM","2343760","http://opencorporates.com/companies/gb/2343760","GB 108 2213 56"
"London Borough of Redbridge","http://opendatacommunities.org/doc/london-borough-council/redbridge","5BGFHOUSING","General Fund Housing","5CHOMELESS","Homelessness","REV","Revenue","R5630","HAC Temporary Accomodation","05-THIRD","Third Party Payments","05H","Private contractors","6900","Nightly Let Plus Charges","3748016","202404",02/07/2023 00:00:00,0,"31230","Employment and Recruitment Agencies","REDACTED DATA","ACCESS UK LTD T/AS ADAM","2343760","http://opencorporates.com/companies/gb/2343760","GB 108 2213 56"
"London Borough of Redbridge","http://opendatacommunities.org/doc/london-borough-council/redbridge","5BGFHOUSING","General Fund Housing","5CHOMELESS","Homelessness","REV","Revenue","R5630","HAC Temporary Accomodation","05-THIRD","Third Party Payments","05H","Private contractors","6900","Nightly Let Plus Charges","3748016","202404",02/07/2023 00:00:00,1617.9,"31230","Employment and Recruitment Agencies","REDACTED DATA","ACCESS UK LTD T/AS ADAM","2343760","http://opencorporates.com/companies/gb/2343760","GB 108 2213 56"
"London Borough of Redbridge","http://opendatacommunities.org/doc/london-borough-council/redbridge","5BGFHOUSING","General Fund Housing","5CHOMELESS","Homelessness","REV","Revenue","R5630","HAC Temporary Accomodation","05-THIRD","Third Party Payments","05H","Private contractors","6900","Nightly Let Plus Charges","3748016","202404",02/07/2023 00:00:00,1500,"31230","Employment and Recruitment Agencies","REDACTED DATA","ACCESS UK LTD T/AS ADAM","2343760","http://opencorporates.com/companies/gb/2343760","GB 108 2213 56"
"London Borough of Redbridge","http://opendatacommunities.org/doc/london-borough-council/redbridge","5BGFHOUSING","General Fund Housing","5CHOMELESS","Homelessness","REV","Revenue","R5630","HAC Temporary Accomodation","05-THIRD","Third Party Payments","05H","Private contractors","6900","Nightly Let Plus Charges","3748016","202404",02/07/2023 00:00:00,0,"31230","Employment and Recruitment Agencies","REDACTED DATA","ACCESS UK LTD T/AS ADAM","2343760","http://opencorporates.com/companies/gb/2343760","GB 108 2213 56"
"London Borough of Redbridge","http://opendatacommunities.org/doc/london-borough-council/redbridge","5BGFHOUSING","General Fund Housing","5CHOMELESS","Homelessness","REV","Revenue","R5630","HAC Temporary Accomodation","05-THIRD","Third Party Payments","05H","Private contractors","6900","Nightly Let Plus Charges","3748016","202404",02/07/2023 00:00:00,1140,"31230","Employment and Recruitment Agencies","REDACTED DATA","ACCESS UK LTD T/AS ADAM","2343760","http://opencorporates.com/companies/gb/2343760","GB 108 2213 56"
"London Borough of Redbridge","http://opendatacommunities.org/doc/london-borough-council/redbridge","5BGFHOUSING","General Fund Housing","5CHOMELESS","Homelessness","REV","Revenue","R5630","HAC Temporary Accomodation","05-THIRD","Third Party Payments","05H","Private contractors","6900","Nightly Let Plus Charges","3748016","202404",02/07/2023 00:00:00,0,"31230","Employment and Recruitment Agencies","REDACTED DATA","ACCESS UK LTD T/AS ADAM","2343760","http://opencorporates.com/companies/gb/2343760","GB 108 2213 56"
"London Borough of Redbridge","http://opendatacommunities.org/doc/london-borough-council/redbridge","5BGFHOUSING","General Fund Housing","5CHOMELESS","Homelessness","REV","Revenue","R5630","HAC Temporary Accomodation","05-THIRD","Third Party Payments","05H","Private contractors","6900","Nightly Let Plus Charges","3748016","202404",02/07/2023 00:00:00,0,"31230","Employment and Recruitment Agencies","REDACTED DATA","ACCESS UK LTD T/AS ADAM","2343760","http://opencorporates.com/companies/gb/2343760","GB 108 2213 56"
"London Borough of Redbridge","http://opendatacommunities.org/doc/london-borough-council/redbridge","5BGFHOUSING","General Fund Housing","5CHOMELESS","Homelessness","REV","Revenue","R5630","HAC Temporary Accomodation","05-THIRD","Third Party Payments","05H","Private contractors","6900","Nightly Let Plus Charges","3748016","202404",02/07/2023 00:00:00,990,"31230","Employment and Recruitment Agencies","REDACTED DATA","ACCESS UK LTD T/AS ADAM","2343760","http://opencorporates.com/companies/gb/2343760","GB 108 2213 56"
"London Borough of Redbridge","http://opendatacommunities.org/doc/london-borough-council/redbridge","5BGFHOUSING","General Fund Housing","5CHOMELESS","Homelessness","REV","Revenue","R5630","HAC Temporary Accomodation","05-THIRD","Third Party Payments","05H","Private contractors","6900","Nightly Let Plus Charges","3748016","202404",02/07/2023 00:00:00,927.9,"31230","Employment and Recruitment Agencies","REDACTED DATA","ACCESS UK LTD T/AS ADAM","2343760","http://opencorporates.com/companies/gb/2343760","GB 108 2213 56"
"London Borough of Redbridge","http://opendatacommunities.org/doc/london-borough-council/redbridge","5BGFHOUSING","General Fund Housing","5CHOMELESS","Homelessness","REV","Revenue","R5630","HAC Temporary Accomodation","05-THIRD","Third Party Payments","05H","Private contractors","6900","Nightly Let Plus Charges","3748016","202404",02/07/2023 00:00:00,0,"31230","Employment and Recruitment Agencies","REDACTED DATA","ACCESS UK LTD T/AS ADAM","2343760","http://opencorporates.com/companies/gb/2343760","GB 108 2213 56"
"London Borough of Redbridge","http://opendatacommunities.org/doc/london-borough-council/redbridge","5BGFHOUSING","General Fund Housing","5CHOMELESS","Homelessness","REV","Revenue","R5630","HAC Temporary Accomodation","05-THIRD","Third Party Payments","05H","Private contractors","6900","Nightly Let Plus Charges","3748016","202404",02/07/2023 00:00:00,1380,"31230","Employment and Recruitment Agencies","REDACTED DATA","ACCESS UK LTD T/AS ADAM","2343760","http://opencorporates.com/companies/gb/2343760","GB 108 2213 56"
"London Borough of Redbridge","http://opendatacommunities.org/doc/london-borough-council/redbridge","5BGFHOUSING","General Fund Housing","5CHOMELESS","Homelessness","REV","Revenue","R5630","HAC Temporary Accomodation","05-THIRD","Third Party Payments","05H","Private contractors","6900","Nightly Let Plus Charges","3748016","202404",02/07/2023 00:00:00,1842.9,"31230","Employment and Recruitment Agencies","REDACTED DATA","ACCESS UK LTD T/AS ADAM","2343760","http://opencorporates.com/companies/gb/2343760","GB 108 2213 56"
"London Borough of Redbridge","http://opendatacommunities.org/doc/london-borough-council/redbridge","5BGFHOUSING","General Fund Housing","5CHOMELESS","Homelessness","REV","Revenue","R5630","HAC Temporary Accomodation","05-THIRD","Third Party Payments","05H","Private contractors","6900","Nightly Let Plus Charges","3748016","202404",02/07/2023 00:00:00,0,"31230","Employment and Recruitment Agencies","REDACTED DATA","ACCESS UK LTD T/AS ADAM","2343760","http://opencorporates.com/companies/gb/2343760","GB 108 2213 56"
"London Borough of Redbridge","http://opendatacommunities.org/doc/london-borough-council/redbridge","5BGFHOUSING","General Fund Housing","5CHOMELESS","Homelessness","REV","Revenue","R5630","HAC Temporary Accomodation","05-THIRD","Third Party Payments","05H","Private contractors","6900","Nightly Let Plus Charges","3748016","202404",02/07/2023 00:00:00,855,"31230","Employment and Recruitment Agencies","REDACTED DATA","ACCESS UK LTD T/AS ADAM","2343760","http://opencorporates.com/companies/gb/2343760","GB 108 2213 56"
"London Borough of Redbridge","http://opendatacommunities.org/doc/london-borough-council/redbridge","5BGFHOUSING","General Fund Housing","5CHOMELESS","Homelessness","REV","Revenue","R5630","HAC Temporary Accomodation","05-THIRD","Third Party Payments","05H","Private contractors","6900","Nightly Let Plus Charges","3748016","202404",02/07/2023 00:00:00,0,"31230","Employment and Recruitment Agencies","REDACTED DATA","ACCESS UK LTD T/AS ADAM","2343760","http://opencorporates.com/companies/gb/2343760","GB 108 2213 56"
"London Borough of Redbridge","http://opendatacommunities.org/doc/london-borough-council/redbridge","5BGFHOUSING","General Fund Housing","5CHOMELESS","Homelessness","REV","Revenue","R5630","HAC Temporary Accomodation","05-THIRD","Third Party Payments","05H","Private contractors","6900","Nightly Let Plus Charges","3748016","202404",02/07/2023 00:00:00,1500,"31230","Employment and Recruitment Agencies","REDACTED DATA","ACCESS UK LTD T/AS ADAM","2343760","http://opencorporates.com/companies/gb/2343760","GB 108 2213 56"
"London Borough of Redbridge","http://opendatacommunities.org/doc/london-borough-council/redbridge","5BGFHOUSING","General Fund Housing","5CHOMELESS","Homelessness","REV","Revenue","R5630","HAC Temporary Accomodation","05-THIRD","Third Party Payments","05H","Private contractors","6900","Nightly Let Plus Charges","3748016","202404",02/07/2023 00:00:00,1230,"31230","Employment and Recruitment Agencies","REDACTED DATA","ACCESS UK LTD T/AS ADAM","2343760","http://opencorporates.com/companies/gb/2343760","GB 108 2213 56"
"London Borough of Redbridge","http://opendatacommunities.org/doc/london-borough-council/redbridge","5BGFHOUSING","General Fund Housing","5CHOMELESS","Homelessness","REV","Revenue","R5630","HAC Temporary Accomodation","05-THIRD","Third Party Payments","05H","Private contractors","6900","Nightly Let Plus Charges","3748016","202404",02/07/2023 00:00:00,0,"31230","Employment and Recruitment Agencies","REDACTED DATA","ACCESS UK LTD T/AS ADAM","2343760","http://opencorporates.com/companies/gb/2343760","GB 108 2213 56"
"London Borough of Redbridge","http://opendatacommunities.org/doc/london-borough-council/redbridge","5BGFHOUSING","General Fund Housing","5CHOMELESS","Homelessness","REV","Revenue","R5630","HAC Temporary Accomodation","05-THIRD","Third Party Payments","05H","Private contractors","6900","Nightly Let Plus Charges","3748016","202404",02/07/2023 00:00:00,0,"31230","Employment and Recruitment Agencies","REDACTED DATA","ACCESS UK LTD T/AS ADAM","2343760","http://opencorporates.com/companies/gb/2343760","GB 108 2213 56"
"London Borough of Redbridge","http://opendatacommunities.org/doc/london-borough-council/redbridge","5BGFHOUSING","General Fund Housing","5CHOMELESS","Homelessness","REV","Revenue","R5630","HAC Temporary Accomodation","05-THIRD","Third Party Payments","05H","Private contractors","6900","Nightly Let Plus Charges","3748016","202404",02/07/2023 00:00:00,1417.5,"31230","Employment and Recruitment Agencies","REDACTED DATA","ACCESS UK LTD T/AS ADAM","2343760","http://opencorporates.com/companies/gb/2343760","GB 108 2213 56"
"London Borough of Redbridge","http://opendatacommunities.org/doc/london-borough-council/redbridge","5BGFHOUSING","General Fund Housing","5CHOMELESS","Homelessness","REV","Revenue","R5630","HAC Temporary Accomodation","05-THIRD","Third Party Payments","05H","Private contractors","6900","Nightly Let Plus Charges","3748016","202404",02/07/2023 00:00:00,0,"31230","Employment and Recruitment Agencies","REDACTED DATA","ACCESS UK LTD T/AS ADAM","2343760","http://opencorporates.com/companies/gb/2343760","GB 108 2213 56"
"London Borough of Redbridge","http://opendatacommunities.org/doc/london-borough-council/redbridge","5BGFHOUSING","General Fund Housing","5CHOMELESS","Homelessness","REV","Revenue","R5630","HAC Temporary Accomodation","05-THIRD","Third Party Payments","05H","Private contractors","6900","Nightly Let Plus Charges","3748016","202404",02/07/2023 00:00:00,0,"31230","Employment and Recruitment Agencies","REDACTED DATA","ACCESS UK LTD T/AS ADAM","2343760","http://opencorporates.com/companies/gb/2343760","GB 108 2213 56"
"London Borough of Redbridge","http://opendatacommunities.org/doc/london-borough-council/redbridge","5BGFHOUSING","General Fund Housing","5CHOMELESS","Homelessness","REV","Revenue","R5630","HAC Temporary Accomodation","05-THIRD","Third Party Payments","05H","Private contractors","6900","Nightly Let Plus Charges","3748016","202404",02/07/2023 00:00:00,0,"31230","Employment and Recruitment Agencies","REDACTED DATA","ACCESS UK LTD T/AS ADAM","2343760","http://opencorporates.com/companies/gb/2343760","GB 108 2213 56"
"London Borough of Redbridge","http://opendatacommunities.org/doc/london-borough-council/redbridge","5BGFHOUSING","General Fund Housing","5CHOMELESS","Homelessness","REV","Revenue","R5630","HAC Temporary Accomodation","05-THIRD","Third Party Payments","05H","Private contractors","6900","Nightly Let Plus Charges","3748016","202404",02/07/2023 00:00:00,0,"31230","Employment and Recruitment Agencies","REDACTED DATA","ACCESS UK LTD T/AS ADAM","2343760","http://opencorporates.com/companies/gb/2343760","GB 108 2213 56"
"London Borough of Redbridge","http://opendatacommunities.org/doc/london-borough-council/redbridge","5BGFHOUSING","General Fund Housing","5CHOMELESS","Homelessness","REV","Revenue","R5630","HAC Temporary Accomodation","05-THIRD","Third Party Payments","05H","Private contractors","6900","Nightly Let Plus Charges","3748016","202404",02/07/2023 00:00:00,0,"31230","Employment and Recruitment Agencies","REDACTED DATA","ACCESS UK LTD T/AS ADAM","2343760","http://opencorporates.com/companies/gb/2343760","GB 108 2213 56"
"London Borough of Redbridge","http://opendatacommunities.org/doc/london-borough-council/redbridge","5BGFHOUSING","General Fund Housing","5CHOMELESS","Homelessness","REV","Revenue","R5630","HAC Temporary Accomodation","05-THIRD","Third Party Payments","05H","Private contractors","6900","Nightly Let Plus Charges","3748016","202404",02/07/2023 00:00:00,746.46,"31230","Employment and Recruitment Agencies","REDACTED DATA","ACCESS UK LTD T/AS ADAM","2343760","http://opencorporates.com/companies/gb/2343760","GB 108 2213 56"
"London Borough of Redbridge","http://opendatacommunities.org/doc/london-borough-council/redbridge","5BGFHOUSING","General Fund Housing","5CHOMELESS","Homelessness","REV","Revenue","R5630","HAC Temporary Accomodation","05-THIRD","Third Party Payments","05H","Private contractors","6900","Nightly Let Plus Charges","3748016","202404",02/07/2023 00:00:00,855,"31230","Employment and Recruitment Agencies","REDACTED DATA","ACCESS UK LTD T/AS ADAM","2343760","http://opencorporates.com/companies/gb/2343760","GB 108 2213 56"
"London Borough of Redbridge","http://opendatacommunities.org/doc/london-borough-council/redbridge","5BGFHOUSING","General Fund Housing","5CHOMELESS","Homelessness","REV","Revenue","R5630","HAC Temporary Accomodation","05-THIRD","Third Party Payments","05H","Private contractors","6900","Nightly Let Plus Charges","3748016","202404",02/07/2023 00:00:00,0,"31230","Employment and Recruitment Agencies","REDACTED DATA","ACCESS UK LTD T/AS ADAM","2343760","http://opencorporates.com/companies/gb/2343760","GB 108 2213 56"
"London Borough of Redbridge","http://opendatacommunities.org/doc/london-borough-council/redbridge","5BGFHOUSING","General Fund Housing","5CHOMELESS","Homelessness","REV","Revenue","R5630","HAC Temporary Accomodation","05-THIRD","Third Party Payments","05H","Private contractors","6900","Nightly Let Plus Charges","3748016","202404",02/07/2023 00:00:00,1818,"31230","Employment and Recruitment Agencies","REDACTED DATA","ACCESS UK LTD T/AS ADAM","2343760","http://opencorporates.com/companies/gb/2343760","GB 108 2213 56"
"London Borough of Redbridge","http://opendatacommunities.org/doc/london-borough-council/redbridge","5BGFHOUSING","General Fund Housing","5CHOMELESS","Homelessness","REV","Revenue","R5630","HAC Temporary Accomodation","05-THIRD","Third Party Payments","05H","Private contractors","6900","Nightly Let Plus Charges","3748016","202404",02/07/2023 00:00:00,855,"31230","Employment and Recruitment Agencies","REDACTED DATA","ACCESS UK LTD T/AS ADAM","2343760","http://opencorporates.com/companies/gb/2343760","GB 108 2213 56"
"London Borough of Redbridge","http://opendatacommunities.org/doc/london-borough-council/redbridge","5BGFHOUSING","General Fund Housing","5CHOMELESS","Homelessness","REV","Revenue","R5630","HAC Temporary Accomodation","05-THIRD","Third Party Payments","05H","Private contractors","6900","Nightly Let Plus Charges","3748016","202404",02/07/2023 00:00:00,0,"31230","Employment and Recruitment Agencies","REDACTED DATA","ACCESS UK LTD T/AS ADAM","2343760","http://opencorporates.com/companies/gb/2343760","GB 108 2213 56"
"London Borough of Redbridge","http://opendatacommunities.org/doc/london-borough-council/redbridge","5BGFHOUSING","General Fund Housing","5CHOMELESS","Homelessness","REV","Revenue","R5630","HAC Temporary Accomodation","05-THIRD","Third Party Payments","05H","Private contractors","6900","Nightly Let Plus Charges","3748016","202404",02/07/2023 00:00:00,855,"31230","Employment and Recruitment Agencies","REDACTED DATA","ACCESS UK LTD T/AS ADAM","2343760","http://opencorporates.com/companies/gb/2343760","GB 108 2213 56"
"London Borough of Redbridge","http://opendatacommunities.org/doc/london-borough-council/redbridge","5BGFHOUSING","General Fund Housing","5CHOMELESS","Homelessness","REV","Revenue","R5630","HAC Temporary Accomodation","05-THIRD","Third Party Payments","05H","Private contractors","6900","Nightly Let Plus Charges","3748016","202404",02/07/2023 00:00:00,1230,"31230","Employment and Recruitment Agencies","REDACTED DATA","ACCESS UK LTD T/AS ADAM","2343760","http://opencorporates.com/companies/gb/2343760","GB 108 2213 56"
"London Borough of Redbridge","http://opendatacommunities.org/doc/london-borough-council/redbridge","5BGFHOUSING","General Fund Housing","5CHOMELESS","Homelessness","REV","Revenue","R5630","HAC Temporary Accomodation","05-THIRD","Third Party Payments","05H","Private contractors","6900","Nightly Let Plus Charges","3748016","202404",02/07/2023 00:00:00,0,"31230","Employment and Recruitment Agencies","REDACTED DATA","ACCESS UK LTD T/AS ADAM","2343760","http://opencorporates.com/companies/gb/2343760","GB 108 2213 56"
"London Borough of Redbridge","http://opendatacommunities.org/doc/london-borough-council/redbridge","5BGFHOUSING","General Fund Housing","5CHOMELESS","Homelessness","REV","Revenue","R5630","HAC Temporary Accomodation","05-THIRD","Third Party Payments","05H","Private contractors","6900","Nightly Let Plus Charges","3748016","202404",02/07/2023 00:00:00,1260,"31230","Employment and Recruitment Agencies","REDACTED DATA","ACCESS UK LTD T/AS ADAM","2343760","http://opencorporates.com/companies/gb/2343760","GB 108 2213 56"
"London Borough of Redbridge","http://opendatacommunities.org/doc/london-borough-council/redbridge","5BGFHOUSING","General Fund Housing","5CHOMELESS","Homelessness","REV","Revenue","R5630","HAC Temporary Accomodation","05-THIRD","Third Party Payments","05H","Private contractors","6900","Nightly Let Plus Charges","3748016","202404",02/07/2023 00:00:00,0,"31230","Employment and Recruitment Agencies","REDACTED DATA","ACCESS UK LTD T/AS ADAM","2343760","http://opencorporates.com/companies/gb/2343760","GB 108 2213 56"
"London Borough of Redbridge","http://opendatacommunities.org/doc/london-borough-council/redbridge","5BGFHOUSING","General Fund Housing","5CHOMELESS","Homelessness","REV","Revenue","R5630","HAC Temporary Accomodation","05-THIRD","Third Party Payments","05H","Private contractors","6900","Nightly Let Plus Charges","3748016","202404",02/07/2023 00:00:00,0,"31230","Employment and Recruitment Agencies","REDACTED DATA","ACCESS UK LTD T/AS ADAM","2343760","http://opencorporates.com/companies/gb/2343760","GB 108 2213 56"
"London Borough of Redbridge","http://opendatacommunities.org/doc/london-borough-council/redbridge","5BGFHOUSING","General Fund Housing","5CHOMELESS","Homelessness","REV","Revenue","R5630","HAC Temporary Accomodation","05-THIRD","Third Party Payments","05H","Private contractors","6900","Nightly Let Plus Charges","3748016","202404",02/07/2023 00:00:00,772.2,"31230","Employment and Recruitment Agencies","REDACTED DATA","ACCESS UK LTD T/AS ADAM","2343760","http://opencorporates.com/companies/gb/2343760","GB 108 2213 56"
"London Borough of Redbridge","http://opendatacommunities.org/doc/london-borough-council/redbridge","5BGFHOUSING","General Fund Housing","5CHOMELESS","Homelessness","REV","Revenue","R5630","HAC Temporary Accomodation","05-THIRD","Third Party Payments","05H","Private contractors","6900","Nightly Let Plus Charges","3748016","202404",02/07/2023 00:00:00,855,"31230","Employment and Recruitment Agencies","REDACTED DATA","ACCESS UK LTD T/AS ADAM","2343760","http://opencorporates.com/companies/gb/2343760","GB 108 2213 56"
"London Borough of Redbridge","http://opendatacommunities.org/doc/london-borough-council/redbridge","5BGFHOUSING","General Fund Housing","5CHOMELESS","Homelessness","REV","Revenue","R5630","HAC Temporary Accomodation","05-THIRD","Third Party Payments","05H","Private contractors","6900","Nightly Let Plus Charges","3748016","202404",02/07/2023 00:00:00,0,"31230","Employment and Recruitment Agencies","REDACTED DATA","ACCESS UK LTD T/AS ADAM","2343760","http://opencorporates.com/companies/gb/2343760","GB 108 2213 56"
"London Borough of Redbridge","http://opendatacommunities.org/doc/london-borough-council/redbridge","5BGFHOUSING","General Fund Housing","5CHOMELESS","Homelessness","REV","Revenue","R5630","HAC Temporary Accomodation","05-THIRD","Third Party Payments","05H","Private contractors","6900","Nightly Let Plus Charges","3748016","202404",02/07/2023 00:00:00,855,"31230","Employment and Recruitment Agencies","REDACTED DATA","ACCESS UK LTD T/AS ADAM","2343760","http://opencorporates.com/companies/gb/2343760","GB 108 2213 56"
"London Borough of Redbridge","http://opendatacommunities.org/doc/london-borough-council/redbridge","5BGFHOUSING","General Fund Housing","5CHOMELESS","Homelessness","REV","Revenue","R5630","HAC Temporary Accomodation","05-THIRD","Third Party Payments","05H","Private contractors","6900","Nightly Let Plus Charges","3748016","202404",02/07/2023 00:00:00,0,"31230","Employment and Recruitment Agencies","REDACTED DATA","ACCESS UK LTD T/AS ADAM","2343760","http://opencorporates.com/companies/gb/2343760","GB 108 2213 56"
"London Borough of Redbridge","http://opendatacommunities.org/doc/london-borough-council/redbridge","5BGFHOUSING","General Fund Housing","5CHOMELESS","Homelessness","REV","Revenue","R5630","HAC Temporary Accomodation","05-THIRD","Third Party Payments","05H","Private contractors","6900","Nightly Let Plus Charges","3748016","202404",02/07/2023 00:00:00,0,"31230","Employment and Recruitment Agencies","REDACTED DATA","ACCESS UK LTD T/AS ADAM","2343760","http://opencorporates.com/companies/gb/2343760","GB 108 2213 56"
"London Borough of Redbridge","http://opendatacommunities.org/doc/london-borough-council/redbridge","5BGFHOUSING","General Fund Housing","5CHOMELESS","Homelessness","REV","Revenue","R5630","HAC Temporary Accomodation","05-THIRD","Third Party Payments","05H","Private contractors","6900","Nightly Let Plus Charges","3748016","202404",02/07/2023 00:00:00,855,"31230","Employment and Recruitment Agencies","REDACTED DATA","ACCESS UK LTD T/AS ADAM","2343760","http://opencorporates.com/companies/gb/2343760","GB 108 2213 56"
"London Borough of Redbridge","http://opendatacommunities.org/doc/london-borough-council/redbridge","5BGFHOUSING","General Fund Housing","5CHOMELESS","Homelessness","REV","Revenue","R5630","HAC Temporary Accomodation","05-THIRD","Third Party Payments","05H","Private contractors","6900","Nightly Let Plus Charges","3748016","202404",02/07/2023 00:00:00,0,"31230","Employment and Recruitment Agencies","REDACTED DATA","ACCESS UK LTD T/AS ADAM","2343760","http://opencorporates.com/companies/gb/2343760","GB 108 2213 56"
"London Borough of Redbridge","http://opendatacommunities.org/doc/london-borough-council/redbridge","5BGFHOUSING","General Fund Housing","5CHOMELESS","Homelessness","REV","Revenue","R5630","HAC Temporary Accomodation","05-THIRD","Third Party Payments","05H","Private contractors","6900","Nightly Let Plus Charges","3748016","202404",02/07/2023 00:00:00,855,"31230","Employment and Recruitment Agencies","REDACTED DATA","ACCESS UK LTD T/AS ADAM","2343760","http://opencorporates.com/companies/gb/2343760","GB 108 2213 56"
"London Borough of Redbridge","http://opendatacommunities.org/doc/london-borough-council/redbridge","5BGFHOUSING","General Fund Housing","5CHOMELESS","Homelessness","REV","Revenue","R5630","HAC Temporary Accomodation","05-THIRD","Third Party Payments","05H","Private contractors","6900","Nightly Let Plus Charges","3748016","202404",02/07/2023 00:00:00,0,"31230","Employment and Recruitment Agencies","REDACTED DATA","ACCESS UK LTD T/AS ADAM","2343760","http://opencorporates.com/companies/gb/2343760","GB 108 2213 56"
"London Borough of Redbridge","http://opendatacommunities.org/doc/london-borough-council/redbridge","5BGFHOUSING","General Fund Housing","5CHOMELESS","Homelessness","REV","Revenue","R5630","HAC Temporary Accomodation","05-THIRD","Third Party Payments","05H","Private contractors","6900","Nightly Let Plus Charges","3748016","202404",02/07/2023 00:00:00,855,"31230","Employment and Recruitment Agencies","REDACTED DATA","ACCESS UK LTD T/AS ADAM","2343760","http://opencorporates.com/companies/gb/2343760","GB 108 2213 56"
"London Borough of Redbridge","http://opendatacommunities.org/doc/london-borough-council/redbridge","5BGFHOUSING","General Fund Housing","5CHOMELESS","Homelessness","REV","Revenue","R5630","HAC Temporary Accomodation","05-THIRD","Third Party Payments","05H","Private contractors","6900","Nightly Let Plus Charges","3748016","202404",02/07/2023 00:00:00,0,"31230","Employment and Recruitment Agencies","REDACTED DATA","ACCESS UK LTD T/AS ADAM","2343760","http://opencorporates.com/companies/gb/2343760","GB 108 2213 56"
"London Borough of Redbridge","http://opendatacommunities.org/doc/london-borough-council/redbridge","5BGFHOUSING","General Fund Housing","5CHOMELESS","Homelessness","REV","Revenue","R5630","HAC Temporary Accomodation","05-THIRD","Third Party Payments","05H","Private contractors","6900","Nightly Let Plus Charges","3748016","202404",02/07/2023 00:00:00,0,"31230","Employment and Recruitment Agencies","REDACTED DATA","ACCESS UK LTD T/AS ADAM","2343760","http://opencorporates.com/companies/gb/2343760","GB 108 2213 56"
"London Borough of Redbridge","http://opendatacommunities.org/doc/london-borough-council/redbridge","5BGFHOUSING","General Fund Housing","5CHOMELESS","Homelessness","REV","Revenue","R5630","HAC Temporary Accomodation","05-THIRD","Third Party Payments","05H","Private contractors","6900","Nightly Let Plus Charges","3748016","202404",02/07/2023 00:00:00,1617.9,"31230","Employment and Recruitment Agencies","REDACTED DATA","ACCESS UK LTD T/AS ADAM","2343760","http://opencorporates.com/companies/gb/2343760","GB 108 2213 56"
"London Borough of Redbridge","http://opendatacommunities.org/doc/london-borough-council/redbridge","5BGFHOUSING","General Fund Housing","5CHOMELESS","Homelessness","REV","Revenue","R5630","HAC Temporary Accomodation","05-THIRD","Third Party Payments","05H","Private contractors","6900","Nightly Let Plus Charges","3748016","202404",02/07/2023 00:00:00,0,"31230","Employment and Recruitment Agencies","REDACTED DATA","ACCESS UK LTD T/AS ADAM","2343760","http://opencorporates.com/companies/gb/2343760","GB 108 2213 56"
"London Borough of Redbridge","http://opendatacommunities.org/doc/london-borough-council/redbridge","5BGFHOUSING","General Fund Housing","5CHOMELESS","Homelessness","REV","Revenue","R5630","HAC Temporary Accomodation","05-THIRD","Third Party Payments","05H","Private contractors","6900","Nightly Let Plus Charges","3748016","202404",02/07/2023 00:00:00,855,"31230","Employment and Recruitment Agencies","REDACTED DATA","ACCESS UK LTD T/AS ADAM","2343760","http://opencorporates.com/companies/gb/2343760","GB 108 2213 56"
"London Borough of Redbridge","http://opendatacommunities.org/doc/london-borough-council/redbridge","5BGFHOUSING","General Fund Housing","5CHOMELESS","Homelessness","REV","Revenue","R5630","HAC Temporary Accomodation","05-THIRD","Third Party Payments","05H","Private contractors","6900","Nightly Let Plus Charges","3748016","202404",02/07/2023 00:00:00,0,"31230","Employment and Recruitment Agencies","REDACTED DATA","ACCESS UK LTD T/AS ADAM","2343760","http://opencorporates.com/companies/gb/2343760","GB 108 2213 56"
"London Borough of Redbridge","http://opendatacommunities.org/doc/london-borough-council/redbridge","5BGFHOUSING","General Fund Housing","5CHOMELESS","Homelessness","REV","Revenue","R5630","HAC Temporary Accomodation","05-THIRD","Third Party Payments","05H","Private contractors","6900","Nightly Let Plus Charges","3748016","202404",02/07/2023 00:00:00,1380,"31230","Employment and Recruitment Agencies","REDACTED DATA","ACCESS UK LTD T/AS ADAM","2343760","http://opencorporates.com/companies/gb/2343760","GB 108 2213 56"
"London Borough of Redbridge","http://opendatacommunities.org/doc/london-borough-council/redbridge","5BGFHOUSING","General Fund Housing","5CHOMELESS","Homelessness","REV","Revenue","R5630","HAC Temporary Accomodation","05-THIRD","Third Party Payments","05H","Private contractors","6900","Nightly Let Plus Charges","3748016","202404",02/07/2023 00:00:00,0,"31230","Employment and Recruitment Agencies","REDACTED DATA","ACCESS UK LTD T/AS ADAM","2343760","http://opencorporates.com/companies/gb/2343760","GB 108 2213 56"
"London Borough of Redbridge","http://opendatacommunities.org/doc/london-borough-council/redbridge","5BGFHOUSING","General Fund Housing","5CHOMELESS","Homelessness","REV","Revenue","R5630","HAC Temporary Accomodation","05-THIRD","Third Party Payments","05H","Private contractors","6900","Nightly Let Plus Charges","3748016","202404",02/07/2023 00:00:00,1680,"31230","Employment and Recruitment Agencies","REDACTED DATA","ACCESS UK LTD T/AS ADAM","2343760","http://opencorporates.com/companies/gb/2343760","GB 108 2213 56"
"London Borough of Redbridge","http://opendatacommunities.org/doc/london-borough-council/redbridge","5BGFHOUSING","General Fund Housing","5CHOMELESS","Homelessness","REV","Revenue","R5630","HAC Temporary Accomodation","05-THIRD","Third Party Payments","05H","Private contractors","6900","Nightly Let Plus Charges","3748016","202404",02/07/2023 00:00:00,0,"31230","Employment and Recruitment Agencies","REDACTED DATA","ACCESS UK LTD T/AS ADAM","2343760","http://opencorporates.com/companies/gb/2343760","GB 108 2213 56"
"London Borough of Redbridge","http://opendatacommunities.org/doc/london-borough-council/redbridge","5BGFHOUSING","General Fund Housing","5CHOMELESS","Homelessness","REV","Revenue","R5630","HAC Temporary Accomodation","05-THIRD","Third Party Payments","05H","Private contractors","6900","Nightly Let Plus Charges","3748016","202404",02/07/2023 00:00:00,0,"31230","Employment and Recruitment Agencies","REDACTED DATA","ACCESS UK LTD T/AS ADAM","2343760","http://opencorporates.com/companies/gb/2343760","GB 108 2213 56"
"London Borough of Redbridge","http://opendatacommunities.org/doc/london-borough-council/redbridge","5BGFHOUSING","General Fund Housing","5CHOMELESS","Homelessness","REV","Revenue","R5630","HAC Temporary Accomodation","05-THIRD","Third Party Payments","05H","Private contractors","6900","Nightly Let Plus Charges","3748016","202404",02/07/2023 00:00:00,0,"31230","Employment and Recruitment Agencies","REDACTED DATA","ACCESS UK LTD T/AS ADAM","2343760","http://opencorporates.com/companies/gb/2343760","GB 108 2213 56"
"London Borough of Redbridge","http://opendatacommunities.org/doc/london-borough-council/redbridge","5BGFHOUSING","General Fund Housing","5CHOMELESS","Homelessness","REV","Revenue","R5630","HAC Temporary Accomodation","05-THIRD","Third Party Payments","05H","Private contractors","6900","Nightly Let Plus Charges","3748016","202404",02/07/2023 00:00:00,855,"31230","Employment and Recruitment Agencies","REDACTED DATA","ACCESS UK LTD T/AS ADAM","2343760","http://opencorporates.com/companies/gb/2343760","GB 108 2213 56"
"London Borough of Redbridge","http://opendatacommunities.org/doc/london-borough-council/redbridge","6BSOCIALSERV","Social Services","6CCHILLOOKED","Children Looked After","REV","Revenue","R2166","Child Protection Assmt Service Soc Care","06-TRANSFER","Transfer Payments","06B","Social Services Clients","7057","Section 17 Payments","3747998","202404",09/06/2023 00:00:00,601.61,"80170","Travel Agents and Holiday Companies","REDACTED DATA","CLICK TRAVEL LTD","3770815","http://opencorporates.com/companies/gb/3770815","799566639"
"London Borough of Redbridge","http://opendatacommunities.org/doc/london-borough-council/redbridge","6BSOCIALSERV","Social Services","6CCHILLOOKED","Children Looked After","REV","Revenue","R2166","Child Protection Assmt Service Soc Care","06-TRANSFER","Transfer Payments","06B","Social Services Clients","7057","Section 17 Payments","3747998","202404",09/06/2023 00:00:00,83.33,"80170","Travel Agents and Holiday Companies","REDACTED DATA","CLICK TRAVEL LTD","3770815","http://opencorporates.com/companies/gb/3770815","799566639"
"London Borough of Redbridge","http://opendatacommunities.org/doc/london-borough-council/redbridge","6BSOCIALSERV","Social Services","6CCHILLOOKED","Children Looked After","REV","Revenue","R2166","Child Protection Assmt Service Soc Care","06-TRANSFER","Transfer Payments","06B","Social Services Clients","7057","Section 17 Payments","3747998","202404",30/05/2023 00:00:00,1717.98,"80170","Travel Agents and Holiday Companies","REDACTED DATA","CLICK TRAVEL LTD","3770815","http://opencorporates.com/companies/gb/3770815","799566639"
"London Borough of Redbridge","http://opendatacommunities.org/doc/london-borough-council/redbridge","6BSOCIALSERV","Social Services","6CCHILLOOKED","Children Looked After","REV","Revenue","R2166","Child Protection Assmt Service Soc Care","06-TRANSFER","Transfer Payments","06B","Social Services Clients","7057","Section 17 Payments","3747998","202404",12/06/2023 00:00:00,1283.22,"80170","Travel Agents and Holiday Companies","REDACTED DATA","CLICK TRAVEL LTD","3770815","http://opencorporates.com/companies/gb/3770815","799566639"
"London Borough of Redbridge","http://opendatacommunities.org/doc/london-borough-council/redbridge","6BSOCIALSERV","Social Services","6CCHILLOOKED","Children Looked After","REV","Revenue","R2166","Child Protection Assmt Service Soc Care","06-TRANSFER","Transfer Payments","06B","Social Services Clients","7057","Section 17 Payments","3747998","202404",12/06/2023 00:00:00,3,"80170","Travel Agents and Holiday Companies","REDACTED DATA","CLICK TRAVEL LTD","3770815","http://opencorporates.com/companies/gb/3770815","799566639"
"London Borough of Redbridge","http://opendatacommunities.org/doc/london-borough-council/redbridge","6BSOCIALSERV","Social Services","6CCHILLOOKED","Children Looked After","REV","Revenue","R2166","Child Protection Assmt Service Soc Care","06-TRANSFER","Transfer Payments","06B","Social Services Clients","7057","Section 17 Payments","3747998","202404",09/06/2023 00:00:00,3,"80170","Travel Agents and Holiday Companies","REDACTED DATA","CLICK TRAVEL LTD","3770815","http://opencorporates.com/companies/gb/3770815","799566639"
"London Borough of Redbridge","http://opendatacommunities.org/doc/london-borough-council/redbridge","6BSOCIALSERV","Social Services","6CCHILLOOKED","Children Looked After","REV","Revenue","R2166","Child Protection Assmt Service Soc Care","06-TRANSFER","Transfer Payments","06B","Social Services Clients","7057","Section 17 Payments","3747998","202404",02/06/2023 00:00:00,3,"80170","Travel Agents and Holiday Companies","REDACTED DATA","CLICK TRAVEL LTD","3770815","http://opencorporates.com/companies/gb/3770815","799566639"
"London Borough of Redbridge","http://opendatacommunities.org/doc/london-borough-council/redbridge","6BSOCIALSERV","Social Services","6CCHILLOOKED","Children Looked After","REV","Revenue","R2166","Child Protection Assmt Service Soc Care","06-TRANSFER","Transfer Payments","06B","Social Services Clients","7057","Section 17 Payments","3747998","202404",09/06/2023 00:00:00,3,"80170","Travel Agents and Holiday Companies","REDACTED DATA","CLICK TRAVEL LTD","3770815","http://opencorporates.com/companies/gb/3770815","799566639"
"London Borough of Redbridge","http://opendatacommunities.org/doc/london-borough-council/redbridge","6BSOCIALSERV","Social Services","6CCHILLOOKED","Children Looked After","REV","Revenue","R2166","Child Protection Assmt Service Soc Care","06-TRANSFER","Transfer Payments","06B","Social Services Clients","7057","Section 17 Payments","3747998","202404",02/06/2023 00:00:00,650.72,"80170","Travel Agents and Holiday Companies","REDACTED DATA","CLICK TRAVEL LTD","3770815","http://opencorporates.com/companies/gb/3770815","799566639"
"London Borough of Redbridge","http://opendatacommunities.org/doc/london-borough-council/redbridge","6BSOCIALSERV","Social Services","6CCHILLOOKED","Children Looked After","REV","Revenue","R2166","Child Protection Assmt Service Soc Care","06-TRANSFER","Transfer Payments","06B","Social Services Clients","7057","Section 17 Payments","3747998","202404",15/06/2023 00:00:00,304.77,"80170","Travel Agents and Holiday Companies","REDACTED DATA","CLICK TRAVEL LTD","3770815","http://opencorporates.com/companies/gb/3770815","799566639"
"London Borough of Redbridge","http://opendatacommunities.org/doc/london-borough-council/redbridge","6BSOCIALSERV","Social Services","6CCHILLOOKED","Children Looked After","REV","Revenue","R2166","Child Protection Assmt Service Soc Care","06-TRANSFER","Transfer Payments","06B","Social Services Clients","7057","Section 17 Payments","3747998","202404",15/06/2023 00:00:00,2348.25,"80170","Travel Agents and Holiday Companies","REDACTED DATA","CLICK TRAVEL LTD","3770815","http://opencorporates.com/companies/gb/3770815","799566639"
"London Borough of Redbridge","http://opendatacommunities.org/doc/london-borough-council/redbridge","5BGFHOUSING","General Fund Housing","5CHOMELESS","Homelessness","REV","Revenue","R5630","HAC Temporary Accomodation","05-THIRD","Third Party Payments","05H","Private contractors","6900","Nightly Let Plus Charges","3748016","202404",02/07/2023 00:00:00,0,"31230","Employment and Recruitment Agencies","REDACTED DATA","ACCESS UK LTD T/AS ADAM","2343760","http://opencorporates.com/companies/gb/2343760","GB 108 2213 56"
"London Borough of Redbridge","http://opendatacommunities.org/doc/london-borough-council/redbridge","5BGFHOUSING","General Fund Housing","5CHOMELESS","Homelessness","REV","Revenue","R5630","HAC Temporary Accomodation","05-THIRD","Third Party Payments","05H","Private contractors","6900","Nightly Let Plus Charges","3748016","202404",02/07/2023 00:00:00,927.9,"31230","Employment and Recruitment Agencies","REDACTED DATA","ACCESS UK LTD T/AS ADAM","2343760","http://opencorporates.com/companies/gb/2343760","GB 108 2213 56"
"London Borough of Redbridge","http://opendatacommunities.org/doc/london-borough-council/redbridge","5BGFHOUSING","General Fund Housing","5CHOMELESS","Homelessness","REV","Revenue","R5630","HAC Temporary Accomodation","05-THIRD","Third Party Payments","05H","Private contractors","6900","Nightly Let Plus Charges","3748016","202404",02/07/2023 00:00:00,0,"31230","Employment and Recruitment Agencies","REDACTED DATA","ACCESS UK LTD T/AS ADAM","2343760","http://opencorporates.com/companies/gb/2343760","GB 108 2213 56"
"London Borough of Redbridge","http://opendatacommunities.org/doc/london-borough-council/redbridge","5BGFHOUSING","General Fund Housing","5CHOMELESS","Homelessness","REV","Revenue","R5630","HAC Temporary Accomodation","05-THIRD","Third Party Payments","05H","Private contractors","6900","Nightly Let Plus Charges","3748016","202404",02/07/2023 00:00:00,855,"31230","Employment and Recruitment Agencies","REDACTED DATA","ACCESS UK LTD T/AS ADAM","2343760","http://opencorporates.com/companies/gb/2343760","GB 108 2213 56"
"London Borough of Redbridge","http://opendatacommunities.org/doc/london-borough-council/redbridge","5BGFHOUSING","General Fund Housing","5CHOMELESS","Homelessness","REV","Revenue","R5630","HAC Temporary Accomodation","05-THIRD","Third Party Payments","05H","Private contractors","6900","Nightly Let Plus Charges","3748016","202404",02/07/2023 00:00:00,0,"31230","Employment and Recruitment Agencies","REDACTED DATA","ACCESS UK LTD T/AS ADAM","2343760","http://opencorporates.com/companies/gb/2343760","GB 108 2213 56"
"London Borough of Redbridge","http://opendatacommunities.org/doc/london-borough-council/redbridge","5BGFHOUSING","General Fund Housing","5CHOMELESS","Homelessness","REV","Revenue","R5630","HAC Temporary Accomodation","05-THIRD","Third Party Payments","05H","Private contractors","6900","Nightly Let Plus Charges","3748016","202404",02/07/2023 00:00:00,1500,"31230","Employment and Recruitment Agencies","REDACTED DATA","ACCESS UK LTD T/AS ADAM","2343760","http://opencorporates.com/companies/gb/2343760","GB 108 2213 56"
"London Borough of Redbridge","http://opendatacommunities.org/doc/london-borough-council/redbridge","5BGFHOUSING","General Fund Housing","5CHOMELESS","Homelessness","REV","Revenue","R5630","HAC Temporary Accomodation","05-THIRD","Third Party Payments","05H","Private contractors","6900","Nightly Let Plus Charges","3748016","202404",02/07/2023 00:00:00,0,"31230","Employment and Recruitment Agencies","REDACTED DATA","ACCESS UK LTD T/AS ADAM","2343760","http://opencorporates.com/companies/gb/2343760","GB 108 2213 56"
"London Borough of Redbridge","http://opendatacommunities.org/doc/london-borough-council/redbridge","5BGFHOUSING","General Fund Housing","5CHOMELESS","Homelessness","REV","Revenue","R5630","HAC Temporary Accomodation","05-THIRD","Third Party Payments","05H","Private contractors","6900","Nightly Let Plus Charges","3748016","202404",02/07/2023 00:00:00,855,"31230","Employment and Recruitment Agencies","REDACTED DATA","ACCESS UK LTD T/AS ADAM","2343760","http://opencorporates.com/companies/gb/2343760","GB 108 2213 56"
"London Borough of Redbridge","http://opendatacommunities.org/doc/london-borough-council/redbridge","5BGFHOUSING","General Fund Housing","5CHOMELESS","Homelessness","REV","Revenue","R5630","HAC Temporary Accomodation","05-THIRD","Third Party Payments","05H","Private contractors","6900","Nightly Let Plus Charges","3748016","202404",02/07/2023 00:00:00,0,"31230","Employment and Recruitment Agencies","REDACTED DATA","ACCESS UK LTD T/AS ADAM","2343760","http://opencorporates.com/companies/gb/2343760","GB 108 2213 56"
"London Borough of Redbridge","http://opendatacommunities.org/doc/london-borough-council/redbridge","5BGFHOUSING","General Fund Housing","5CHOMELESS","Homelessness","REV","Revenue","R5630","HAC Temporary Accomodation","05-THIRD","Third Party Payments","05H","Private contractors","6900","Nightly Let Plus Charges","3748016","202404",02/07/2023 00:00:00,855,"31230","Employment and Recruitment Agencies","REDACTED DATA","ACCESS UK LTD T/AS ADAM","2343760","http://opencorporates.com/companies/gb/2343760","GB 108 2213 56"
"London Borough of Redbridge","http://opendatacommunities.org/doc/london-borough-council/redbridge","5BGFHOUSING","General Fund Housing","5CHOMELESS","Homelessness","REV","Revenue","R5630","HAC Temporary Accomodation","05-THIRD","Third Party Payments","05H","Private contractors","6900","Nightly Let Plus Charges","3748016","202404",02/07/2023 00:00:00,0,"31230","Employment and Recruitment Agencies","REDACTED DATA","ACCESS UK LTD T/AS ADAM","2343760","http://opencorporates.com/companies/gb/2343760","GB 108 2213 56"
"London Borough of Redbridge","http://opendatacommunities.org/doc/london-borough-council/redbridge","5BGFHOUSING","General Fund Housing","5CHOMELESS","Homelessness","REV","Revenue","R5630","HAC Temporary Accomodation","05-THIRD","Third Party Payments","05H","Private contractors","6900","Nightly Let Plus Charges","3748016","202404",02/07/2023 00:00:00,855,"31230","Employment and Recruitment Agencies","REDACTED DATA","ACCESS UK LTD T/AS ADAM","2343760","http://opencorporates.com/companies/gb/2343760","GB 108 2213 56"
"London Borough of Redbridge","http://opendatacommunities.org/doc/london-borough-council/redbridge","5BGFHOUSING","General Fund Housing","5CHOMELESS","Homelessness","REV","Revenue","R5630","HAC Temporary Accomodation","05-THIRD","Third Party Payments","05H","Private contractors","6900","Nightly Let Plus Charges","3748016","202404",02/07/2023 00:00:00,0,"31230","Employment and Recruitment Agencies","REDACTED DATA","ACCESS UK LTD T/AS ADAM","2343760","http://opencorporates.com/companies/gb/2343760","GB 108 2213 56"
"London Borough of Redbridge","http://opendatacommunities.org/doc/london-borough-council/redbridge","5BGFHOUSING","General Fund Housing","5CHOMELESS","Homelessness","REV","Revenue","R5630","HAC Temporary Accomodation","05-THIRD","Third Party Payments","05H","Private contractors","6900","Nightly Let Plus Charges","3748016","202404",02/07/2023 00:00:00,855,"31230","Employment and Recruitment Agencies","REDACTED DATA","ACCESS UK LTD T/AS ADAM","2343760","http://opencorporates.com/companies/gb/2343760","GB 108 2213 56"
"London Borough of Redbridge","http://opendatacommunities.org/doc/london-borough-council/redbridge","5BGFHOUSING","General Fund Housing","5CHOMELESS","Homelessness","REV","Revenue","R5630","HAC Temporary Accomodation","05-THIRD","Third Party Payments","05H","Private contractors","6900","Nightly Let Plus Charges","3748016","202404",02/07/2023 00:00:00,0,"31230","Employment and Recruitment Agencies","REDACTED DATA","ACCESS UK LTD T/AS ADAM","2343760","http://opencorporates.com/companies/gb/2343760","GB 108 2213 56"
"London Borough of Redbridge","http://opendatacommunities.org/doc/london-borough-council/redbridge","5BGFHOUSING","General Fund Housing","5CHOMELESS","Homelessness","REV","Revenue","R5630","HAC Temporary Accomodation","05-THIRD","Third Party Payments","05H","Private contractors","6900","Nightly Let Plus Charges","3748016","202404",02/07/2023 00:00:00,855,"31230","Employment and Recruitment Agencies","REDACTED DATA","ACCESS UK LTD T/AS ADAM","2343760","http://opencorporates.com/companies/gb/2343760","GB 108 2213 56"
"London Borough of Redbridge","http://opendatacommunities.org/doc/london-borough-council/redbridge","5BGFHOUSING","General Fund Housing","5CHOMELESS","Homelessness","REV","Revenue","R5630","HAC Temporary Accomodation","05-THIRD","Third Party Payments","05H","Private contractors","6900","Nightly Let Plus Charges","3748016","202404",02/07/2023 00:00:00,0,"31230","Employment and Recruitment Agencies","REDACTED DATA","ACCESS UK LTD T/AS ADAM","2343760","http://opencorporates.com/companies/gb/2343760","GB 108 2213 56"
"London Borough of Redbridge","http://opendatacommunities.org/doc/london-borough-council/redbridge","5BGFHOUSING","General Fund Housing","5CHOMELESS","Homelessness","REV","Revenue","R5630","HAC Temporary Accomodation","05-THIRD","Third Party Payments","05H","Private contractors","6900","Nightly Let Plus Charges","3748016","202404",02/07/2023 00:00:00,855,"31230","Employment and Recruitment Agencies","REDACTED DATA","ACCESS UK LTD T/AS ADAM","2343760","http://opencorporates.com/companies/gb/2343760","GB 108 2213 56"
"London Borough of Redbridge","http://opendatacommunities.org/doc/london-borough-council/redbridge","5BGFHOUSING","General Fund Housing","5CHOMELESS","Homelessness","REV","Revenue","R5630","HAC Temporary Accomodation","05-THIRD","Third Party Payments","05H","Private contractors","6900","Nightly Let Plus Charges","3748016","202404",02/07/2023 00:00:00,0,"31230","Employment and Recruitment Agencies","REDACTED DATA","ACCESS UK LTD T/AS ADAM","2343760","http://opencorporates.com/companies/gb/2343760","GB 108 2213 56"
"London Borough of Redbridge","http://opendatacommunities.org/doc/london-borough-council/redbridge","5BGFHOUSING","General Fund Housing","5CHOMELESS","Homelessness","REV","Revenue","R5630","HAC Temporary Accomodation","05-THIRD","Third Party Payments","05H","Private contractors","6900","Nightly Let Plus Charges","3748016","202404",02/07/2023 00:00:00,855,"31230","Employment and Recruitment Agencies","REDACTED DATA","ACCESS UK LTD T/AS ADAM","2343760","http://opencorporates.com/companies/gb/2343760","GB 108 2213 56"
"London Borough of Redbridge","http://opendatacommunities.org/doc/london-borough-council/redbridge","5BGFHOUSING","General Fund Housing","5CHOMELESS","Homelessness","REV","Revenue","R5630","HAC Temporary Accomodation","05-THIRD","Third Party Payments","05H","Private contractors","6900","Nightly Let Plus Charges","3748016","202404",02/07/2023 00:00:00,855,"31230","Employment and Recruitment Agencies","REDACTED DATA","ACCESS UK LTD T/AS ADAM","2343760","http://opencorporates.com/companies/gb/2343760","GB 108 2213 56"
"London Borough of Redbridge","http://opendatacommunities.org/doc/london-borough-council/redbridge","5BGFHOUSING","General Fund Housing","5CHOMELESS","Homelessness","REV","Revenue","R5630","HAC Temporary Accomodation","05-THIRD","Third Party Payments","05H","Private contractors","6900","Nightly Let Plus Charges","3748016","202404",02/07/2023 00:00:00,0,"31230","Employment and Recruitment Agencies","REDACTED DATA","ACCESS UK LTD T/AS ADAM","2343760","http://opencorporates.com/companies/gb/2343760","GB 108 2213 56"
"London Borough of Redbridge","http://opendatacommunities.org/doc/london-borough-council/redbridge","5BGFHOUSING","General Fund Housing","5CHOMELESS","Homelessness","REV","Revenue","R5630","HAC Temporary Accomodation","05-THIRD","Third Party Payments","05H","Private contractors","6900","Nightly Let Plus Charges","3748016","202404",02/07/2023 00:00:00,855,"31230","Employment and Recruitment Agencies","REDACTED DATA","ACCESS UK LTD T/AS ADAM","2343760","http://opencorporates.com/companies/gb/2343760","GB 108 2213 56"
"London Borough of Redbridge","http://opendatacommunities.org/doc/london-borough-council/redbridge","5BGFHOUSING","General Fund Housing","5CHOMELESS","Homelessness","REV","Revenue","R5630","HAC Temporary Accomodation","05-THIRD","Third Party Payments","05H","Private contractors","6900","Nightly Let Plus Charges","3748016","202404",02/07/2023 00:00:00,0,"31230","Employment and Recruitment Agencies","REDACTED DATA","ACCESS UK LTD T/AS ADAM","2343760","http://opencorporates.com/companies/gb/2343760","GB 108 2213 56"
"London Borough of Redbridge","http://opendatacommunities.org/doc/london-borough-council/redbridge","5BGFHOUSING","General Fund Housing","5CHOMELESS","Homelessness","REV","Revenue","R5630","HAC Temporary Accomodation","05-THIRD","Third Party Payments","05H","Private contractors","6912","Bed & Breakfast Charges","3748016","202404",02/07/2023 00:00:00,0,"31230","Employment and Recruitment Agencies","REDACTED DATA","ACCESS UK LTD T/AS ADAM","2343760","http://opencorporates.com/companies/gb/2343760","GB 108 2213 56"
"London Borough of Redbridge","http://opendatacommunities.org/doc/london-borough-council/redbridge","5BGFHOUSING","General Fund Housing","5CHOMELESS","Homelessness","REV","Revenue","R5630","HAC Temporary Accomodation","05-THIRD","Third Party Payments","05H","Private contractors","6912","Bed & Breakfast Charges","3748016","202404",02/07/2023 00:00:00,840,"31230","Employment and Recruitment Agencies","REDACTED DATA","ACCESS UK LTD T/AS ADAM","2343760","http://opencorporates.com/companies/gb/2343760","GB 108 2213 56"
"London Borough of Redbridge","http://opendatacommunities.org/doc/london-borough-council/redbridge","5BGFHOUSING","General Fund Housing","5CHOMELESS","Homelessness","REV","Revenue","R5630","HAC Temporary Accomodation","05-THIRD","Third Party Payments","05H","Private contractors","6912","Bed & Breakfast Charges","3748016","202404",02/07/2023 00:00:00,0,"31230","Employment and Recruitment Agencies","REDACTED DATA","ACCESS UK LTD T/AS ADAM","2343760","http://opencorporates.com/companies/gb/2343760","GB 108 2213 56"
"London Borough of Redbridge","http://opendatacommunities.org/doc/london-borough-council/redbridge","5BGFHOUSING","General Fund Housing","5CHOMELESS","Homelessness","REV","Revenue","R5630","HAC Temporary Accomodation","05-THIRD","Third Party Payments","05H","Private contractors","6912","Bed & Breakfast Charges","3748016","202404",02/07/2023 00:00:00,2640,"31230","Employment and Recruitment Agencies","REDACTED DATA","ACCESS UK LTD T/AS ADAM","2343760","http://opencorporates.com/companies/gb/2343760","GB 108 2213 56"
"London Borough of Redbridge","http://opendatacommunities.org/doc/london-borough-council/redbridge","5BGFHOUSING","General Fund Housing","5CHOMELESS","Homelessness","REV","Revenue","R5630","HAC Temporary Accomodation","05-THIRD","Third Party Payments","05H","Private contractors","6912","Bed & Breakfast Charges","3748016","202404",02/07/2023 00:00:00,0,"31230","Employment and Recruitment Agencies","REDACTED DATA","ACCESS UK LTD T/AS ADAM","2343760","http://opencorporates.com/companies/gb/2343760","GB 108 2213 56"
"London Borough of Redbridge","http://opendatacommunities.org/doc/london-borough-council/redbridge","5BGFHOUSING","General Fund Housing","5CHOMELESS","Homelessness","REV","Revenue","R5630","HAC Temporary Accomodation","05-THIRD","Third Party Payments","05H","Private contractors","6912","Bed & Breakfast Charges","3748016","202404",02/07/2023 00:00:00,2640,"31230","Employment and Recruitment Agencies","REDACTED DATA","ACCESS UK LTD T/AS ADAM","2343760","http://opencorporates.com/companies/gb/2343760","GB 108 2213 56"
"London Borough of Redbridge","http://opendatacommunities.org/doc/london-borough-council/redbridge","5BGFHOUSING","General Fund Housing","5CHOMELESS","Homelessness","REV","Revenue","R5630","HAC Temporary Accomodation","05-THIRD","Third Party Payments","05H","Private contractors","6912","Bed & Breakfast Charges","3748016","202404",02/07/2023 00:00:00,0,"31230","Employment and Recruitment Agencies","REDACTED DATA","ACCESS UK LTD T/AS ADAM","2343760","http://opencorporates.com/companies/gb/2343760","GB 108 2213 56"
"London Borough of Redbridge","http://opendatacommunities.org/doc/london-borough-council/redbridge","5BGFHOUSING","General Fund Housing","5CHOMELESS","Homelessness","REV","Revenue","R5630","HAC Temporary Accomodation","05-THIRD","Third Party Payments","05H","Private contractors","6912","Bed & Breakfast Charges","3748016","202404",02/07/2023 00:00:00,2640,"31230","Employment and Recruitment Agencies","REDACTED DATA","ACCESS UK LTD T/AS ADAM","2343760","http://opencorporates.com/companies/gb/2343760","GB 108 2213 56"
"London Borough of Redbridge","http://opendatacommunities.org/doc/london-borough-council/redbridge","5BGFHOUSING","General Fund Housing","5CHOMELESS","Homelessness","REV","Revenue","R5630","HAC Temporary Accomodation","05-THIRD","Third Party Payments","05H","Private contractors","6912","Bed & Breakfast Charges","3748016","202404",02/07/2023 00:00:00,1950,"31230","Employment and Recruitment Agencies","REDACTED DATA","ACCESS UK LTD T/AS ADAM","2343760","http://opencorporates.com/companies/gb/2343760","GB 108 2213 56"
"London Borough of Redbridge","http://opendatacommunities.org/doc/london-borough-council/redbridge","6BSOCIALSERV","Social Services","6CCHILLOOKED","Children Looked After","REV","Revenue","R2166","Child Protection Assmt Service Soc Care","06-TRANSFER","Transfer Payments","06B","Social Services Clients","7057","Section 17 Payments","3747998","202404",13/06/2023 00:00:00,414,"80170","Travel Agents and Holiday Companies","REDACTED DATA","CLICK TRAVEL LTD","3770815","http://opencorporates.com/companies/gb/3770815","799566639"
"London Borough of Redbridge","http://opendatacommunities.org/doc/london-borough-council/redbridge","6BSOCIALSERV","Social Services","6CCHILLOOKED","Children Looked After","REV","Revenue","R2166","Child Protection Assmt Service Soc Care","06-TRANSFER","Transfer Payments","06B","Social Services Clients","7057","Section 17 Payments","3747998","202404",09/06/2023 00:00:00,601.61,"80170","Travel Agents and Holiday Companies","REDACTED DATA","CLICK TRAVEL LTD","3770815","http://opencorporates.com/companies/gb/3770815","799566639"
"London Borough of Redbridge","http://opendatacommunities.org/doc/london-borough-council/redbridge","6BSOCIALSERV","Social Services","6CCHILLOOKED","Children Looked After","REV","Revenue","R2166","Child Protection Assmt Service Soc Care","06-TRANSFER","Transfer Payments","06B","Social Services Clients","7057","Section 17 Payments","3747998","202404",02/06/2023 00:00:00,650.72,"80170","Travel Agents and Holiday Companies","REDACTED DATA","CLICK TRAVEL LTD","3770815","http://opencorporates.com/companies/gb/3770815","799566639"
"London Borough of Redbridge","http://opendatacommunities.org/doc/london-borough-council/redbridge","6BSOCIALSERV","Social Services","6CCHILLOOKED","Children Looked After","REV","Revenue","R2166","Child Protection Assmt Service Soc Care","06-TRANSFER","Transfer Payments","06B","Social Services Clients","7057","Section 17 Payments","3747998","202404",02/06/2023 00:00:00,3,"80170","Travel Agents and Holiday Companies","REDACTED DATA","CLICK TRAVEL LTD","3770815","http://opencorporates.com/companies/gb/3770815","799566639"
"London Borough of Redbridge","http://opendatacommunities.org/doc/london-borough-council/redbridge","6BSOCIALSERV","Social Services","6CCHILLOOKED","Children Looked After","REV","Revenue","R2166","Child Protection Assmt Service Soc Care","06-TRANSFER","Transfer Payments","06B","Social Services Clients","7057","Section 17 Payments","3747998","202404",15/06/2023 00:00:00,3,"80170","Travel Agents and Holiday Companies","REDACTED DATA","CLICK TRAVEL LTD","3770815","http://opencorporates.com/companies/gb/3770815","799566639"
"London Borough of Redbridge","http://opendatacommunities.org/doc/london-borough-council/redbridge","6BSOCIALSERV","Social Services","6CCHILLOOKED","Children Looked After","REV","Revenue","R2166","Child Protection Assmt Service Soc Care","06-TRANSFER","Transfer Payments","06B","Social Services Clients","7057","Section 17 Payments","3747998","202404",15/06/2023 00:00:00,807.8,"80170","Travel Agents and Holiday Companies","REDACTED DATA","CLICK TRAVEL LTD","3770815","http://opencorporates.com/companies/gb/3770815","799566639"
"London Borough of Redbridge","http://opendatacommunities.org/doc/london-borough-council/redbridge","6BSOCIALSERV","Social Services","6CCHILLOOKED","Children Looked After","REV","Revenue","R2166","Child Protection Assmt Service Soc Care","06-TRANSFER","Transfer Payments","06B","Social Services Clients","7057","Section 17 Payments","3747998","202404",02/06/2023 00:00:00,1131.55,"80170","Travel Agents and Holiday Companies","REDACTED DATA","CLICK TRAVEL LTD","3770815","http://opencorporates.com/companies/gb/3770815","799566639"
"London Borough of Redbridge","http://opendatacommunities.org/doc/london-borough-council/redbridge","6BSOCIALSERV","Social Services","6CCHILLOOKED","Children Looked After","REV","Revenue","R2178","Early Intervention & Family Support Service","03-TRANSPORT","Transport","03D","Public transport","5300","Travel Expenses","3747998","202404",28/06/2023 00:00:00,15.2,"80170","Travel Agents and Holiday Companies","REDACTED DATA","CLICK TRAVEL LTD","3770815","http://opencorporates.com/companies/gb/3770815","799566639"
"London Borough of Redbridge","http://opendatacommunities.org/doc/london-borough-council/redbridge","6BSOCIALSERV","Social Services","6CCHILLOOKED","Children Looked After","REV","Revenue","R2178","Early Intervention & Family Support Service","03-TRANSPORT","Transport","03D","Public transport","5300","Travel Expenses","3747998","202404",28/06/2023 00:00:00,16.5,"80170","Travel Agents and Holiday Companies","REDACTED DATA","CLICK TRAVEL LTD","3770815","http://opencorporates.com/companies/gb/3770815","799566639"
"London Borough of Redbridge","http://opendatacommunities.org/doc/london-borough-council/redbridge","6BSOCIALSERV","Social Services","6COTHC&FSERV","Other Children's & Families' Services","REV","Revenue","R2123","CLA Service","03-TRANSPORT","Transport","03D","Public transport","5300","Travel Expenses","3747998","202404",21/06/2023 00:00:00,16,"80170","Travel Agents and Holiday Companies","REDACTED DATA","CLICK TRAVEL LTD","3770815","http://opencorporates.com/companies/gb/3770815","799566639"
"London Borough of Redbridge","http://opendatacommunities.org/doc/london-borough-council/redbridge","6BSOCIALSERV","Social Services","6COTHC&FSERV","Other Children's & Families' Services","REV","Revenue","R2123","CLA Service","03-TRANSPORT","Transport","03D","Public transport","5300","Travel Expenses","3747998","202404",21/06/2023 00:00:00,32,"80170","Travel Agents and Holiday Companies","REDACTED DATA","CLICK TRAVEL LTD","3770815","http://opencorporates.com/companies/gb/3770815","799566639"
"London Borough of Redbridge","http://opendatacommunities.org/doc/london-borough-council/redbridge","5BGFHOUSING","General Fund Housing","5CHOMELESS","Homelessness","REV","Revenue","R5630","HAC Temporary Accomodation","05-THIRD","Third Party Payments","05H","Private contractors","6912","Bed & Breakfast Charges","3748016","202404",02/07/2023 00:00:00,2640,"31230","Employment and Recruitment Agencies","REDACTED DATA","ACCESS UK LTD T/AS ADAM","2343760","http://opencorporates.com/companies/gb/2343760","GB 108 2213 56"
"London Borough of Redbridge","http://opendatacommunities.org/doc/london-borough-council/redbridge","5BGFHOUSING","General Fund Housing","5CHOMELESS","Homelessness","REV","Revenue","R5630","HAC Temporary Accomodation","05-THIRD","Third Party Payments","05H","Private contractors","6912","Bed & Breakfast Charges","3748016","202404",02/07/2023 00:00:00,0,"31230","Employment and Recruitment Agencies","REDACTED DATA","ACCESS UK LTD T/AS ADAM","2343760","http://opencorporates.com/companies/gb/2343760","GB 108 2213 56"
"London Borough of Redbridge","http://opendatacommunities.org/doc/london-borough-council/redbridge","5BGFHOUSING","General Fund Housing","5CHOMELESS","Homelessness","REV","Revenue","R5630","HAC Temporary Accomodation","05-THIRD","Third Party Payments","05H","Private contractors","6912","Bed & Breakfast Charges","3748016","202404",02/07/2023 00:00:00,2640,"31230","Employment and Recruitment Agencies","REDACTED DATA","ACCESS UK LTD T/AS ADAM","2343760","http://opencorporates.com/companies/gb/2343760","GB 108 2213 56"
"London Borough of Redbridge","http://opendatacommunities.org/doc/london-borough-council/redbridge","5BGFHOUSING","General Fund Housing","5CHOMELESS","Homelessness","REV","Revenue","R5630","HAC Temporary Accomodation","05-THIRD","Third Party Payments","05H","Private contractors","6912","Bed & Breakfast Charges","3748016","202404",02/07/2023 00:00:00,0,"31230","Employment and Recruitment Agencies","REDACTED DATA","ACCESS UK LTD T/AS ADAM","2343760","http://opencorporates.com/companies/gb/2343760","GB 108 2213 56"
"London Borough of Redbridge","http://opendatacommunities.org/doc/london-borough-council/redbridge","5BGFHOUSING","General Fund Housing","5CHOMELESS","Homelessness","REV","Revenue","R5630","HAC Temporary Accomodation","05-THIRD","Third Party Payments","05H","Private contractors","6912","Bed & Breakfast Charges","3748016","202404",02/07/2023 00:00:00,0,"31230","Employment and Recruitment Agencies","REDACTED DATA","ACCESS UK LTD T/AS ADAM","2343760","http://opencorporates.com/companies/gb/2343760","GB 108 2213 56"
"London Borough of Redbridge","http://opendatacommunities.org/doc/london-borough-council/redbridge","5BGFHOUSING","General Fund Housing","5CHOMELESS","Homelessness","REV","Revenue","R5630","HAC Temporary Accomodation","05-THIRD","Third Party Payments","05H","Private contractors","6912","Bed & Breakfast Charges","3748016","202404",02/07/2023 00:00:00,960,"31230","Employment and Recruitment Agencies","REDACTED DATA","ACCESS UK LTD T/AS ADAM","2343760","http://opencorporates.com/companies/gb/2343760","GB 108 2213 56"
"London Borough of Redbridge","http://opendatacommunities.org/doc/london-borough-council/redbridge","5BGFHOUSING","General Fund Housing","5CHOMELESS","Homelessness","REV","Revenue","R5630","HAC Temporary Accomodation","05-THIRD","Third Party Payments","05H","Private contractors","6912","Bed & Breakfast Charges","3748016","202404",02/07/2023 00:00:00,0,"31230","Employment and Recruitment Agencies","REDACTED DATA","ACCESS UK LTD T/AS ADAM","2343760","http://opencorporates.com/companies/gb/2343760","GB 108 2213 56"
"London Borough of Redbridge","http://opendatacommunities.org/doc/london-borough-council/redbridge","5BGFHOUSING","General Fund Housing","5CHOMELESS","Homelessness","REV","Revenue","R5630","HAC Temporary Accomodation","05-THIRD","Third Party Payments","05H","Private contractors","6912","Bed & Breakfast Charges","3748016","202404",02/07/2023 00:00:00,2640,"31230","Employment and Recruitment Agencies","REDACTED DATA","ACCESS UK LTD T/AS ADAM","2343760","http://opencorporates.com/companies/gb/2343760","GB 108 2213 56"
"London Borough of Redbridge","http://opendatacommunities.org/doc/london-borough-council/redbridge","5BGFHOUSING","General Fund Housing","5CHOMELESS","Homelessness","REV","Revenue","R5630","HAC Temporary Accomodation","05-THIRD","Third Party Payments","05H","Private contractors","6912","Bed & Breakfast Charges","3748016","202404",02/07/2023 00:00:00,375,"31230","Employment and Recruitment Agencies","REDACTED DATA","ACCESS UK LTD T/AS ADAM","2343760","http://opencorporates.com/companies/gb/2343760","GB 108 2213 56"
"London Borough of Redbridge","http://opendatacommunities.org/doc/london-borough-council/redbridge","5BGFHOUSING","General Fund Housing","5CHOMELESS","Homelessness","REV","Revenue","R5630","HAC Temporary Accomodation","05-THIRD","Third Party Payments","05H","Private contractors","6912","Bed & Breakfast Charges","3748016","202404",02/07/2023 00:00:00,840,"31230","Employment and Recruitment Agencies","REDACTED DATA","ACCESS UK LTD T/AS ADAM","2343760","http://opencorporates.com/companies/gb/2343760","GB 108 2213 56"
"London Borough of Redbridge","http://opendatacommunities.org/doc/london-borough-council/redbridge","5BGFHOUSING","General Fund Housing","5CHOMELESS","Homelessness","REV","Revenue","R5630","HAC Temporary Accomodation","05-THIRD","Third Party Payments","05H","Private contractors","6912","Bed & Breakfast Charges","3748016","202404",02/07/2023 00:00:00,0,"31230","Employment and Recruitment Agencies","REDACTED DATA","ACCESS UK LTD T/AS ADAM","2343760","http://opencorporates.com/companies/gb/2343760","GB 108 2213 56"
"London Borough of Redbridge","http://opendatacommunities.org/doc/london-borough-council/redbridge","6BSOCIALSERV","Social Services","6COTHC&FSERV","Other Children's & Families' Services","REV","Revenue","R2123","CLA Service","03-TRANSPORT","Transport","03D","Public transport","5300","Travel Expenses","3747998","202404",27/06/2023 00:00:00,103.9,"80170","Travel Agents and Holiday Companies","REDACTED DATA","CLICK TRAVEL LTD","3770815","http://opencorporates.com/companies/gb/3770815","799566639"
"London Borough of Redbridge","http://opendatacommunities.org/doc/london-borough-council/redbridge","6BSOCIALSERV","Social Services","6COTHC&FSERV","Other Children's & Families' Services","REV","Revenue","R2123","CLA Service","03-TRANSPORT","Transport","03D","Public transport","5300","Travel Expenses","3747998","202404",27/06/2023 00:00:00,38,"80170","Travel Agents and Holiday Companies","REDACTED DATA","CLICK TRAVEL LTD","3770815","http://opencorporates.com/companies/gb/3770815","799566639"
"London Borough of Redbridge","http://opendatacommunities.org/doc/london-borough-council/redbridge","6BSOCIALSERV","Social Services","6COTHC&FSERV","Other Children's & Families' Services","REV","Revenue","R2123","CLA Service","03-TRANSPORT","Transport","03D","Public transport","5300","Travel Expenses","3747998","202404",12/06/2023 00:00:00,15.2,"80170","Travel Agents and Holiday Companies","REDACTED DATA","CLICK TRAVEL LTD","3770815","http://opencorporates.com/companies/gb/3770815","799566639"
"London Borough of Redbridge","http://opendatacommunities.org/doc/london-borough-council/redbridge","6BSOCIALSERV","Social Services","6COTHC&FSERV","Other Children's & Families' Services","REV","Revenue","R2123","CLA Service","03-TRANSPORT","Transport","03D","Public transport","5300","Travel Expenses","3747998","202404",27/06/2023 00:00:00,15.2,"80170","Travel Agents and Holiday Companies","REDACTED DATA","CLICK TRAVEL LTD","3770815","http://opencorporates.com/companies/gb/3770815","799566639"
"London Borough of Redbridge","http://opendatacommunities.org/doc/london-borough-council/redbridge","6BSOCIALSERV","Social Services","6COTHC&FSERV","Other Children's & Families' Services","REV","Revenue","R2123","CLA Service","03-TRANSPORT","Transport","03D","Public transport","5300","Travel Expenses","3747998","202404",12/06/2023 00:00:00,15.2,"80170","Travel Agents and Holiday Companies","REDACTED DATA","CLICK TRAVEL LTD","3770815","http://opencorporates.com/companies/gb/3770815","799566639"
"London Borough of Redbridge","http://opendatacommunities.org/doc/london-borough-council/redbridge","6BSOCIALSERV","Social Services","6COTHC&FSERV","Other Children's & Families' Services","REV","Revenue","R2123","CLA Service","03-TRANSPORT","Transport","03D","Public transport","5300","Travel Expenses","3747998","202404",21/06/2023 00:00:00,118.5,"80170","Travel Agents and Holiday Companies","REDACTED DATA","CLICK TRAVEL LTD","3770815","http://opencorporates.com/companies/gb/3770815","799566639"
"London Borough of Redbridge","http://opendatacommunities.org/doc/london-borough-council/redbridge","6BSOCIALSERV","Social Services","6COTHC&FSERV","Other Children's & Families' Services","REV","Revenue","R2123","CLA Service","03-TRANSPORT","Transport","03D","Public transport","5300","Travel Expenses","3747998","202404",21/06/2023 00:00:00,118.5,"80170","Travel Agents and Holiday Companies","REDACTED DATA","CLICK TRAVEL LTD","3770815","http://opencorporates.com/companies/gb/3770815","799566639"
"London Borough of Redbridge","http://opendatacommunities.org/doc/london-borough-council/redbridge","6BSOCIALSERV","Social Services","6COTHC&FSERV","Other Children's & Families' Services","REV","Revenue","R2123","CLA Service","03-TRANSPORT","Transport","03D","Public transport","5300","Travel Expenses","3747998","202404",21/06/2023 00:00:00,32,"80170","Travel Agents and Holiday Companies","REDACTED DATA","CLICK TRAVEL LTD","3770815","http://opencorporates.com/companies/gb/3770815","799566639"
"London Borough of Redbridge","http://opendatacommunities.org/doc/london-borough-council/redbridge","6BSOCIALSERV","Social Services","6COTHC&FSERV","Other Children's & Families' Services","REV","Revenue","R2123","CLA Service","03-TRANSPORT","Transport","03D","Public transport","5300","Travel Expenses","3747998","202404",12/06/2023 00:00:00,15.2,"80170","Travel Agents and Holiday Companies","REDACTED DATA","CLICK TRAVEL LTD","3770815","http://opencorporates.com/companies/gb/3770815","799566639"
"London Borough of Redbridge","http://opendatacommunities.org/doc/london-borough-council/redbridge","6BSOCIALSERV","Social Services","6COTHC&FSERV","Other Children's & Families' Services","REV","Revenue","R2123","CLA Service","03-TRANSPORT","Transport","03D","Public transport","5300","Travel Expenses","3747998","202404",21/06/2023 00:00:00,59.25,"80170","Travel Agents and Holiday Companies","REDACTED DATA","CLICK TRAVEL LTD","3770815","http://opencorporates.com/companies/gb/3770815","799566639"
"London Borough of Redbridge","http://opendatacommunities.org/doc/london-borough-council/redbridge","6BSOCIALSERV","Social Services","6COTHC&FSERV","Other Children's & Families' Services","REV","Revenue","R2123","CLA Service","03-TRANSPORT","Transport","03D","Public transport","5300","Travel Expenses","3747998","202404",21/06/2023 00:00:00,76.4,"80170","Travel Agents and Holiday Companies","REDACTED DATA","CLICK TRAVEL LTD","3770815","http://opencorporates.com/companies/gb/3770815","799566639"
"London Borough of Redbridge","http://opendatacommunities.org/doc/london-borough-council/redbridge","6BSOCIALSERV","Social Services","6COTHC&FSERV","Other Children's & Families' Services","REV","Revenue","R2123","CLA Service","03-TRANSPORT","Transport","03D","Public transport","5300","Travel Expenses","3747998","202404",12/06/2023 00:00:00,15.2,"80170","Travel Agents and Holiday Companies","REDACTED DATA","CLICK TRAVEL LTD","3770815","http://opencorporates.com/companies/gb/3770815","799566639"
"London Borough of Redbridge","http://opendatacommunities.org/doc/london-borough-council/redbridge","5BGFHOUSING","General Fund Housing","5CHOMELESS","Homelessness","REV","Revenue","R5630","HAC Temporary Accomodation","05-THIRD","Third Party Payments","05H","Private contractors","6912","Bed & Breakfast Charges","3748016","202404",02/07/2023 00:00:00,960,"31230","Employment and Recruitment Agencies","REDACTED DATA","ACCESS UK LTD T/AS ADAM","2343760","http://opencorporates.com/companies/gb/2343760","GB 108 2213 56"
"London Borough of Redbridge","http://opendatacommunities.org/doc/london-borough-council/redbridge","5BGFHOUSING","General Fund Housing","5CHOMELESS","Homelessness","REV","Revenue","R5630","HAC Temporary Accomodation","05-THIRD","Third Party Payments","05H","Private contractors","6912","Bed & Breakfast Charges","3748016","202404",02/07/2023 00:00:00,0,"31230","Employment and Recruitment Agencies","REDACTED DATA","ACCESS UK LTD T/AS ADAM","2343760","http://opencorporates.com/companies/gb/2343760","GB 108 2213 56"
"London Borough of Redbridge","http://opendatacommunities.org/doc/london-borough-council/redbridge","5BGFHOUSING","General Fund Housing","5CHOMELESS","Homelessness","REV","Revenue","R5630","HAC Temporary Accomodation","05-THIRD","Third Party Payments","05H","Private contractors","6912","Bed & Breakfast Charges","3748016","202404",02/07/2023 00:00:00,1140,"31230","Employment and Recruitment Agencies","REDACTED DATA","ACCESS UK LTD T/AS ADAM","2343760","http://opencorporates.com/companies/gb/2343760","GB 108 2213 56"
"London Borough of Redbridge","http://opendatacommunities.org/doc/london-borough-council/redbridge","5BGFHOUSING","General Fund Housing","5CHOMELESS","Homelessness","REV","Revenue","R5630","HAC Temporary Accomodation","05-THIRD","Third Party Payments","05H","Private contractors","6912","Bed & Breakfast Charges","3748016","202404",02/07/2023 00:00:00,0,"31230","Employment and Recruitment Agencies","REDACTED DATA","ACCESS UK LTD T/AS ADAM","2343760","http://opencorporates.com/companies/gb/2343760","GB 108 2213 56"
"London Borough of Redbridge","http://opendatacommunities.org/doc/london-borough-council/redbridge","5BGFHOUSING","General Fund Housing","5CHOMELESS","Homelessness","REV","Revenue","R5630","HAC Temporary Accomodation","05-THIRD","Third Party Payments","05H","Private contractors","6912","Bed & Breakfast Charges","3748016","202404",02/07/2023 00:00:00,1140,"31230","Employment and Recruitment Agencies","REDACTED DATA","ACCESS UK LTD T/AS ADAM","2343760","http://opencorporates.com/companies/gb/2343760","GB 108 2213 56"
"London Borough of Redbridge","http://opendatacommunities.org/doc/london-borough-council/redbridge","5BGFHOUSING","General Fund Housing","5CHOMELESS","Homelessness","REV","Revenue","R5630","HAC Temporary Accomodation","05-THIRD","Third Party Payments","05H","Private contractors","6912","Bed & Breakfast Charges","3748016","202404",02/07/2023 00:00:00,960,"31230","Employment and Recruitment Agencies","REDACTED DATA","ACCESS UK LTD T/AS ADAM","2343760","http://opencorporates.com/companies/gb/2343760","GB 108 2213 56"
"London Borough of Redbridge","http://opendatacommunities.org/doc/london-borough-council/redbridge","5BGFHOUSING","General Fund Housing","5CHOMELESS","Homelessness","REV","Revenue","R5630","HAC Temporary Accomodation","05-THIRD","Third Party Payments","05H","Private contractors","6912","Bed & Breakfast Charges","3748016","202404",02/07/2023 00:00:00,0,"31230","Employment and Recruitment Agencies","REDACTED DATA","ACCESS UK LTD T/AS ADAM","2343760","http://opencorporates.com/companies/gb/2343760","GB 108 2213 56"
"London Borough of Redbridge","http://opendatacommunities.org/doc/london-borough-council/redbridge","5BGFHOUSING","General Fund Housing","5CHOMELESS","Homelessness","REV","Revenue","R5630","HAC Temporary Accomodation","05-THIRD","Third Party Payments","05H","Private contractors","6912","Bed & Breakfast Charges","3748016","202404",02/07/2023 00:00:00,0,"31230","Employment and Recruitment Agencies","REDACTED DATA","ACCESS UK LTD T/AS ADAM","2343760","http://opencorporates.com/companies/gb/2343760","GB 108 2213 56"
"London Borough of Redbridge","http://opendatacommunities.org/doc/london-borough-council/redbridge","5BGFHOUSING","General Fund Housing","5CHOMELESS","Homelessness","REV","Revenue","R5630","HAC Temporary Accomodation","05-THIRD","Third Party Payments","05H","Private contractors","6912","Bed & Breakfast Charges","3748016","202404",02/07/2023 00:00:00,1200,"31230","Employment and Recruitment Agencies","REDACTED DATA","ACCESS UK LTD T/AS ADAM","2343760","http://opencorporates.com/companies/gb/2343760","GB 108 2213 56"
"London Borough of Redbridge","http://opendatacommunities.org/doc/london-borough-council/redbridge","5BGFHOUSING","General Fund Housing","5CHOMELESS","Homelessness","REV","Revenue","R5630","HAC Temporary Accomodation","05-THIRD","Third Party Payments","05H","Private contractors","6912","Bed & Breakfast Charges","3748016","202404",02/07/2023 00:00:00,0,"31230","Employment and Recruitment Agencies","REDACTED DATA","ACCESS UK LTD T/AS ADAM","2343760","http://opencorporates.com/companies/gb/2343760","GB 108 2213 56"
"London Borough of Redbridge","http://opendatacommunities.org/doc/london-borough-council/redbridge","5BGFHOUSING","General Fund Housing","5CHOMELESS","Homelessness","REV","Revenue","R5630","HAC Temporary Accomodation","05-THIRD","Third Party Payments","05H","Private contractors","6912","Bed & Breakfast Charges","3748016","202404",02/07/2023 00:00:00,1140,"31230","Employment and Recruitment Agencies","REDACTED DATA","ACCESS UK LTD T/AS ADAM","2343760","http://opencorporates.com/companies/gb/2343760","GB 108 2213 56"
"London Borough of Redbridge","http://opendatacommunities.org/doc/london-borough-council/redbridge","6BSOCIALSERV","Social Services","6COTHC&FSERV","Other Children's & Families' Services","REV","Revenue","R2123","CLA Service","03-TRANSPORT","Transport","03D","Public transport","5300","Travel Expenses","3747998","202404",27/06/2023 00:00:00,112.5,"80170","Travel Agents and Holiday Companies","REDACTED DATA","CLICK TRAVEL LTD","3770815","http://opencorporates.com/companies/gb/3770815","799566639"
"London Borough of Redbridge","http://opendatacommunities.org/doc/london-borough-council/redbridge","6BSOCIALSERV","Social Services","6COTHC&FSERV","Other Children's & Families' Services","REV","Revenue","R2123","CLA Service","03-TRANSPORT","Transport","03D","Public transport","5301","Children Services Transport Costs","3747998","202404",15/06/2023 00:00:00,15.2,"80170","Travel Agents and Holiday Companies","REDACTED DATA","CLICK TRAVEL LTD","3770815","http://opencorporates.com/companies/gb/3770815","799566639"
"London Borough of Redbridge","http://opendatacommunities.org/doc/london-borough-council/redbridge","6BSOCIALSERV","Social Services","6COTHC&FSERV","Other Children's & Families' Services","REV","Revenue","R2123","CLA Service","03-TRANSPORT","Transport","03D","Public transport","5301","Children Services Transport Costs","3747998","202404",21/06/2023 00:00:00,15.2,"80170","Travel Agents and Holiday Companies","REDACTED DATA","CLICK TRAVEL LTD","3770815","http://opencorporates.com/companies/gb/3770815","799566639"
"London Borough of Redbridge","http://opendatacommunities.org/doc/london-borough-council/redbridge","6BSOCIALSERV","Social Services","6COTHC&FSERV","Other Children's & Families' Services","REV","Revenue","R2123","CLA Service","03-TRANSPORT","Transport","03D","Public transport","5301","Children Services Transport Costs","3747998","202404",21/06/2023 00:00:00,15.2,"80170","Travel Agents and Holiday Companies","REDACTED DATA","CLICK TRAVEL LTD","3770815","http://opencorporates.com/companies/gb/3770815","799566639"
"London Borough of Redbridge","http://opendatacommunities.org/doc/london-borough-council/redbridge","6BSOCIALSERV","Social Services","6COTHC&FSERV","Other Children's & Families' Services","REV","Revenue","R2123","CLA Service","03-TRANSPORT","Transport","03D","Public transport","5301","Children Services Transport Costs","3747998","202404",21/06/2023 00:00:00,15.2,"80170","Travel Agents and Holiday Companies","REDACTED DATA","CLICK TRAVEL LTD","3770815","http://opencorporates.com/companies/gb/3770815","799566639"
"London Borough of Redbridge","http://opendatacommunities.org/doc/london-borough-council/redbridge","6BSOCIALSERV","Social Services","6COTHC&FSERV","Other Children's & Families' Services","REV","Revenue","R2123","CLA Service","03-TRANSPORT","Transport","03D","Public transport","5301","Children Services Transport Costs","3747998","202404",21/06/2023 00:00:00,15.2,"80170","Travel Agents and Holiday Companies","REDACTED DATA","CLICK TRAVEL LTD","3770815","http://opencorporates.com/companies/gb/3770815","799566639"
"London Borough of Redbridge","http://opendatacommunities.org/doc/london-borough-council/redbridge","6BSOCIALSERV","Social Services","6COTHC&FSERV","Other Children's & Families' Services","REV","Revenue","R2123","CLA Service","03-TRANSPORT","Transport","03D","Public transport","5301","Children Services Transport Costs","3747998","202404",21/06/2023 00:00:00,15.2,"80170","Travel Agents and Holiday Companies","REDACTED DATA","CLICK TRAVEL LTD","3770815","http://opencorporates.com/companies/gb/3770815","799566639"
"London Borough of Redbridge","http://opendatacommunities.org/doc/london-borough-council/redbridge","6BSOCIALSERV","Social Services","6COTHC&FSERV","Other Children's & Families' Services","REV","Revenue","R2123","CLA Service","03-TRANSPORT","Transport","03D","Public transport","5301","Children Services Transport Costs","3747998","202404",29/06/2023 00:00:00,15.2,"80170","Travel Agents and Holiday Companies","REDACTED DATA","CLICK TRAVEL LTD","3770815","http://opencorporates.com/companies/gb/3770815","799566639"
"London Borough of Redbridge","http://opendatacommunities.org/doc/london-borough-council/redbridge","6BSOCIALSERV","Social Services","6COTHC&FSERV","Other Children's & Families' Services","REV","Revenue","R2123","CLA Service","03-TRANSPORT","Transport","03D","Public transport","5301","Children Services Transport Costs","3747998","202404",21/06/2023 00:00:00,15.2,"80170","Travel Agents and Holiday Companies","REDACTED DATA","CLICK TRAVEL LTD","3770815","http://opencorporates.com/companies/gb/3770815","799566639"
"London Borough of Redbridge","http://opendatacommunities.org/doc/london-borough-council/redbridge","6BSOCIALSERV","Social Services","6COTHC&FSERV","Other Children's & Families' Services","REV","Revenue","R2123","CLA Service","03-TRANSPORT","Transport","03D","Public transport","5301","Children Services Transport Costs","3747998","202404",15/06/2023 00:00:00,15.2,"80170","Travel Agents and Holiday Companies","REDACTED DATA","CLICK TRAVEL LTD","3770815","http://opencorporates.com/companies/gb/3770815","799566639"
"London Borough of Redbridge","http://opendatacommunities.org/doc/london-borough-council/redbridge","6BSOCIALSERV","Social Services","6COTHC&FSERV","Other Children's & Families' Services","REV","Revenue","R2123","CLA Service","03-TRANSPORT","Transport","03D","Public transport","5301","Children Services Transport Costs","3747998","202404",01/06/2023 00:00:00,42.6,"80170","Travel Agents and Holiday Companies","REDACTED DATA","CLICK TRAVEL LTD","3770815","http://opencorporates.com/companies/gb/3770815","799566639"
"London Borough of Redbridge","http://opendatacommunities.org/doc/london-borough-council/redbridge","5BGFHOUSING","General Fund Housing","5CHOMELESS","Homelessness","REV","Revenue","R5630","HAC Temporary Accomodation","05-THIRD","Third Party Payments","05H","Private contractors","6912","Bed & Breakfast Charges","3748016","202404",02/07/2023 00:00:00,960,"31230","Employment and Recruitment Agencies","REDACTED DATA","ACCESS UK LTD T/AS ADAM","2343760","http://opencorporates.com/companies/gb/2343760","GB 108 2213 56"
"London Borough of Redbridge","http://opendatacommunities.org/doc/london-borough-council/redbridge","5BGFHOUSING","General Fund Housing","5CHOMELESS","Homelessness","REV","Revenue","R5630","HAC Temporary Accomodation","05-THIRD","Third Party Payments","05H","Private contractors","6912","Bed & Breakfast Charges","3748016","202404",02/07/2023 00:00:00,0,"31230","Employment and Recruitment Agencies","REDACTED DATA","ACCESS UK LTD T/AS ADAM","2343760","http://opencorporates.com/companies/gb/2343760","GB 108 2213 56"
"London Borough of Redbridge","http://opendatacommunities.org/doc/london-borough-council/redbridge","5BGFHOUSING","General Fund Housing","5CHOMELESS","Homelessness","REV","Revenue","R5630","HAC Temporary Accomodation","05-THIRD","Third Party Payments","05H","Private contractors","6912","Bed & Breakfast Charges","3748016","202404",02/07/2023 00:00:00,930,"31230","Employment and Recruitment Agencies","REDACTED DATA","ACCESS UK LTD T/AS ADAM","2343760","http://opencorporates.com/companies/gb/2343760","GB 108 2213 56"
"London Borough of Redbridge","http://opendatacommunities.org/doc/london-borough-council/redbridge","5BGFHOUSING","General Fund Housing","5CHOMELESS","Homelessness","REV","Revenue","R5630","HAC Temporary Accomodation","05-THIRD","Third Party Payments","05H","Private contractors","6912","Bed & Breakfast Charges","3748016","202404",02/07/2023 00:00:00,0,"31230","Employment and Recruitment Agencies","REDACTED DATA","ACCESS UK LTD T/AS ADAM","2343760","http://opencorporates.com/companies/gb/2343760","GB 108 2213 56"
"London Borough of Redbridge","http://opendatacommunities.org/doc/london-borough-council/redbridge","5BGFHOUSING","General Fund Housing","5CHOMELESS","Homelessness","REV","Revenue","R5630","HAC Temporary Accomodation","05-THIRD","Third Party Payments","05H","Private contractors","6912","Bed & Breakfast Charges","3748016","202404",02/07/2023 00:00:00,930,"31230","Employment and Recruitment Agencies","REDACTED DATA","ACCESS UK LTD T/AS ADAM","2343760","http://opencorporates.com/companies/gb/2343760","GB 108 2213 56"
"London Borough of Redbridge","http://opendatacommunities.org/doc/london-borough-council/redbridge","5BGFHOUSING","General Fund Housing","5CHOMELESS","Homelessness","REV","Revenue","R5630","HAC Temporary Accomodation","05-THIRD","Third Party Payments","05H","Private contractors","6912","Bed & Breakfast Charges","3748016","202404",02/07/2023 00:00:00,0,"31230","Employment and Recruitment Agencies","REDACTED DATA","ACCESS UK LTD T/AS ADAM","2343760","http://opencorporates.com/companies/gb/2343760","GB 108 2213 56"
"London Borough of Redbridge","http://opendatacommunities.org/doc/london-borough-council/redbridge","5BGFHOUSING","General Fund Housing","5CHOMELESS","Homelessness","REV","Revenue","R5630","HAC Temporary Accomodation","05-THIRD","Third Party Payments","05H","Private contractors","6912","Bed & Breakfast Charges","3748016","202404",02/07/2023 00:00:00,960,"31230","Employment and Recruitment Agencies","REDACTED DATA","ACCESS UK LTD T/AS ADAM","2343760","http://opencorporates.com/companies/gb/2343760","GB 108 2213 56"
"London Borough of Redbridge","http://opendatacommunities.org/doc/london-borough-council/redbridge","5BGFHOUSING","General Fund Housing","5CHOMELESS","Homelessness","REV","Revenue","R5630","HAC Temporary Accomodation","05-THIRD","Third Party Payments","05H","Private contractors","6912","Bed & Breakfast Charges","3748016","202404",02/07/2023 00:00:00,0,"31230","Employment and Recruitment Agencies","REDACTED DATA","ACCESS UK LTD T/AS ADAM","2343760","http://opencorporates.com/companies/gb/2343760","GB 108 2213 56"
"London Borough of Redbridge","http://opendatacommunities.org/doc/london-borough-council/redbridge","5BGFHOUSING","General Fund Housing","5CHOMELESS","Homelessness","REV","Revenue","R5630","HAC Temporary Accomodation","05-THIRD","Third Party Payments","05H","Private contractors","6912","Bed & Breakfast Charges","3748016","202404",02/07/2023 00:00:00,960,"31230","Employment and Recruitment Agencies","REDACTED DATA","ACCESS UK LTD T/AS ADAM","2343760","http://opencorporates.com/companies/gb/2343760","GB 108 2213 56"
"London Borough of Redbridge","http://opendatacommunities.org/doc/london-borough-council/redbridge","5BGFHOUSING","General Fund Housing","5CHOMELESS","Homelessness","REV","Revenue","R5630","HAC Temporary Accomodation","05-THIRD","Third Party Payments","05H","Private contractors","6912","Bed & Breakfast Charges","3748016","202404",02/07/2023 00:00:00,0,"31230","Employment and Recruitment Agencies","REDACTED DATA","ACCESS UK LTD T/AS ADAM","2343760","http://opencorporates.com/companies/gb/2343760","GB 108 2213 56"
"London Borough of Redbridge","http://opendatacommunities.org/doc/london-borough-council/redbridge","5BGFHOUSING","General Fund Housing","5CHOMELESS","Homelessness","REV","Revenue","R5630","HAC Temporary Accomodation","05-THIRD","Third Party Payments","05H","Private contractors","6912","Bed & Breakfast Charges","3748016","202404",02/07/2023 00:00:00,0,"31230","Employment and Recruitment Agencies","REDACTED DATA","ACCESS UK LTD T/AS ADAM","2343760","http://opencorporates.com/companies/gb/2343760","GB 108 2213 56"
"London Borough of Redbridge","http://opendatacommunities.org/doc/london-borough-council/redbridge","6BSOCIALSERV","Social Services","6COTHC&FSERV","Other Children's & Families' Services","REV","Revenue","R2123","CLA Service","03-TRANSPORT","Transport","03D","Public transport","5301","Children Services Transport Costs","3747998","202404",21/06/2023 00:00:00,15.2,"80170","Travel Agents and Holiday Companies","REDACTED DATA","CLICK TRAVEL LTD","3770815","http://opencorporates.com/companies/gb/3770815","799566639"
"London Borough of Redbridge","http://opendatacommunities.org/doc/london-borough-council/redbridge","6BSOCIALSERV","Social Services","6COTHC&FSERV","Other Children's & Families' Services","REV","Revenue","R2123","CLA Service","03-TRANSPORT","Transport","03D","Public transport","5301","Children Services Transport Costs","3747998","202404",21/06/2023 00:00:00,15.2,"80170","Travel Agents and Holiday Companies","REDACTED DATA","CLICK TRAVEL LTD","3770815","http://opencorporates.com/companies/gb/3770815","799566639"
"London Borough of Redbridge","http://opendatacommunities.org/doc/london-borough-council/redbridge","6BSOCIALSERV","Social Services","6COTHC&FSERV","Other Children's & Families' Services","REV","Revenue","R2123","CLA Service","03-TRANSPORT","Transport","03D","Public transport","5301","Children Services Transport Costs","3747998","202404",15/06/2023 00:00:00,15.2,"80170","Travel Agents and Holiday Companies","REDACTED DATA","CLICK TRAVEL LTD","3770815","http://opencorporates.com/companies/gb/3770815","799566639"
"London Borough of Redbridge","http://opendatacommunities.org/doc/london-borough-council/redbridge","6BSOCIALSERV","Social Services","6COTHC&FSERV","Other Children's & Families' Services","REV","Revenue","R2123","CLA Service","03-TRANSPORT","Transport","03D","Public transport","5301","Children Services Transport Costs","3747998","202404",15/06/2023 00:00:00,15.2,"80170","Travel Agents and Holiday Companies","REDACTED DATA","CLICK TRAVEL LTD","3770815","http://opencorporates.com/companies/gb/3770815","799566639"
"London Borough of Redbridge","http://opendatacommunities.org/doc/london-borough-council/redbridge","6BSOCIALSERV","Social Services","6COTHC&FSERV","Other Children's & Families' Services","REV","Revenue","R2123","CLA Service","03-TRANSPORT","Transport","03D","Public transport","5301","Children Services Transport Costs","3747998","202404",01/06/2023 00:00:00,15.2,"80170","Travel Agents and Holiday Companies","REDACTED DATA","CLICK TRAVEL LTD","3770815","http://opencorporates.com/companies/gb/3770815","799566639"
"London Borough of Redbridge","http://opendatacommunities.org/doc/london-borough-council/redbridge","6BSOCIALSERV","Social Services","6COTHC&FSERV","Other Children's & Families' Services","REV","Revenue","R2123","CLA Service","04-SUPPLIES","Supplies And Services","04G","Expenses","5907","Travel & Subsistence","3747998","202404",14/06/2023 00:00:00,21.5,"80170","Travel Agents and Holiday Companies","REDACTED DATA","CLICK TRAVEL LTD","3770815","http://opencorporates.com/companies/gb/3770815","799566639"
"London Borough of Redbridge","http://opendatacommunities.org/doc/london-borough-council/redbridge","6BSOCIALSERV","Social Services","6COTHC&FSERV","Other Children's & Families' Services","REV","Revenue","R2123","CLA Service","04-SUPPLIES","Supplies And Services","04G","Expenses","5907","Travel & Subsistence","3747998","202404",13/06/2023 00:00:00,103.9,"80170","Travel Agents and Holiday Companies","REDACTED DATA","CLICK TRAVEL LTD","3770815","http://opencorporates.com/companies/gb/3770815","799566639"
"London Borough of Redbridge","http://opendatacommunities.org/doc/london-borough-council/redbridge","6BSOCIALSERV","Social Services","6COTHC&FSERV","Other Children's & Families' Services","REV","Revenue","R2123","CLA Service","04-SUPPLIES","Supplies And Services","04G","Expenses","5907","Travel & Subsistence","3747998","202404",01/06/2023 00:00:00,21.5,"80170","Travel Agents and Holiday Companies","REDACTED DATA","CLICK TRAVEL LTD","3770815","http://opencorporates.com/companies/gb/3770815","799566639"
"London Borough of Redbridge","http://opendatacommunities.org/doc/london-borough-council/redbridge","6BSOCIALSERV","Social Services","6COTHC&FSERV","Other Children's & Families' Services","REV","Revenue","R2123","CLA Service","04-SUPPLIES","Supplies And Services","04G","Expenses","5907","Travel & Subsistence","3747998","202404",26/06/2023 00:00:00,146.7,"80170","Travel Agents and Holiday Companies","REDACTED DATA","CLICK TRAVEL LTD","3770815","http://opencorporates.com/companies/gb/3770815","799566639"
"London Borough of Redbridge","http://opendatacommunities.org/doc/london-borough-council/redbridge","6BSOCIALSERV","Social Services","6COTHC&FSERV","Other Children's & Families' Services","REV","Revenue","R2123","CLA Service","04-SUPPLIES","Supplies And Services","04G","Expenses","5907","Travel & Subsistence","3747998","202404",15/06/2023 00:00:00,24.9,"80170","Travel Agents and Holiday Companies","REDACTED DATA","CLICK TRAVEL LTD","3770815","http://opencorporates.com/companies/gb/3770815","799566639"
"London Borough of Redbridge","http://opendatacommunities.org/doc/london-borough-council/redbridge","6BSOCIALSERV","Social Services","6COTHC&FSERV","Other Children's & Families' Services","REV","Revenue","R2123","CLA Service","04-SUPPLIES","Supplies And Services","04G","Expenses","5907","Travel & Subsistence","3747998","202404",12/06/2023 00:00:00,21.5,"80170","Travel Agents and Holiday Companies","REDACTED DATA","CLICK TRAVEL LTD","3770815","http://opencorporates.com/companies/gb/3770815","799566639"
"London Borough of Redbridge","http://opendatacommunities.org/doc/london-borough-council/redbridge","6BSOCIALSERV","Social Services","6COTHC&FSERV","Other Children's & Families' Services","REV","Revenue","R2123","CLA Service","04-SUPPLIES","Supplies And Services","04G","Expenses","5907","Travel & Subsistence","3747998","202404",15/06/2023 00:00:00,15.2,"80170","Travel Agents and Holiday Companies","REDACTED DATA","CLICK TRAVEL LTD","3770815","http://opencorporates.com/companies/gb/3770815","799566639"
"London Borough of Redbridge","http://opendatacommunities.org/doc/london-borough-council/redbridge","6BSOCIALSERV","Social Services","6COTHC&FSERV","Other Children's & Families' Services","REV","Revenue","R2169","Emergency Duty Team (EDT)","03-TRANSPORT","Transport","03D","Public transport","5301","Children Services Transport Costs","3747998","202404",04/06/2023 00:00:00,24.4,"80170","Travel Agents and Holiday Companies","REDACTED DATA","CLICK TRAVEL LTD","3770815","http://opencorporates.com/companies/gb/3770815","799566639"
"London Borough of Redbridge","http://opendatacommunities.org/doc/london-borough-council/redbridge","6BSOCIALSERV","Social Services","6COTHC&FSERV","Other Children's & Families' Services","REV","Revenue","R2169","Emergency Duty Team (EDT)","05-THIRD","Third Party Payments","05H","Private contractors","6912","Bed & Breakfast Charges","3747998","202404",07/06/2023 00:00:00,70.83,"80170","Travel Agents and Holiday Companies","REDACTED DATA","CLICK TRAVEL LTD","3770815","http://opencorporates.com/companies/gb/3770815","799566639"
"London Borough of Redbridge","http://opendatacommunities.org/doc/london-borough-council/redbridge","3BINDSCHFUND","Individual School Funds","3CDELSECOND","Delegated Individual Secondary School Budgets","REV","Revenue","R3624","Valentines High School","05-THIRD","Third Party Payments","05G","Other establishments","7451","LMS Bank Accounts Pilot","3750398","202404",26/07/2023 00:00:00,600000,"67981","Schools - Local Authority","REDACTED DATA","VALENTINES HIGH SCHOOL PAYROLL A/C","",,""
"London Borough of Redbridge","http://opendatacommunities.org/doc/london-borough-council/redbridge","6BADULTSOCIA","Adult Social Care","6COLDINCMENT","Older People (65 or over) incl. Older Mentally Ill","REV","Revenue","R4435","Sanctuary Care Residential Contracts","05-THIRD","Third Party Payments","05F","Voluntary associations","6802","Residential Homes","70129844","202404",01/05/2023 00:00:00,128391.94,"64710","Residential Care Homes","REDACTED DATA","SANCTUARY CARE LTD","4231521","http://opencorporates.com/companies/gb/4231521","732012487"
"London Borough of Redbridge","http://opendatacommunities.org/doc/london-borough-council/redbridge","6BADULTSOCIA","Adult Social Care","6COLDINCMENT","Older People (65 or over) incl. Older Mentally Ill","REV","Revenue","R4435","Sanctuary Care Residential Contracts","05-THIRD","Third Party Payments","05F","Voluntary associations","6802","Residential Homes","70129844","202404",01/05/2023 00:00:00,183670.74,"64710","Residential Care Homes","REDACTED DATA","SANCTUARY CARE LTD","4231521","http://opencorporates.com/companies/gb/4231521","732012487"
"London Borough of Redbridge","http://opendatacommunities.org/doc/london-borough-council/redbridge","6BADULTSOCIA","Adult Social Care","6COLDINCMENT","Older People (65 or over) incl. Older Mentally Ill","REV","Revenue","R4435","Sanctuary Care Residential Contracts","05-THIRD","Third Party Payments","05F","Voluntary associations","6802","Residential Homes","70129844","202404",01/05/2023 00:00:00,110206.22,"64710","Residential Care Homes","REDACTED DATA","SANCTUARY CARE LTD","4231521","http://opencorporates.com/companies/gb/4231521","732012487"
"London Borough of Redbridge","http://opendatacommunities.org/doc/london-borough-council/redbridge","6BADULTSOCIA","Adult Social Care","6COLDINCMENT","Older People (65 or over) incl. Older Mentally Ill","REV","Revenue","R4435","Sanctuary Care Residential Contracts","05-THIRD","Third Party Payments","05F","Voluntary associations","6802","Residential Homes","70129844","202404",01/05/2023 00:00:00,150472.35,"64710","Residential Care Homes","REDACTED DATA","SANCTUARY CARE LTD","4231521","http://opencorporates.com/companies/gb/4231521","732012487"
"London Borough of Redbridge","http://opendatacommunities.org/doc/london-borough-council/redbridge","3BINDSCHFUND","Individual School Funds","3CDELSECOND","Delegated Individual Secondary School Budgets","REV","Revenue","R3632","King Solomon High School","05-THIRD","Third Party Payments","05G","Other establishments","7451","LMS Bank Accounts Pilot","3750403","202404",26/07/2023 00:00:00,560922.69,"67981","Schools - Local Authority","REDACTED DATA","KING SOLOMON HIGH SCHOOL A/C","",,""
"London Borough of Redbridge","http://opendatacommunities.org/doc/london-borough-council/redbridge","1BCENTRALPUB","Central Services to the Public","1CTRADSURDEF","Trading Account Surpluses & Deficits","REV","Revenue","R3976","Local London Work and Health Programme (ESF)","04-SUPPLIES","Supplies And Services","04H","Grants and subscriptions","5955","Fees","60528616","202404",03/07/2023 00:00:00,381315.54,"31235","Employment Service","REDACTED DATA","Maximus UK Services Ltd","9072343","http://opencorporates.com/companies/gb/9072343","200 2210 05"
"London Borough of Redbridge","http://opendatacommunities.org/doc/london-borough-council/redbridge","5BGFHOUSING","General Fund Housing","5CHOMELESS","Homelessness","REV","Revenue","R5644","Canterbury","05-THIRD","Third Party Payments","05H","Private contractors","6916","Leasing Payments To Landlords","70,129,649","202403",08/06/2023 00:00:00,449160,"61896","Property and Estate Management","REDACTED DATA","TOUCHSTONE CORPORATE PROPERTY SERVICES LTD RE: ANNINGTON RENT CLIENT ACCOUNT","3232852","http://opencorporates.com/companies/gb/3232852",""
"London Borough of Redbridge","http://opendatacommunities.org/doc/london-borough-council/redbridge","9BNONBVO","Outside the BVACOP Objective Structure","9CNONBVO","Outside the BVACOP Objective Structure","CAP","Capital","C4172","Chadwell Primary Expansion","99-NONBV","Capital, Balance Sheet and Control","50E","Capital - Contract Payments","9150","Main Contract","70129816","202404",28/06/2023 00:00:00,372465.61,"21555","Construction Contractors - General","REDACTED DATA","Longley Group Ltd","7633349","http://opencorporates.com/companies/gb/7633349","165771972"
"London Borough of Redbridge","http://opendatacommunities.org/doc/london-borough-council/redbridge","3BLEACENTFND","LEA Centrally Held School Funds","3CNONSCH","Non Schools","REV","Revenue","R3323","Little Heath Foundation School","05-THIRD","Third Party Payments","05G","Other establishments","7451","LMS Bank Accounts Pilot","3750402","202404",26/07/2023 00:00:00,441246.92,"67981","Schools - Local Authority","REDACTED DATA","LITTLE HEATH SCHOOL A/C","",,""
"London Borough of Redbridge","http://opendatacommunities.org/doc/london-borough-council/redbridge","3BLEACENTFND","LEA Centrally Held School Funds","3CNONSCH","Non Schools","REV","Revenue","R3256","ISS Free School Meals Contract","04-SUPPLIES","Supplies And Services","04B","Catering","5603","Hospitality (Catering)","60527493","202404",28/06/2023 00:00:00,327684.01,"16270","Catering Schools","REDACTED DATA","ISS CATERHOUSE- DIV OF ISS MEDICLEAN LTD(INVOICES)","1659837","http://opencorporates.com/companies/gb/1659837","417115775"
"London Borough of Redbridge","http://opendatacommunities.org/doc/london-borough-council/redbridge","3BLEACENTFND","LEA Centrally Held School Funds","3CNONSCH","Non Schools","REV","Revenue","R3321","Hatton School","05-THIRD","Third Party Payments","05G","Other establishments","7451","LMS Bank Accounts Pilot","3750391","202404",26/07/2023 00:00:00,420000,"67981","Schools - Local Authority","REDACTED DATA","HATTON SCHOOL PAYROLL A/C","",,""
"London Borough of Redbridge","http://opendatacommunities.org/doc/london-borough-council/redbridge","3BINDSCHFUND","Individual School Funds","3CDELPRIMARY","Delegated Individual Primary School Budgets","REV","Revenue","R3518","Cranbrook Primary School","05-THIRD","Third Party Payments","05G","Other establishments","7451","LMS Bank Accounts Pilot","3750386","202404",26/07/2023 00:00:00,415232.83,"67981","Schools - Local Authority","REDACTED DATA","CRANBROOK PRIMARY SCHOOL ACCOUNT 2","",,""
"London Borough of Redbridge","http://opendatacommunities.org/doc/london-borough-council/redbridge","1BCENTRALPUB","Central Services to the Public","1CLOCALTAXCO","Local Tax Collection","REV","Revenue","R5760","Local Tax Collection","01-EMPLOYEES","Employees","01A","Direct employee expenses","4","Agency Staff - Pay","3750554","202404",28/07/2023 00:00:00,1208.43,"31230","Employment and Recruitment Agencies","REDACTED DATA","MATRIX SCM LTD","2227962","http://opencorporates.com/companies/gb/2227962","249573468"
"London Borough of Redbridge","http://opendatacommunities.org/doc/london-borough-council/redbridge","1BCENTRALPUB","Central Services to the Public","1CLOCALTAXCO","Local Tax Collection","REV","Revenue","R5760","Local Tax Collection","01-EMPLOYEES","Employees","01A","Direct employee expenses","4","Agency Staff - Pay","3750554","202404",28/07/2023 00:00:00,1079.2,"31230","Employment and Recruitment Agencies","REDACTED DATA","MATRIX SCM LTD","2227962","http://opencorporates.com/companies/gb/2227962","249573468"
"London Borough of Redbridge","http://opendatacommunities.org/doc/london-borough-council/redbridge","1BCENTRALPUB","Central Services to the Public","1CREGBDM","Reg. of Births, Deaths & Marriages","REV","Revenue","R3970","Corporate Policy and Performance","01-EMPLOYEES","Employees","01A","Direct employee expenses","4","Agency Staff - Pay","3750554","202404",28/07/2023 00:00:00,1430.8,"31230","Employment and Recruitment Agencies","REDACTED DATA","MATRIX SCM LTD","2227962","http://opencorporates.com/companies/gb/2227962","249573468"
"London Borough of Redbridge","http://opendatacommunities.org/doc/london-borough-council/redbridge","1BOTHEROPI&E","Other Operating Income & Expenditure","1CTRADSURDEF","Trading Account Surpluses & Deficits","REV","Revenue","R7207","Capital Team Staffing","01-EMPLOYEES","Employees","01A","Direct employee expenses","4","Agency Staff - Pay","3750554","202404",28/07/2023 00:00:00,2432.3,"31230","Employment and Recruitment Agencies","REDACTED DATA","MATRIX SCM LTD","2227962","http://opencorporates.com/companies/gb/2227962","249573468"
"London Borough of Redbridge","http://opendatacommunities.org/doc/london-borough-council/redbridge","1BOTHEROPI&E","Other Operating Income & Expenditure","1CTRADSURDEF","Trading Account Surpluses & Deficits","REV","Revenue","R7207","Capital Team Staffing","01-EMPLOYEES","Employees","01A","Direct employee expenses","4","Agency Staff - Pay","3750554","202404",28/07/2023 00:00:00,2432.3,"31230","Employment and Recruitment Agencies","REDACTED DATA","MATRIX SCM LTD","2227962","http://opencorporates.com/companies/gb/2227962","249573468"
"London Borough of Redbridge","http://opendatacommunities.org/doc/london-borough-council/redbridge","1BOTHEROPI&E","Other Operating Income & Expenditure","1CTRADSURDEF","Trading Account Surpluses & Deficits","REV","Revenue","R7207","Capital Team Staffing","01-EMPLOYEES","Employees","01A","Direct employee expenses","4","Agency Staff - Pay","3750554","202404",28/07/2023 00:00:00,2157.9,"31230","Employment and Recruitment Agencies","REDACTED DATA","MATRIX SCM LTD","2227962","http://opencorporates.com/companies/gb/2227962","249573468"
"London Borough of Redbridge","http://opendatacommunities.org/doc/london-borough-council/redbridge","1BOTHEROPI&E","Other Operating Income & Expenditure","1CTRADSURDEF","Trading Account Surpluses & Deficits","REV","Revenue","R9152","Operational Accounting","01-EMPLOYEES","Employees","01A","Direct employee expenses","4","Agency Staff - Pay","3750554","202404",28/07/2023 00:00:00,3147.7,"31230","Employment and Recruitment Agencies","REDACTED DATA","MATRIX SCM LTD","2227962","http://opencorporates.com/companies/gb/2227962","249573468"
"London Borough of Redbridge","http://opendatacommunities.org/doc/london-borough-council/redbridge","1BOTHEROPI&E","Other Operating Income & Expenditure","1CTRADSURDEF","Trading Account Surpluses & Deficits","REV","Revenue","R9152","Operational Accounting","01-EMPLOYEES","Employees","01A","Direct employee expenses","4","Agency Staff - Pay","3750554","202404",28/07/2023 00:00:00,2273.8,"31230","Employment and Recruitment Agencies","REDACTED DATA","MATRIX SCM LTD","2227962","http://opencorporates.com/companies/gb/2227962","249573468"
"London Borough of Redbridge","http://opendatacommunities.org/doc/london-borough-council/redbridge","1BOTHEROPI&E","Other Operating Income & Expenditure","1CTRADSURDEF","Trading Account Surpluses & Deficits","REV","Revenue","R9152","Operational Accounting","01-EMPLOYEES","Employees","01A","Direct employee expenses","4","Agency Staff - Pay","3750554","202404",28/07/2023 00:00:00,1728.09,"31230","Employment and Recruitment Agencies","REDACTED DATA","MATRIX SCM LTD","2227962","http://opencorporates.com/companies/gb/2227962","249573468"
"London Borough of Redbridge","http://opendatacommunities.org/doc/london-borough-council/redbridge","1BOTHEROPI&E","Other Operating Income & Expenditure","1CTRADSURDEF","Trading Account Surpluses & Deficits","REV","Revenue","R9152","Operational Accounting","01-EMPLOYEES","Employees","01A","Direct employee expenses","4","Agency Staff - Pay","3750554","202404",28/07/2023 00:00:00,3295.35,"31230","Employment and Recruitment Agencies","REDACTED DATA","MATRIX SCM LTD","2227962","http://opencorporates.com/companies/gb/2227962","249573468"
"London Borough of Redbridge","http://opendatacommunities.org/doc/london-borough-council/redbridge","1BOTHEROPI&E","Other Operating Income & Expenditure","1CTRADSURDEF","Trading Account Surpluses & Deficits","REV","Revenue","R9152","Operational Accounting","01-EMPLOYEES","Employees","01A","Direct employee expenses","4","Agency Staff - Pay","3750554","202404",28/07/2023 00:00:00,4062.4,"31230","Employment and Recruitment Agencies","REDACTED DATA","MATRIX SCM LTD","2227962","http://opencorporates.com/companies/gb/2227962","249573468"
"London Borough of Redbridge","http://opendatacommunities.org/doc/london-borough-council/redbridge","1BOTHEROPI&E","Other Operating Income & Expenditure","1CTRADSURDEF","Trading Account Surpluses & Deficits","REV","Revenue","R9152","Operational Accounting","01-EMPLOYEES","Employees","01A","Direct employee expenses","4","Agency Staff - Pay","3750554","202404",28/07/2023 00:00:00,3249.92,"31230","Employment and Recruitment Agencies","REDACTED DATA","MATRIX SCM LTD","2227962","http://opencorporates.com/companies/gb/2227962","249573468"
"London Borough of Redbridge","http://opendatacommunities.org/doc/london-borough-council/redbridge","1BOTHEROPI&E","Other Operating Income & Expenditure","1CTRADSURDEF","Trading Account Surpluses & Deficits","REV","Revenue","R9350","Management Team","01-EMPLOYEES","Employees","01A","Direct employee expenses","4","Agency Staff - Pay","3750554","202404",28/07/2023 00:00:00,3350.45,"31230","Employment and Recruitment Agencies","REDACTED DATA","MATRIX SCM LTD","2227962","http://opencorporates.com/companies/gb/2227962","249573468"
"London Borough of Redbridge","http://opendatacommunities.org/doc/london-borough-council/redbridge","1BOTHEROPI&E","Other Operating Income & Expenditure","1CTRADSURDEF","Trading Account Surpluses & Deficits","REV","Revenue","R9351","Litigation Team","01-EMPLOYEES","Employees","01A","Direct employee expenses","4","Agency Staff - Pay","3750554","202404",28/07/2023 00:00:00,2026.2,"31230","Employment and Recruitment Agencies","REDACTED DATA","MATRIX SCM LTD","2227962","http://opencorporates.com/companies/gb/2227962","249573468"
"London Borough of Redbridge","http://opendatacommunities.org/doc/london-borough-council/redbridge","1BOTHEROPI&E","Other Operating Income & Expenditure","1CTRADSURDEF","Trading Account Surpluses & Deficits","REV","Revenue","R9351","Litigation Team","01-EMPLOYEES","Employees","01A","Direct employee expenses","4","Agency Staff - Pay","3750554","202404",28/07/2023 00:00:00,1823.85,"31230","Employment and Recruitment Agencies","REDACTED DATA","MATRIX SCM LTD","2227962","http://opencorporates.com/companies/gb/2227962","249573468"
"London Borough of Redbridge","http://opendatacommunities.org/doc/london-borough-council/redbridge","1BOTHEROPI&E","Other Operating Income & Expenditure","1CTRADSURDEF","Trading Account Surpluses & Deficits","REV","Revenue","R9351","Litigation Team","01-EMPLOYEES","Employees","01A","Direct employee expenses","4","Agency Staff - Pay","3750554","202404",28/07/2023 00:00:00,2228.85,"31230","Employment and Recruitment Agencies","REDACTED DATA","MATRIX SCM LTD","2227962","http://opencorporates.com/companies/gb/2227962","249573468"
"London Borough of Redbridge","http://opendatacommunities.org/doc/london-borough-council/redbridge","1BOTHEROPI&E","Other Operating Income & Expenditure","1CTRADSURDEF","Trading Account Surpluses & Deficits","REV","Revenue","R9353","Advisory Team","01-EMPLOYEES","Employees","01A","Direct employee expenses","4","Agency Staff - Pay","3750554","202404",28/07/2023 00:00:00,1620.95,"31230","Employment and Recruitment Agencies","REDACTED DATA","MATRIX SCM LTD","2227962","http://opencorporates.com/companies/gb/2227962","249573468"
"London Borough of Redbridge","http://opendatacommunities.org/doc/london-borough-council/redbridge","2BDEVCON","Development Control","","","REV","Revenue","R6510","Development Management","01-EMPLOYEES","Employees","01A","Direct employee expenses","4","Agency Staff - Pay","3750554","202404",28/07/2023 00:00:00,1174.9,"31230","Employment and Recruitment Agencies","REDACTED DATA","MATRIX SCM LTD","2227962","http://opencorporates.com/companies/gb/2227962","249573468"
"London Borough of Redbridge","http://opendatacommunities.org/doc/london-borough-council/redbridge","2BDEVCON","Development Control","","","REV","Revenue","R6510","Development Management","01-EMPLOYEES","Employees","01A","Direct employee expenses","4","Agency Staff - Pay","3750554","202404",28/07/2023 00:00:00,577.32,"31230","Employment and Recruitment Agencies","REDACTED DATA","MATRIX SCM LTD","2227962","http://opencorporates.com/companies/gb/2227962","249573468"
"London Borough of Redbridge","http://opendatacommunities.org/doc/london-borough-council/redbridge","2BDEVCON","Development Control","","","REV","Revenue","R6510","Development Management","01-EMPLOYEES","Employees","01A","Direct employee expenses","4","Agency Staff - Pay","3750554","202404",28/07/2023 00:00:00,526.38,"31230","Employment and Recruitment Agencies","REDACTED DATA","MATRIX SCM LTD","2227962","http://opencorporates.com/companies/gb/2227962","249573468"
"London Borough of Redbridge","http://opendatacommunities.org/doc/london-borough-council/redbridge","2BPLANPOL","Planning Policy","","","REV","Revenue","R6511","Strategic Head of Planning & Building Control","01-EMPLOYEES","Employees","01A","Direct employee expenses","4","Agency Staff - Pay","3750554","202404",28/07/2023 00:00:00,4292.25,"31230","Employment and Recruitment Agencies","REDACTED DATA","MATRIX SCM LTD","2227962","http://opencorporates.com/companies/gb/2227962","249573468"
"London Borough of Redbridge","http://opendatacommunities.org/doc/london-borough-council/redbridge","3BLEACENTFND","LEA Centrally Held School Funds","3CNONSCH","Non Schools","REV","Revenue","R2211","SEND SALT & OT Services","01-EMPLOYEES","Employees","01A","Direct employee expenses","4","Agency Staff - Pay","3750554","202404",28/07/2023 00:00:00,7,"31230","Employment and Recruitment Agencies","REDACTED DATA","MATRIX SCM LTD","2227962","http://opencorporates.com/companies/gb/2227962","249573468"
"London Borough of Redbridge","http://opendatacommunities.org/doc/london-borough-council/redbridge","3BLEACENTFND","LEA Centrally Held School Funds","3CNONSCH","Non Schools","REV","Revenue","R2211","SEND SALT & OT Services","01-EMPLOYEES","Employees","01A","Direct employee expenses","4","Agency Staff - Pay","3750554","202404",28/07/2023 00:00:00,1423.9,"31230","Employment and Recruitment Agencies","REDACTED DATA","MATRIX SCM LTD","2227962","http://opencorporates.com/companies/gb/2227962","249573468"
"London Borough of Redbridge","http://opendatacommunities.org/doc/london-borough-council/redbridge","3BLEACENTFND","LEA Centrally Held School Funds","3CNONSCH","Non Schools","REV","Revenue","R2211","SEND SALT & OT Services","01-EMPLOYEES","Employees","01A","Direct employee expenses","4","Agency Staff - Pay","3750554","202404",28/07/2023 00:00:00,2027.65,"31230","Employment and Recruitment Agencies","REDACTED DATA","MATRIX SCM LTD","2227962","http://opencorporates.com/companies/gb/2227962","249573468"
"London Borough of Redbridge","http://opendatacommunities.org/doc/london-borough-council/redbridge","3BLEACENTFND","LEA Centrally Held School Funds","3CNONSCH","Non Schools","REV","Revenue","R2211","SEND SALT & OT Services","01-EMPLOYEES","Employees","01A","Direct employee expenses","4","Agency Staff - Pay","3750554","202404",28/07/2023 00:00:00,1452.75,"31230","Employment and Recruitment Agencies","REDACTED DATA","MATRIX SCM LTD","2227962","http://opencorporates.com/companies/gb/2227962","249573468"
"London Borough of Redbridge","http://opendatacommunities.org/doc/london-borough-council/redbridge","3BLEACENTFND","LEA Centrally Held School Funds","3CNONSCH","Non Schools","REV","Revenue","R2211","SEND SALT & OT Services","01-EMPLOYEES","Employees","01A","Direct employee expenses","4","Agency Staff - Pay","3750554","202404",28/07/2023 00:00:00,667.06,"31230","Employment and Recruitment Agencies","REDACTED DATA","MATRIX SCM LTD","2227962","http://opencorporates.com/companies/gb/2227962","249573468"
"London Borough of Redbridge","http://opendatacommunities.org/doc/london-borough-council/redbridge","3BLEACENTFND","LEA Centrally Held School Funds","3CNONSCH","Non Schools","REV","Revenue","R2230","Local Offer","01-EMPLOYEES","Employees","01A","Direct employee expenses","4","Agency Staff - Pay","3750554","202404",28/07/2023 00:00:00,1657.76,"31230","Employment and Recruitment Agencies","REDACTED DATA","MATRIX SCM LTD","2227962","http://opencorporates.com/companies/gb/2227962","249573468"
"London Borough of Redbridge","http://opendatacommunities.org/doc/london-borough-council/redbridge","3BLEACENTFND","LEA Centrally Held School Funds","3CNONSCH","Non Schools","REV","Revenue","R2230","Local Offer","01-EMPLOYEES","Employees","01A","Direct employee expenses","4","Agency Staff - Pay","3750554","202404",28/07/2023 00:00:00,579,"31230","Employment and Recruitment Agencies","REDACTED DATA","MATRIX SCM LTD","2227962","http://opencorporates.com/companies/gb/2227962","249573468"
"London Borough of Redbridge","http://opendatacommunities.org/doc/london-borough-council/redbridge","3BLEACENTFND","LEA Centrally Held School Funds","3CSCHSTRATMG","Schools Strategic Management","REV","Revenue","R3172","BSA (People)","01-EMPLOYEES","Employees","01A","Direct employee expenses","4","Agency Staff - Pay","3750554","202404",28/07/2023 00:00:00,613.81,"31230","Employment and Recruitment Agencies","REDACTED DATA","MATRIX SCM LTD","2227962","http://opencorporates.com/companies/gb/2227962","249573468"
"London Borough of Redbridge","http://opendatacommunities.org/doc/london-borough-council/redbridge","3BLEACENTFND","LEA Centrally Held School Funds","3CSCHSTRATMG","Schools Strategic Management","REV","Revenue","R3172","BSA (People)","01-EMPLOYEES","Employees","01A","Direct employee expenses","4","Agency Staff - Pay","3750554","202404",28/07/2023 00:00:00,149.55,"31230","Employment and Recruitment Agencies","REDACTED DATA","MATRIX SCM LTD","2227962","http://opencorporates.com/companies/gb/2227962","249573468"
"London Borough of Redbridge","http://opendatacommunities.org/doc/london-borough-council/redbridge","3BLEACENTFND","LEA Centrally Held School Funds","3CSCHSTRATMG","Schools Strategic Management","REV","Revenue","R3172","BSA (People)","01-EMPLOYEES","Employees","01A","Direct employee expenses","4","Agency Staff - Pay","3750554","202404",28/07/2023 00:00:00,692.35,"31230","Employment and Recruitment Agencies","REDACTED DATA","MATRIX SCM LTD","2227962","http://opencorporates.com/companies/gb/2227962","249573468"
"London Borough of Redbridge","http://opendatacommunities.org/doc/london-borough-council/redbridge","3BLEACENTFND","LEA Centrally Held School Funds","3CSCHSTRATMG","Schools Strategic Management","REV","Revenue","R3172","BSA (People)","01-EMPLOYEES","Employees","01A","Direct employee expenses","4","Agency Staff - Pay","3750554","202404",28/07/2023 00:00:00,553.88,"31230","Employment and Recruitment Agencies","REDACTED DATA","MATRIX SCM LTD","2227962","http://opencorporates.com/companies/gb/2227962","249573468"
"London Borough of Redbridge","http://opendatacommunities.org/doc/london-borough-council/redbridge","3BLEACENTFND","LEA Centrally Held School Funds","3CSCHSTRATMG","Schools Strategic Management","REV","Revenue","R3172","BSA (People)","01-EMPLOYEES","Employees","01A","Direct employee expenses","4","Agency Staff - Pay","3750554","202404",28/07/2023 00:00:00,660.9,"31230","Employment and Recruitment Agencies","REDACTED DATA","MATRIX SCM LTD","2227962","http://opencorporates.com/companies/gb/2227962","249573468"
"London Borough of Redbridge","http://opendatacommunities.org/doc/london-borough-council/redbridge","3BLEACENTFND","LEA Centrally Held School Funds","3CSCHSTRATMG","Schools Strategic Management","REV","Revenue","R3172","BSA (People)","01-EMPLOYEES","Employees","01A","Direct employee expenses","4","Agency Staff - Pay","3750554","202404",28/07/2023 00:00:00,697.9,"31230","Employment and Recruitment Agencies","REDACTED DATA","MATRIX SCM LTD","2227962","http://opencorporates.com/companies/gb/2227962","249573468"
"London Borough of Redbridge","http://opendatacommunities.org/doc/london-borough-council/redbridge","3BLEACENTFND","LEA Centrally Held School Funds","3CSCHSTRATMG","Schools Strategic Management","REV","Revenue","R3172","BSA (People)","01-EMPLOYEES","Employees","01A","Direct employee expenses","4","Agency Staff - Pay","3750554","202404",28/07/2023 00:00:00,454.23,"31230","Employment and Recruitment Agencies","REDACTED DATA","MATRIX SCM LTD","2227962","http://opencorporates.com/companies/gb/2227962","249573468"
"London Borough of Redbridge","http://opendatacommunities.org/doc/london-borough-council/redbridge","3BLEACENTFND","LEA Centrally Held School Funds","3CSCHSTRATMG","Schools Strategic Management","REV","Revenue","R3172","BSA (People)","01-EMPLOYEES","Employees","01A","Direct employee expenses","4","Agency Staff - Pay","3750554","202404",28/07/2023 00:00:00,599.2,"31230","Employment and Recruitment Agencies","REDACTED DATA","MATRIX SCM LTD","2227962","http://opencorporates.com/companies/gb/2227962","249573468"
"London Borough of Redbridge","http://opendatacommunities.org/doc/london-borough-council/redbridge","3BLEACENTFND","LEA Centrally Held School Funds","3CSCHSTRATMG","Schools Strategic Management","REV","Revenue","R3172","BSA (People)","01-EMPLOYEES","Employees","01A","Direct employee expenses","4","Agency Staff - Pay","3750554","202404",28/07/2023 00:00:00,702.24,"31230","Employment and Recruitment Agencies","REDACTED DATA","MATRIX SCM LTD","2227962","http://opencorporates.com/companies/gb/2227962","249573468"
"London Borough of Redbridge","http://opendatacommunities.org/doc/london-borough-council/redbridge","3BLEACENTFND","LEA Centrally Held School Funds","3CSCHSTRATMG","Schools Strategic Management","REV","Revenue","R3172","BSA (People)","01-EMPLOYEES","Employees","01A","Direct employee expenses","4","Agency Staff - Pay","3750554","202404",28/07/2023 00:00:00,592.1,"31230","Employment and Recruitment Agencies","REDACTED DATA","MATRIX SCM LTD","2227962","http://opencorporates.com/companies/gb/2227962","249573468"
"London Borough of Redbridge","http://opendatacommunities.org/doc/london-borough-council/redbridge","3BLEACENTFND","LEA Centrally Held School Funds","3CSCHSTRATMG","Schools Strategic Management","REV","Revenue","R3172","BSA (People)","01-EMPLOYEES","Employees","01A","Direct employee expenses","4","Agency Staff - Pay","3750554","202404",28/07/2023 00:00:00,687.93,"31230","Employment and Recruitment Agencies","REDACTED DATA","MATRIX SCM LTD","2227962","http://opencorporates.com/companies/gb/2227962","249573468"
"London Borough of Redbridge","http://opendatacommunities.org/doc/london-borough-council/redbridge","3BLEACENTFND","LEA Centrally Held School Funds","3CSCHSTRATMG","Schools Strategic Management","REV","Revenue","R3172","BSA (People)","01-EMPLOYEES","Employees","01A","Direct employee expenses","4","Agency Staff - Pay","3750554","202404",28/07/2023 00:00:00,456.72,"31230","Employment and Recruitment Agencies","REDACTED DATA","MATRIX SCM LTD","2227962","http://opencorporates.com/companies/gb/2227962","249573468"
"London Borough of Redbridge","http://opendatacommunities.org/doc/london-borough-council/redbridge","3BLEACENTFND","LEA Centrally Held School Funds","3CSCHSTRATMG","Schools Strategic Management","REV","Revenue","R3172","BSA (People)","01-EMPLOYEES","Employees","01A","Direct employee expenses","4","Agency Staff - Pay","3750554","202404",28/07/2023 00:00:00,683.55,"31230","Employment and Recruitment Agencies","REDACTED DATA","MATRIX SCM LTD","2227962","http://opencorporates.com/companies/gb/2227962","249573468"
"London Borough of Redbridge","http://opendatacommunities.org/doc/london-borough-council/redbridge","3BLEACENTFND","LEA Centrally Held School Funds","3CSCHSTRATMG","Schools Strategic Management","REV","Revenue","R3172","BSA (People)","01-EMPLOYEES","Employees","01A","Direct employee expenses","4","Agency Staff - Pay","3750554","202404",28/07/2023 00:00:00,697.9,"31230","Employment and Recruitment Agencies","REDACTED DATA","MATRIX SCM LTD","2227962","http://opencorporates.com/companies/gb/2227962","249573468"
"London Borough of Redbridge","http://opendatacommunities.org/doc/london-borough-council/redbridge","3BLEACENTFND","LEA Centrally Held School Funds","3CSCHSTRATMG","Schools Strategic Management","REV","Revenue","R3172","BSA (People)","01-EMPLOYEES","Employees","01A","Direct employee expenses","4","Agency Staff - Pay","3750554","202404",28/07/2023 00:00:00,762.71,"31230","Employment and Recruitment Agencies","REDACTED DATA","MATRIX SCM LTD","2227962","http://opencorporates.com/companies/gb/2227962","249573468"
"London Borough of Redbridge","http://opendatacommunities.org/doc/london-borough-council/redbridge","3BLEACENTFND","LEA Centrally Held School Funds","3CSCHSTRATMG","Schools Strategic Management","REV","Revenue","R3172","BSA (People)","01-EMPLOYEES","Employees","01A","Direct employee expenses","4","Agency Staff - Pay","3750554","202404",28/07/2023 00:00:00,692.35,"31230","Employment and Recruitment Agencies","REDACTED DATA","MATRIX SCM LTD","2227962","http://opencorporates.com/companies/gb/2227962","249573468"
"London Borough of Redbridge","http://opendatacommunities.org/doc/london-borough-council/redbridge","3BLEACENTFND","LEA Centrally Held School Funds","3CSCHSTRATMG","Schools Strategic Management","REV","Revenue","R3173","Business Support (C&YP)","01-EMPLOYEES","Employees","01A","Direct employee expenses","4","Agency Staff - Pay","3750554","202404",28/07/2023 00:00:00,751.15,"31230","Employment and Recruitment Agencies","REDACTED DATA","MATRIX SCM LTD","2227962","http://opencorporates.com/companies/gb/2227962","249573468"
"London Borough of Redbridge","http://opendatacommunities.org/doc/london-borough-council/redbridge","3BLEACENTFND","LEA Centrally Held School Funds","3CSCHSTRATMG","Schools Strategic Management","REV","Revenue","R3507","Sch Admissions Sectio","01-EMPLOYEES","Employees","01A","Direct employee expenses","4","Agency Staff - Pay","3750554","202404",28/07/2023 00:00:00,504.99,"31230","Employment and Recruitment Agencies","REDACTED DATA","MATRIX SCM LTD","2227962","http://opencorporates.com/companies/gb/2227962","249573468"
"London Borough of Redbridge","http://opendatacommunities.org/doc/london-borough-council/redbridge","3BOPTIONHLDG","Optional Holding Accounts","3CYOUTH","Youth Service","REV","Revenue","R3261","Positive Activities Salaries","01-EMPLOYEES","Employees","01A","Direct employee expenses","4","Agency Staff - Pay","3750554","202404",28/07/2023 00:00:00,959,"31230","Employment and Recruitment Agencies","REDACTED DATA","MATRIX SCM LTD","2227962","http://opencorporates.com/companies/gb/2227962","249573468"
"London Borough of Redbridge","http://opendatacommunities.org/doc/london-borough-council/redbridge","3BOPTIONHLDG","Optional Holding Accounts","3CYOUTH","Youth Service","REV","Revenue","R3371","Youth Justice Service","01-EMPLOYEES","Employees","01A","Direct employee expenses","4","Agency Staff - Pay","3750554","202404",28/07/2023 00:00:00,1370.95,"31230","Employment and Recruitment Agencies","REDACTED DATA","MATRIX SCM LTD","2227962","http://opencorporates.com/companies/gb/2227962","249573468"
"London Borough of Redbridge","http://opendatacommunities.org/doc/london-borough-council/redbridge","3BOPTIONHLDG","Optional Holding Accounts","3CYOUTH","Youth Service","REV","Revenue","R3371","Youth Justice Service","01-EMPLOYEES","Employees","01A","Direct employee expenses","4","Agency Staff - Pay","3750554","202404",28/07/2023 00:00:00,605.27,"31230","Employment and Recruitment Agencies","REDACTED DATA","MATRIX SCM LTD","2227962","http://opencorporates.com/companies/gb/2227962","249573468"
"London Borough of Redbridge","http://opendatacommunities.org/doc/london-borough-council/redbridge","4BMANGT&SUPP","Management & Support Services","4CHIGHRDROUT","Highways/Roads (Routine)","REV","Revenue","R7079","Highways and Transportation Management","01-EMPLOYEES","Employees","01A","Direct employee expenses","4","Agency Staff - Pay","3750554","202404",28/07/2023 00:00:00,1842.14,"31230","Employment and Recruitment Agencies","REDACTED DATA","MATRIX SCM LTD","2227962","http://opencorporates.com/companies/gb/2227962","249573468"
"London Borough of Redbridge","http://opendatacommunities.org/doc/london-borough-council/redbridge","5BGFHOUSING","General Fund Housing","5CHOMELESS","Homelessness","REV","Revenue","R5639","Rough Sleeping Initiatives","01-EMPLOYEES","Employees","01A","Direct employee expenses","4","Agency Staff - Pay","3750554","202404",28/07/2023 00:00:00,1137.55,"31230","Employment and Recruitment Agencies","REDACTED DATA","MATRIX SCM LTD","2227962","http://opencorporates.com/companies/gb/2227962","249573468"
"London Borough of Redbridge","http://opendatacommunities.org/doc/london-borough-council/redbridge","5BGFHOUSING","General Fund Housing","5CHOMELESS","Homelessness","REV","Revenue","R5643","Temporary Structure and TA Change Programme","01-EMPLOYEES","Employees","01A","Direct employee expenses","4","Agency Staff - Pay","3750554","202404",28/07/2023 00:00:00,900.28,"31230","Employment and Recruitment Agencies","REDACTED DATA","MATRIX SCM LTD","2227962","http://opencorporates.com/companies/gb/2227962","249573468"
"London Borough of Redbridge","http://opendatacommunities.org/doc/london-borough-council/redbridge","5BGFHOUSING","General Fund Housing","5CHOMELESS","Homelessness","REV","Revenue","R5643","Temporary Structure and TA Change Programme","01-EMPLOYEES","Employees","01A","Direct employee expenses","4","Agency Staff - Pay","3750554","202404",28/07/2023 00:00:00,4044.05,"31230","Employment and Recruitment Agencies","REDACTED DATA","MATRIX SCM LTD","2227962","http://opencorporates.com/companies/gb/2227962","249573468"
"London Borough of Redbridge","http://opendatacommunities.org/doc/london-borough-council/redbridge","5BGFHOUSING","General Fund Housing","5CHOMELESS","Homelessness","REV","Revenue","R5654","St Georgio","01-EMPLOYEES","Employees","01A","Direct employee expenses","4","Agency Staff - Pay","3750554","202404",28/07/2023 00:00:00,830.5,"31230","Employment and Recruitment Agencies","REDACTED DATA","MATRIX SCM LTD","2227962","http://opencorporates.com/companies/gb/2227962","249573468"
"London Borough of Redbridge","http://opendatacommunities.org/doc/london-borough-council/redbridge","5BGFHOUSING","General Fund Housing","5CHOUMGTSUPP","Housing Management & Support Services","REV","Revenue","R5600","Housing Finance Team","01-EMPLOYEES","Employees","01A","Direct employee expenses","4","Agency Staff - Pay","3750554","202404",28/07/2023 00:00:00,866.41,"31230","Employment and Recruitment Agencies","REDACTED DATA","MATRIX SCM LTD","2227962","http://opencorporates.com/companies/gb/2227962","249573468"
"London Borough of Redbridge","http://opendatacommunities.org/doc/london-borough-council/redbridge","5BGFHOUSING","General Fund Housing","5CHOUMGTSUPP","Housing Management & Support Services","REV","Revenue","R5601","Housing Service Administration","01-EMPLOYEES","Employees","01A","Direct employee expenses","4","Agency Staff - Pay","3750554","202404",28/07/2023 00:00:00,428.94,"31230","Employment and Recruitment Agencies","REDACTED DATA","MATRIX SCM LTD","2227962","http://opencorporates.com/companies/gb/2227962","249573468"
"London Borough of Redbridge","http://opendatacommunities.org/doc/london-borough-council/redbridge","5BGFHOUSING","General Fund Housing","5CHOUMGTSUPP","Housing Management & Support Services","REV","Revenue","R5619","One Plan Programme","01-EMPLOYEES","Employees","01A","Direct employee expenses","4","Agency Staff - Pay","3750554","202404",28/07/2023 00:00:00,1137.6,"31230","Employment and Recruitment Agencies","REDACTED DATA","MATRIX SCM LTD","2227962","http://opencorporates.com/companies/gb/2227962","249573468"
"London Borough of Redbridge","http://opendatacommunities.org/doc/london-borough-council/redbridge","5BGFHOUSING","General Fund Housing","5CHOUMGTSUPP","Housing Management & Support Services","REV","Revenue","R5619","One Plan Programme","01-EMPLOYEES","Employees","01A","Direct employee expenses","4","Agency Staff - Pay","3750554","202404",28/07/2023 00:00:00,1311.14,"31230","Employment and Recruitment Agencies","REDACTED DATA","MATRIX SCM LTD","2227962","http://opencorporates.com/companies/gb/2227962","249573468"
"London Borough of Redbridge","http://opendatacommunities.org/doc/london-borough-council/redbridge","5BGFHOUSING","General Fund Housing","5CHOUMGTSUPP","Housing Management & Support Services","REV","Revenue","R5619","One Plan Programme","01-EMPLOYEES","Employees","01A","Direct employee expenses","4","Agency Staff - Pay","3750554","202404",28/07/2023 00:00:00,1191.05,"31230","Employment and Recruitment Agencies","REDACTED DATA","MATRIX SCM LTD","2227962","http://opencorporates.com/companies/gb/2227962","249573468"
"London Borough of Redbridge","http://opendatacommunities.org/doc/london-borough-council/redbridge","5BGFHOUSING","General Fund Housing","5CPRIVSECREN","Private Sector Housing Renewal","REV","Revenue","R5620","Private Sector Housing Standards","01-EMPLOYEES","Employees","01A","Direct employee expenses","4","Agency Staff - Pay","3750554","202404",28/07/2023 00:00:00,1785.97,"31230","Employment and Recruitment Agencies","REDACTED DATA","MATRIX SCM LTD","2227962","http://opencorporates.com/companies/gb/2227962","249573468"
"London Borough of Redbridge","http://opendatacommunities.org/doc/london-borough-council/redbridge","5BGFHOUSING","General Fund Housing","5CPRIVSECREN","Private Sector Housing Renewal","REV","Revenue","R5620","Private Sector Housing Standards","01-EMPLOYEES","Employees","01A","Direct employee expenses","4","Agency Staff - Pay","3750554","202404",28/07/2023 00:00:00,1771.49,"31230","Employment and Recruitment Agencies","REDACTED DATA","MATRIX SCM LTD","2227962","http://opencorporates.com/companies/gb/2227962","249573468"
"London Borough of Redbridge","http://opendatacommunities.org/doc/london-borough-council/redbridge","5BGFHOUSING","General Fund Housing","5CPRIVSECREN","Private Sector Housing Renewal","REV","Revenue","R5621","Property Licencing Scheme","01-EMPLOYEES","Employees","01A","Direct employee expenses","4","Agency Staff - Pay","3750554","202404",28/07/2023 00:00:00,2582.45,"31230","Employment and Recruitment Agencies","REDACTED DATA","MATRIX SCM LTD","2227962","http://opencorporates.com/companies/gb/2227962","249573468"
"London Borough of Redbridge","http://opendatacommunities.org/doc/london-borough-council/redbridge","5BGFHOUSING","General Fund Housing","5CPRIVSECREN","Private Sector Housing Renewal","REV","Revenue","R5621","Property Licencing Scheme","01-EMPLOYEES","Employees","01A","Direct employee expenses","4","Agency Staff - Pay","3750554","202404",28/07/2023 00:00:00,1198.08,"31230","Employment and Recruitment Agencies","REDACTED DATA","MATRIX SCM LTD","2227962","http://opencorporates.com/companies/gb/2227962","249573468"
"London Borough of Redbridge","http://opendatacommunities.org/doc/london-borough-council/redbridge","5BGFHOUSING","General Fund Housing","5CPRIVSECREN","Private Sector Housing Renewal","REV","Revenue","R5621","Property Licencing Scheme","01-EMPLOYEES","Employees","01A","Direct employee expenses","4","Agency Staff - Pay","3750554","202404",28/07/2023 00:00:00,1785.96,"31230","Employment and Recruitment Agencies","REDACTED DATA","MATRIX SCM LTD","2227962","http://opencorporates.com/companies/gb/2227962","249573468"
"London Borough of Redbridge","http://opendatacommunities.org/doc/london-borough-council/redbridge","5BGFHOUSING","General Fund Housing","5CPRIVSECREN","Private Sector Housing Renewal","REV","Revenue","R5621","Property Licencing Scheme","01-EMPLOYEES","Employees","01A","Direct employee expenses","4","Agency Staff - Pay","3750554","202404",28/07/2023 00:00:00,776.52,"31230","Employment and Recruitment Agencies","REDACTED DATA","MATRIX SCM LTD","2227962","http://opencorporates.com/companies/gb/2227962","249573468"
"London Borough of Redbridge","http://opendatacommunities.org/doc/london-borough-council/redbridge","5BGFHOUSING","General Fund Housing","5CPRIVSECREN","Private Sector Housing Renewal","REV","Revenue","R5621","Property Licencing Scheme","01-EMPLOYEES","Employees","01A","Direct employee expenses","4","Agency Staff - Pay","3750554","202404",28/07/2023 00:00:00,1871.76,"31230","Employment and Recruitment Agencies","REDACTED DATA","MATRIX SCM LTD","2227962","http://opencorporates.com/companies/gb/2227962","249573468"
"London Borough of Redbridge","http://opendatacommunities.org/doc/london-borough-council/redbridge","5BGFHOUSING","General Fund Housing","5CPRIVSECREN","Private Sector Housing Renewal","REV","Revenue","R5621","Property Licencing Scheme","01-EMPLOYEES","Employees","01A","Direct employee expenses","4","Agency Staff - Pay","3750554","202404",28/07/2023 00:00:00,1223.65,"31230","Employment and Recruitment Agencies","REDACTED DATA","MATRIX SCM LTD","2227962","http://opencorporates.com/companies/gb/2227962","249573468"
"London Borough of Redbridge","http://opendatacommunities.org/doc/london-borough-council/redbridge","5BGFHOUSING","General Fund Housing","5CPRIVSECREN","Private Sector Housing Renewal","REV","Revenue","R5623","Housing Improvement Team","01-EMPLOYEES","Employees","01A","Direct employee expenses","4","Agency Staff - Pay","3750554","202404",28/07/2023 00:00:00,661.8,"31230","Employment and Recruitment Agencies","REDACTED DATA","MATRIX SCM LTD","2227962","http://opencorporates.com/companies/gb/2227962","249573468"
"London Borough of Redbridge","http://opendatacommunities.org/doc/london-borough-council/redbridge","6BADULTSOCIA","Adult Social Care","6CADMENHLTH","Adults Under 65 with Mental Health Needs","REV","Revenue","R4254","Community Mental Health Team AMHP Base","01-EMPLOYEES","Employees","01A","Direct employee expenses","4","Agency Staff - Pay","3750554","202404",28/07/2023 00:00:00,1672.58,"31230","Employment and Recruitment Agencies","REDACTED DATA","MATRIX SCM LTD","2227962","http://opencorporates.com/companies/gb/2227962","249573468"
"London Borough of Redbridge","http://opendatacommunities.org/doc/london-borough-council/redbridge","6BADULTSOCIA","Adult Social Care","6CADMENHLTH","Adults Under 65 with Mental Health Needs","REV","Revenue","R4370","Access and Assessment Brief Intervention Team","01-EMPLOYEES","Employees","01A","Direct employee expenses","4","Agency Staff - Pay","3750554","202404",28/07/2023 00:00:00,1516.32,"31230","Employment and Recruitment Agencies","REDACTED DATA","MATRIX SCM LTD","2227962","http://opencorporates.com/companies/gb/2227962","249573468"
"London Borough of Redbridge","http://opendatacommunities.org/doc/london-borough-council/redbridge","6BADULTSOCIA","Adult Social Care","6CADMENHLTH","Adults Under 65 with Mental Health Needs","REV","Revenue","R4370","Access and Assessment Brief Intervention Team","01-EMPLOYEES","Employees","01A","Direct employee expenses","4","Agency Staff - Pay","3750554","202404",28/07/2023 00:00:00,1221.48,"31230","Employment and Recruitment Agencies","REDACTED DATA","MATRIX SCM LTD","2227962","http://opencorporates.com/companies/gb/2227962","249573468"
"London Borough of Redbridge","http://opendatacommunities.org/doc/london-borough-council/redbridge","6BADULTSOCIA","Adult Social Care","6CADMENHLTH","Adults Under 65 with Mental Health Needs","REV","Revenue","R4379","Redbridge Community Recovery Services","01-EMPLOYEES","Employees","01A","Direct employee expenses","4","Agency Staff - Pay","3750554","202404",28/07/2023 00:00:00,8.82,"31230","Employment and Recruitment Agencies","REDACTED DATA","MATRIX SCM LTD","2227962","http://opencorporates.com/companies/gb/2227962","249573468"
"London Borough of Redbridge","http://opendatacommunities.org/doc/london-borough-council/redbridge","6BADULTSOCIA","Adult Social Care","6CADMENHLTH","Adults Under 65 with Mental Health Needs","REV","Revenue","R4379","Redbridge Community Recovery Services","01-EMPLOYEES","Employees","01A","Direct employee expenses","4","Agency Staff - Pay","3750554","202404",28/07/2023 00:00:00,1404,"31230","Employment and Recruitment Agencies","REDACTED DATA","MATRIX SCM LTD","2227962","http://opencorporates.com/companies/gb/2227962","249573468"
"London Borough of Redbridge","http://opendatacommunities.org/doc/london-borough-council/redbridge","6BADULTSOCIA","Adult Social Care","6CADMENHLTH","Adults Under 65 with Mental Health Needs","REV","Revenue","R4379","Redbridge Community Recovery Services","01-EMPLOYEES","Employees","01A","Direct employee expenses","4","Agency Staff - Pay","3750554","202404",28/07/2023 00:00:00,614.26,"31230","Employment and Recruitment Agencies","REDACTED DATA","MATRIX SCM LTD","2227962","http://opencorporates.com/companies/gb/2227962","249573468"
"London Borough of Redbridge","http://opendatacommunities.org/doc/london-borough-council/redbridge","6BADULTSOCIA","Adult Social Care","6CADMENHLTH","Adults Under 65 with Mental Health Needs","REV","Revenue","R4379","Redbridge Community Recovery Services","01-EMPLOYEES","Employees","01A","Direct employee expenses","4","Agency Staff - Pay","3750554","202404",28/07/2023 00:00:00,614.26,"31230","Employment and Recruitment Agencies","REDACTED DATA","MATRIX SCM LTD","2227962","http://opencorporates.com/companies/gb/2227962","249573468"
"London Borough of Redbridge","http://opendatacommunities.org/doc/london-borough-council/redbridge","6BADULTSOCIA","Adult Social Care","6CADMENHLTH","Adults Under 65 with Mental Health Needs","REV","Revenue","R4379","Redbridge Community Recovery Services","01-EMPLOYEES","Employees","01A","Direct employee expenses","4","Agency Staff - Pay","3750554","202404",28/07/2023 00:00:00,1422.13,"31230","Employment and Recruitment Agencies","REDACTED DATA","MATRIX SCM LTD","2227962","http://opencorporates.com/companies/gb/2227962","249573468"
"London Borough of Redbridge","http://opendatacommunities.org/doc/london-borough-council/redbridge","6BADULTSOCIA","Adult Social Care","6CADMENHLTH","Adults Under 65 with Mental Health Needs","REV","Revenue","R4379","Redbridge Community Recovery Services","01-EMPLOYEES","Employees","01A","Direct employee expenses","4","Agency Staff - Pay","3750554","202404",28/07/2023 00:00:00,1461.35,"31230","Employment and Recruitment Agencies","REDACTED DATA","MATRIX SCM LTD","2227962","http://opencorporates.com/companies/gb/2227962","249573468"
"London Borough of Redbridge","http://opendatacommunities.org/doc/london-borough-council/redbridge","6BADULTSOCIA","Adult Social Care","6CADMENHLTH","Adults Under 65 with Mental Health Needs","REV","Revenue","R4463","Mental Health Capacity Act and Safeguarding Adults","01-EMPLOYEES","Employees","01A","Direct employee expenses","4","Agency Staff - Pay","3750554","202404",28/07/2023 00:00:00,250,"31230","Employment and Recruitment Agencies","REDACTED DATA","MATRIX SCM LTD","2227962","http://opencorporates.com/companies/gb/2227962","249573468"
"London Borough of Redbridge","http://opendatacommunities.org/doc/london-borough-council/redbridge","6BADULTSOCIA","Adult Social Care","6CADMENHLTH","Adults Under 65 with Mental Health Needs","REV","Revenue","R4463","Mental Health Capacity Act and Safeguarding Adults","01-EMPLOYEES","Employees","01A","Direct employee expenses","4","Agency Staff - Pay","3750554","202404",28/07/2023 00:00:00,847.14,"31230","Employment and Recruitment Agencies","REDACTED DATA","MATRIX SCM LTD","2227962","http://opencorporates.com/companies/gb/2227962","249573468"
"London Borough of Redbridge","http://opendatacommunities.org/doc/london-borough-council/redbridge","6BADULTSOCIA","Adult Social Care","6CADMENHLTH","Adults Under 65 with Mental Health Needs","REV","Revenue","R4463","Mental Health Capacity Act and Safeguarding Adults","01-EMPLOYEES","Employees","01A","Direct employee expenses","4","Agency Staff - Pay","3750554","202404",28/07/2023 00:00:00,1685.54,"31230","Employment and Recruitment Agencies","REDACTED DATA","MATRIX SCM LTD","2227962","http://opencorporates.com/companies/gb/2227962","249573468"
"London Borough of Redbridge","http://opendatacommunities.org/doc/london-borough-council/redbridge","6BADULTSOCIA","Adult Social Care","6CADMENHLTH","Adults Under 65 with Mental Health Needs","REV","Revenue","R4463","Mental Health Capacity Act and Safeguarding Adults","01-EMPLOYEES","Employees","01A","Direct employee expenses","4","Agency Staff - Pay","3750554","202404",28/07/2023 00:00:00,1390.34,"31230","Employment and Recruitment Agencies","REDACTED DATA","MATRIX SCM LTD","2227962","http://opencorporates.com/companies/gb/2227962","249573468"
"London Borough of Redbridge","http://opendatacommunities.org/doc/london-borough-council/redbridge","6BADULTSOCIA","Adult Social Care","6CADMENHLTH","Adults Under 65 with Mental Health Needs","REV","Revenue","R4463","Mental Health Capacity Act and Safeguarding Adults","01-EMPLOYEES","Employees","01A","Direct employee expenses","4","Agency Staff - Pay","3750554","202404",28/07/2023 00:00:00,1474.21,"31230","Employment and Recruitment Agencies","REDACTED DATA","MATRIX SCM LTD","2227962","http://opencorporates.com/companies/gb/2227962","249573468"
"London Borough of Redbridge","http://opendatacommunities.org/doc/london-borough-council/redbridge","6BADULTSOCIA","Adult Social Care","6CADMENHLTH","Adults Under 65 with Mental Health Needs","REV","Revenue","R4473","Lifelines","01-EMPLOYEES","Employees","01A","Direct employee expenses","4","Agency Staff - Pay","3750554","202404",28/07/2023 00:00:00,62.39,"31230","Employment and Recruitment Agencies","REDACTED DATA","MATRIX SCM LTD","2227962","http://opencorporates.com/companies/gb/2227962","249573468"
"London Borough of Redbridge","http://opendatacommunities.org/doc/london-borough-council/redbridge","6BADULTSOCIA","Adult Social Care","6CADMENHLTH","Adults Under 65 with Mental Health Needs","REV","Revenue","R4473","Lifelines","01-EMPLOYEES","Employees","01A","Direct employee expenses","4","Agency Staff - Pay","3750554","202404",28/07/2023 00:00:00,210.5,"31230","Employment and Recruitment Agencies","REDACTED DATA","MATRIX SCM LTD","2227962","http://opencorporates.com/companies/gb/2227962","249573468"
"London Borough of Redbridge","http://opendatacommunities.org/doc/london-borough-council/redbridge","6BADULTSOCIA","Adult Social Care","6CADMENHLTH","Adults Under 65 with Mental Health Needs","REV","Revenue","R4473","Lifelines","01-EMPLOYEES","Employees","01A","Direct employee expenses","4","Agency Staff - Pay","3750554","202404",28/07/2023 00:00:00,229.4,"31230","Employment and Recruitment Agencies","REDACTED DATA","MATRIX SCM LTD","2227962","http://opencorporates.com/companies/gb/2227962","249573468"
"London Borough of Redbridge","http://opendatacommunities.org/doc/london-borough-council/redbridge","6BADULTSOCIA","Adult Social Care","6CADMENHLTH","Adults Under 65 with Mental Health Needs","REV","Revenue","R4473","Lifelines","01-EMPLOYEES","Employees","01A","Direct employee expenses","4","Agency Staff - Pay","3750554","202404",28/07/2023 00:00:00,133.3,"31230","Employment and Recruitment Agencies","REDACTED DATA","MATRIX SCM LTD","2227962","http://opencorporates.com/companies/gb/2227962","249573468"
"London Borough of Redbridge","http://opendatacommunities.org/doc/london-borough-council/redbridge","6BADULTSOCIA","Adult Social Care","6CADMENHLTH","Adults Under 65 with Mental Health Needs","REV","Revenue","R4473","Lifelines","01-EMPLOYEES","Employees","01A","Direct employee expenses","4","Agency Staff - Pay","3750554","202404",28/07/2023 00:00:00,40.28,"31230","Employment and Recruitment Agencies","REDACTED DATA","MATRIX SCM LTD","2227962","http://opencorporates.com/companies/gb/2227962","249573468"
"London Borough of Redbridge","http://opendatacommunities.org/doc/london-borough-council/redbridge","6BADULTSOCIA","Adult Social Care","6CADMENHLTH","Adults Under 65 with Mental Health Needs","REV","Revenue","R4473","Lifelines","01-EMPLOYEES","Employees","01A","Direct employee expenses","4","Agency Staff - Pay","3750554","202404",28/07/2023 00:00:00,196.95,"31230","Employment and Recruitment Agencies","REDACTED DATA","MATRIX SCM LTD","2227962","http://opencorporates.com/companies/gb/2227962","249573468"
"London Borough of Redbridge","http://opendatacommunities.org/doc/london-borough-council/redbridge","6BADULTSOCIA","Adult Social Care","6CADMENHLTH","Adults Under 65 with Mental Health Needs","REV","Revenue","R4473","Lifelines","01-EMPLOYEES","Employees","01A","Direct employee expenses","4","Agency Staff - Pay","3750554","202404",28/07/2023 00:00:00,859.24,"31230","Employment and Recruitment Agencies","REDACTED DATA","MATRIX SCM LTD","2227962","http://opencorporates.com/companies/gb/2227962","249573468"
"London Borough of Redbridge","http://opendatacommunities.org/doc/london-borough-council/redbridge","6BADULTSOCIA","Adult Social Care","6CADMENHLTH","Adults Under 65 with Mental Health Needs","REV","Revenue","R4473","Lifelines","01-EMPLOYEES","Employees","01A","Direct employee expenses","4","Agency Staff - Pay","3750554","202404",28/07/2023 00:00:00,237.45,"31230","Employment and Recruitment Agencies","REDACTED DATA","MATRIX SCM LTD","2227962","http://opencorporates.com/companies/gb/2227962","249573468"
"London Borough of Redbridge","http://opendatacommunities.org/doc/london-borough-council/redbridge","6BADULTSOCIA","Adult Social Care","6CADMENHLTH","Adults Under 65 with Mental Health Needs","REV","Revenue","R4473","Lifelines","01-EMPLOYEES","Employees","01A","Direct employee expenses","4","Agency Staff - Pay","3750554","202404",28/07/2023 00:00:00,52.63,"31230","Employment and Recruitment Agencies","REDACTED DATA","MATRIX SCM LTD","2227962","http://opencorporates.com/companies/gb/2227962","249573468"
"London Borough of Redbridge","http://opendatacommunities.org/doc/london-borough-council/redbridge","6BADULTSOCIA","Adult Social Care","6CADMENHLTH","Adults Under 65 with Mental Health Needs","REV","Revenue","R4473","Lifelines","01-EMPLOYEES","Employees","01A","Direct employee expenses","4","Agency Staff - Pay","3750554","202404",28/07/2023 00:00:00,436.05,"31230","Employment and Recruitment Agencies","REDACTED DATA","MATRIX SCM LTD","2227962","http://opencorporates.com/companies/gb/2227962","249573468"
"London Borough of Redbridge","http://opendatacommunities.org/doc/london-borough-council/redbridge","6BADULTSOCIA","Adult Social Care","6CADMENHLTH","Adults Under 65 with Mental Health Needs","REV","Revenue","R4473","Lifelines","01-EMPLOYEES","Employees","01A","Direct employee expenses","4","Agency Staff - Pay","3750554","202404",28/07/2023 00:00:00,853.12,"31230","Employment and Recruitment Agencies","REDACTED DATA","MATRIX SCM LTD","2227962","http://opencorporates.com/companies/gb/2227962","249573468"
"London Borough of Redbridge","http://opendatacommunities.org/doc/london-borough-council/redbridge","6BADULTSOCIA","Adult Social Care","6CADMENHLTH","Adults Under 65 with Mental Health Needs","REV","Revenue","R4484","Multi- Disciplinary Team (Fairlop)","01-EMPLOYEES","Employees","01A","Direct employee expenses","4","Agency Staff - Pay","3750554","202404",28/07/2023 00:00:00,1226.48,"31230","Employment and Recruitment Agencies","REDACTED DATA","MATRIX SCM LTD","2227962","http://opencorporates.com/companies/gb/2227962","249573468"
"London Borough of Redbridge","http://opendatacommunities.org/doc/london-borough-council/redbridge","6BADULTSOCIA","Adult Social Care","6CADMENHLTH","Adults Under 65 with Mental Health Needs","REV","Revenue","R4484","Multi- Disciplinary Team (Fairlop)","01-EMPLOYEES","Employees","01A","Direct employee expenses","4","Agency Staff - Pay","3750554","202404",28/07/2023 00:00:00,1347.84,"31230","Employment and Recruitment Agencies","REDACTED DATA","MATRIX SCM LTD","2227962","http://opencorporates.com/companies/gb/2227962","249573468"
"London Borough of Redbridge","http://opendatacommunities.org/doc/london-borough-council/redbridge","6BADULTSOCIA","Adult Social Care","6CADMENHLTH","Adults Under 65 with Mental Health Needs","REV","Revenue","R4484","Multi- Disciplinary Team (Fairlop)","01-EMPLOYEES","Employees","01A","Direct employee expenses","4","Agency Staff - Pay","3750554","202404",28/07/2023 00:00:00,1631.57,"31230","Employment and Recruitment Agencies","REDACTED DATA","MATRIX SCM LTD","2227962","http://opencorporates.com/companies/gb/2227962","249573468"
"London Borough of Redbridge","http://opendatacommunities.org/doc/london-borough-council/redbridge","6BADULTSOCIA","Adult Social Care","6CADMENHLTH","Adults Under 65 with Mental Health Needs","REV","Revenue","R4484","Multi- Disciplinary Team (Fairlop)","01-EMPLOYEES","Employees","01A","Direct employee expenses","4","Agency Staff - Pay","3750554","202404",28/07/2023 00:00:00,8.55,"31230","Employment and Recruitment Agencies","REDACTED DATA","MATRIX SCM LTD","2227962","http://opencorporates.com/companies/gb/2227962","249573468"
"London Borough of Redbridge","http://opendatacommunities.org/doc/london-borough-council/redbridge","6BADULTSOCIA","Adult Social Care","6CADMENHLTH","Adults Under 65 with Mental Health Needs","REV","Revenue","R4484","Multi- Disciplinary Team (Fairlop)","01-EMPLOYEES","Employees","01A","Direct employee expenses","4","Agency Staff - Pay","3750554","202404",28/07/2023 00:00:00,1390.32,"31230","Employment and Recruitment Agencies","REDACTED DATA","MATRIX SCM LTD","2227962","http://opencorporates.com/companies/gb/2227962","249573468"
"London Borough of Redbridge","http://opendatacommunities.org/doc/london-borough-council/redbridge","6BADULTSOCIA","Adult Social Care","6CADMENHLTH","Adults Under 65 with Mental Health Needs","REV","Revenue","R4484","Multi- Disciplinary Team (Fairlop)","01-EMPLOYEES","Employees","01A","Direct employee expenses","4","Agency Staff - Pay","3750554","202404",28/07/2023 00:00:00,1610.29,"31230","Employment and Recruitment Agencies","REDACTED DATA","MATRIX SCM LTD","2227962","http://opencorporates.com/companies/gb/2227962","249573468"
"London Borough of Redbridge","http://opendatacommunities.org/doc/london-borough-council/redbridge","6BADULTSOCIA","Adult Social Care","6CADMENHLTH","Adults Under 65 with Mental Health Needs","REV","Revenue","R4484","Multi- Disciplinary Team (Fairlop)","01-EMPLOYEES","Employees","01A","Direct employee expenses","4","Agency Staff - Pay","3750554","202404",28/07/2023 00:00:00,1337.41,"31230","Employment and Recruitment Agencies","REDACTED DATA","MATRIX SCM LTD","2227962","http://opencorporates.com/companies/gb/2227962","249573468"
"London Borough of Redbridge","http://opendatacommunities.org/doc/london-borough-council/redbridge","6BADULTSOCIA","Adult Social Care","6CADMENHLTH","Adults Under 65 with Mental Health Needs","REV","Revenue","R4484","Multi- Disciplinary Team (Fairlop)","01-EMPLOYEES","Employees","01A","Direct employee expenses","4","Agency Staff - Pay","3750554","202404",28/07/2023 00:00:00,1402.8,"31230","Employment and Recruitment Agencies","REDACTED DATA","MATRIX SCM LTD","2227962","http://opencorporates.com/companies/gb/2227962","249573468"
"London Borough of Redbridge","http://opendatacommunities.org/doc/london-borough-council/redbridge","6BADULTSOCIA","Adult Social Care","6CADMENHLTH","Adults Under 65 with Mental Health Needs","REV","Revenue","R4484","Multi- Disciplinary Team (Fairlop)","01-EMPLOYEES","Employees","01A","Direct employee expenses","4","Agency Staff - Pay","3750554","202404",28/07/2023 00:00:00,796.67,"31230","Employment and Recruitment Agencies","REDACTED DATA","MATRIX SCM LTD","2227962","http://opencorporates.com/companies/gb/2227962","249573468"
"London Borough of Redbridge","http://opendatacommunities.org/doc/london-borough-council/redbridge","6BADULTSOCIA","Adult Social Care","6CADMENHLTH","Adults Under 65 with Mental Health Needs","REV","Revenue","R4484","Multi- Disciplinary Team (Fairlop)","01-EMPLOYEES","Employees","01A","Direct employee expenses","4","Agency Staff - Pay","3750554","202404",28/07/2023 00:00:00,1226.83,"31230","Employment and Recruitment Agencies","REDACTED DATA","MATRIX SCM LTD","2227962","http://opencorporates.com/companies/gb/2227962","249573468"
"London Borough of Redbridge","http://opendatacommunities.org/doc/london-borough-council/redbridge","6BADULTSOCIA","Adult Social Care","6CADMENHLTH","Adults Under 65 with Mental Health Needs","REV","Revenue","R4484","Multi- Disciplinary Team (Fairlop)","01-EMPLOYEES","Employees","01A","Direct employee expenses","4","Agency Staff - Pay","3750554","202404",28/07/2023 00:00:00,1337.4,"31230","Employment and Recruitment Agencies","REDACTED DATA","MATRIX SCM LTD","2227962","http://opencorporates.com/companies/gb/2227962","249573468"
"London Borough of Redbridge","http://opendatacommunities.org/doc/london-borough-council/redbridge","6BADULTSOCIA","Adult Social Care","6CADMENHLTH","Adults Under 65 with Mental Health Needs","REV","Revenue","R4484","Multi- Disciplinary Team (Fairlop)","01-EMPLOYEES","Employees","01A","Direct employee expenses","4","Agency Staff - Pay","3750554","202404",28/07/2023 00:00:00,1421.3,"31230","Employment and Recruitment Agencies","REDACTED DATA","MATRIX SCM LTD","2227962","http://opencorporates.com/companies/gb/2227962","249573468"
"London Borough of Redbridge","http://opendatacommunities.org/doc/london-borough-council/redbridge","6BADULTSOCIA","Adult Social Care","6CADMENHLTH","Adults Under 65 with Mental Health Needs","REV","Revenue","R4484","Multi- Disciplinary Team (Fairlop)","01-EMPLOYEES","Employees","01A","Direct employee expenses","4","Agency Staff - Pay","3750554","202404",28/07/2023 00:00:00,1337.61,"31230","Employment and Recruitment Agencies","REDACTED DATA","MATRIX SCM LTD","2227962","http://opencorporates.com/companies/gb/2227962","249573468"
"London Borough of Redbridge","http://opendatacommunities.org/doc/london-borough-council/redbridge","6BADULTSOCIA","Adult Social Care","6CADMENHLTH","Adults Under 65 with Mental Health Needs","REV","Revenue","R4484","Multi- Disciplinary Team (Fairlop)","01-EMPLOYEES","Employees","01A","Direct employee expenses","4","Agency Staff - Pay","3750554","202404",28/07/2023 00:00:00,1390.32,"31230","Employment and Recruitment Agencies","REDACTED DATA","MATRIX SCM LTD","2227962","http://opencorporates.com/companies/gb/2227962","249573468"
"London Borough of Redbridge","http://opendatacommunities.org/doc/london-borough-council/redbridge","6BADULTSOCIA","Adult Social Care","6CADMENHLTH","Adults Under 65 with Mental Health Needs","REV","Revenue","R4484","Multi- Disciplinary Team (Fairlop)","01-EMPLOYEES","Employees","01A","Direct employee expenses","4","Agency Staff - Pay","3750554","202404",28/07/2023 00:00:00,1494.72,"31230","Employment and Recruitment Agencies","REDACTED DATA","MATRIX SCM LTD","2227962","http://opencorporates.com/companies/gb/2227962","249573468"
"London Borough of Redbridge","http://opendatacommunities.org/doc/london-borough-council/redbridge","6BADULTSOCIA","Adult Social Care","6CADMENHLTH","Adults Under 65 with Mental Health Needs","REV","Revenue","R4484","Multi- Disciplinary Team (Fairlop)","01-EMPLOYEES","Employees","01A","Direct employee expenses","4","Agency Staff - Pay","3750554","202404",28/07/2023 00:00:00,1337.51,"31230","Employment and Recruitment Agencies","REDACTED DATA","MATRIX SCM LTD","2227962","http://opencorporates.com/companies/gb/2227962","249573468"
"London Borough of Redbridge","http://opendatacommunities.org/doc/london-borough-council/redbridge","6BADULTSOCIA","Adult Social Care","6CADMENHLTH","Adults Under 65 with Mental Health Needs","REV","Revenue","R4484","Multi- Disciplinary Team (Fairlop)","01-EMPLOYEES","Employees","01A","Direct employee expenses","4","Agency Staff - Pay","3750554","202404",28/07/2023 00:00:00,1347.49,"31230","Employment and Recruitment Agencies","REDACTED DATA","MATRIX SCM LTD","2227962","http://opencorporates.com/companies/gb/2227962","249573468"
"London Borough of Redbridge","http://opendatacommunities.org/doc/london-borough-council/redbridge","6BADULTSOCIA","Adult Social Care","6CADPHYSDIS","Adults Under 65 with Phys Disab or Sensory Impair","REV","Revenue","R4373","MHWT - North","01-EMPLOYEES","Employees","01A","Direct employee expenses","4","Agency Staff - Pay","3750554","202404",28/07/2023 00:00:00,1535.65,"31230","Employment and Recruitment Agencies","REDACTED DATA","MATRIX SCM LTD","2227962","http://opencorporates.com/companies/gb/2227962","249573468"
"London Borough of Redbridge","http://opendatacommunities.org/doc/london-borough-council/redbridge","6BADULTSOCIA","Adult Social Care","6CADPHYSDIS","Adults Under 65 with Phys Disab or Sensory Impair","REV","Revenue","R4373","MHWT - North","01-EMPLOYEES","Employees","01A","Direct employee expenses","4","Agency Staff - Pay","3750554","202404",28/07/2023 00:00:00,1535.65,"31230","Employment and Recruitment Agencies","REDACTED DATA","MATRIX SCM LTD","2227962","http://opencorporates.com/companies/gb/2227962","249573468"
"London Borough of Redbridge","http://opendatacommunities.org/doc/london-borough-council/redbridge","6BADULTSOCIA","Adult Social Care","6CADPHYSDIS","Adults Under 65 with Phys Disab or Sensory Impair","REV","Revenue","R4373","MHWT - North","01-EMPLOYEES","Employees","01A","Direct employee expenses","4","Agency Staff - Pay","3750554","202404",28/07/2023 00:00:00,1535.65,"31230","Employment and Recruitment Agencies","REDACTED DATA","MATRIX SCM LTD","2227962","http://opencorporates.com/companies/gb/2227962","249573468"
